{"text_format":"1","workbook":"xlsx","n_sheets":7,"sheets":["Клиенты","Магазины","Клиенты по регионам","СВОДНЫЙ","Нижний Новгород","Казань","Уфа"],"not_rendered":{"charts":0,"images":0,"macros":1,"external_links":0,"defined_names":1,"comments":0,"pivot_tables":0},"unopened":[],"bounds":{"document_bytes":16777216,"sheet_cells":100000,"rows_first":2000,"rows_last":500,"rows_between":2000,"halvings":0,"cell_chars":16384,"cell_head_chars":4096},"cells_cut":0,"cells_raw":0,"read":"whole","date_system":"1900"}

{"sheet":"Клиенты","index":0,"n_rows":115,"n_cols":14,"rows_kept":115,"cut":false,"hidden":false,"merged":[]}
[]
[null,"ЯНВ - &CM_RTT01&"]
[null,"Валовый оборот"]
["Заказчик","Кл1","Кл2","Кл3","Кл4","Кл5","Кл6","Кл7","Кл8","Кл9","Кл10","Общий результат"]
["Иерархия продуктов",null,null,null,null,null,null,null,null,null,null,"RUB"]
["          Общий результат",{"$f":"SUM(B7:B115)","v":203},{"$f":"SUM(C7:C115)","v":0},60,6,16,7,12,null,null,null,{"$f":"SUM(B6:H6)","v":304}]
["Разрыхлитель теста",null,null,null,null,null,null,null,null,null,null,0]
["            1-84-001001 Разрыхлитель теста,10г",1,null,5,null,null,null,11,null,null,11,{"$f":"SUM(B8:H8)","v":17},null,{"$f":"CHAR(160)","v":" "}]
["Дрожжи",null,null,null,null,null,null,null,null,null,null,0]
["              1-84-001080 Дрожжи сух.мгновеннодейств. 80 шт.",null,null,2,6,null,null,null,null,null,null,8]
["Ванильный сахар",null,null,null,null,null,null,null,null,null,null,0]
["              1-84-001010 Сахар Ванильный 8г(100шт)",null,null,null,null,5,null,null,5,null,null,5]
["              1-84-001208 Сахар ванильный,8г 60x5",null,null,null,null,null,7,null,null,8,null,7]
["              1-84-010100 Сахар с натуральной ванилью 15г",null,null,null,null,null,null,1,null,null,1,1]
["Желе для торта",null,null,null,null,null,null,null,null,null,null,0]
["              1-84-001004 Желе для торта бесцветное,8г",null,null,12,null,null,null,null,null,null,null,12]
["              1-84-001005 Желе для торта красное,8г",null,null,null,null,3,null,null,3,null,null,3]
["Загуститель сливок",null,null,null,null,null,null,null,null,null,null,0]
["              1-84-001002 Загуститель для сливок,8г",null,null,null,null,8,null,null,8,null,null,8]
["Сахар с корицей",null,null,null,null,null,null,null,null,null,null,0]
["              1-84-001011 Сахар с корицей 40г",null,null,41,null,null,null,null,null,null,null,41]
["Взбитые сливки",null,null,null,null,null,null,null,null,null,null,0]
["              1-84-001003 Смесь для взбитых сливок 48г",2,null,null,null,null,null,null,null,null,null,2]
["Творопыш",null,null,null,null,null,null,null,null,null,null,0]
["              1-84-002003 Смесь \"Творопыш\",60г",null,null,null,null,null,null,null,null,null,null,0]
["Крем для торта",null,null,null,null,null,null,null,null,null,null,0]
["              1-84-002001 Крем для торта \"Ванильный\",50г",null,null,null,null,null,null,null,null,null,null,0]
["              1-84-002002 Крем для торта \"Шоколадный\",55г",null,null,null,null,null,null,null,null,null,null,0]
["Желатин молотый",null,null,null,null,null,null,null,null,null,null,0]
["              1-84-001006 Желатин пищевой,10г",null,null,null,null,null,null,null,null,null,null,0]
["              1-84-001013 Желатин 30г",null,null,null,null,null,null,null,null,null,null,0]
["              1-84-001206 Желатин пищевой,10гх5шт. (33уп)",null,null,null,null,null,null,null,null,null,null,0]
["Сода пищевая",null,null,null,null,null,null,null,null,null,null,0]
["              1-84-001007 Сода пищевая,50г",null,null,null,null,null,null,null,null,null,null,0]
["010001510000010000",null,null,null,null,null,null,null,null,null,null,0]
["              1-84-001012 Посыпка цветная 80г",null,null,null,null,null,null,null,null,null,null,0]
["              1-84-091093 Посыпка Шоколадная 80г",null,null,null,null,null,null,null,null,null,null,0]
["010001510000050000",null,null,null,null,null,null,null,null,null,null,{"$f":"SUM(B38:H38)","v":0}]
["              1-84-001009 Сахарная пудра \"Ваниль\" 80г",null,null,null,null,null,null,null,null,null,null,0]
["010001510000060000",null,null,null,null,null,null,null,null,null,null,0]
["              1-84-003053 Карандаши сахарные 76г",5,null,null,null,null,null,null,null,null,null,5]
["010001520000010000",null,null,null,null,null,null,null,null,null,null,0]
["              1-84-003051 Глазурь со вкусом лимона,100г",5,null,null,null,null,null,null,null,null,null,5]
["              1-84-003052 Глазурь со вкусом марципана,100г",null,null,null,null,null,null,null,null,null,null,0]
["010001520000020000",null,null,null,null,null,null,null,null,null,null,0]
["              1-84-090804 Глазурь темный шоколад 100г",null,null,null,null,null,null,null,null,null,null,0]
["              1-84-091142 Глазурь темный и белый шоколад 100г",null,null,null,null,null,null,null,null,null,null,0]
["Смесь для пудинга",null,null,null,null,null,null,null,null,null,null,0]
["              1-84-004001 Пудинг ванильный,40г",15,null,null,null,null,null,null,null,null,null,15]
["              1-84-004002 Пудинг шоколадный,50г",20,null,null,null,null,null,null,null,null,null,20]
["              1-84-004003 Пудинг сливочный,40г",null,null,null,null,null,null,null,null,null,null,0]
["              1-84-004006 Пудинг карамельный,40г",null,null,null,null,null,null,null,null,null,null,0]
["Желе со вкусом ягод",null,null,null,null,null,null,null,null,null,null,0]
["              1-84-005001 Желе со вкусом вишни,45г",25,null,null,null,null,null,null,null,null,null,25]
["              1-84-005002 Желе со вкусом апельсина,45г",36,null,null,null,null,null,null,null,null,null,36]
["              1-84-005003 Желе со вкусом клубники,45г",null,null,null,null,null,null,null,null,null,null,0]
["              1-84-005004 Желе со вкусом малины,45г",null,null,null,null,null,null,null,null,null,null,0]
["              1-84-005005 Желе со вкусом лесной ягоды,45г",null,null,null,null,null,null,null,null,null,null,0]
["              1-84-005006 Желе со вкусом лимона,45г",null,null,null,null,null,null,null,null,null,null,0]
["Кисель",null,null,null,null,null,null,null,null,null,null,0]
["              1-84-006001 Кисель со вкусом вишни,30г",null,null,null,null,null,null,null,null,null,null,0]
["              1-84-006002 Кисель со вкусом малины,30г",17,null,null,null,null,null,null,null,null,null,17]
["              1-84-006003 Кисель со вкусом клубники,30г",null,null,null,null,null,null,null,null,null,null,0]
["              1-84-007001 Кисель \"Ягодник\" клубника,70г",28,null,null,null,null,null,null,null,null,null,28]
["              1-84-007002 Кисель \"Ягодник\" лесная ягода,70г",null,null,null,null,null,null,null,null,null,null,0]
["              1-84-007003 Кисель \"Ягодник\" вишня,70г",null,null,null,null,null,null,null,null,null,null,0]
["              1-84-007004 Кисель \"Ягодник\" малина,70г",null,null,null,null,null,null,null,null,null,null,0]
["Фирменн. десерт/мусс",null,null,null,null,null,null,null,null,null,null,0]
["              1-84-047200 Крем Тирамису 70г",null,null,null,null,null,null,null,null,null,null,0]
["Прочие средства для",null,null,null,null,null,null,null,null,null,null,{"$f":"SUM(B70:H70)","v":0}]
["              1-84-008004 Кислота лимонная пищевая,8г",null,null,null,null,null,null,null,null,null,null,0]
["              1-84-008005 Кислота лимонная пищевая 50г",null,null,null,null,null,null,null,null,null,null,0]
["Виталис Мюсли до 500",null,null,null,null,null,null,null,null,null,null,0]
["              1-84-006420 Мюсли фруктовые без сахара,375г",2,null,null,null,null,null,null,null,null,null,2]
["              1-84-006421 Мюсли шоколадные,375г",2,null,null,null,null,null,null,null,null,null,2]
["              1-84-006424 Мюсли хрустящие с шоколадом,375г",2,null,null,null,null,null,null,null,null,null,2]
["              1-84-006425 Мюсли хрустящие,375г",null,null,null,null,null,null,null,null,null,null,0]
["              1-84-006428 Мюсли хрустящие с миндалем,375г",null,null,null,null,null,null,null,null,null,null,0]
["              1-84-006446 Мюсли хрустящие медовые,375г",null,null,null,null,null,null,null,null,null,null,0]
["Ристоранте",null,null,null,null,null,null,null,null,null,null,0]
["              1-20-810100 Пицца Ристоранте Кальцоне Специале,290г",null,null,null,null,null,null,null,null,null,null,0]
["              1-20-810200 Пицца Ристоранте Сыр и Помидоры 355г",7,null,null,null,null,null,null,null,null,null,7]
["              1-20-818900 Пицца Ристоранте 4 вида сыра,340г",7,null,null,null,null,null,null,null,null,null,7]
["              1-20-819000 Пицца Ристоранте с салями,320г",7,null,null,null,null,null,null,null,null,null,7]
["              1-20-819100 Пицца Ристоранте с шампиньонами,365г",null,null,null,null,null,null,null,null,null,null,0]
["              1-20-819200 Пицца Ристоранте с ветчиной,330г",null,null,null,null,null,null,null,null,null,null,0]
["              1-20-819500 Пицца Ристоранте Специале,330г",7,null,null,null,null,null,null,null,null,null,7]
["              1-20-819600 Пицца Ристоранте Гавайи,355г",null,null,null,null,null,null,null,null,null,null,0]
["              1-20-819800 Пицца Ристоранте Моццарелла,335г",null,null,null,null,null,null,null,null,null,null,0]
["              1-20-819900 Пицца Ристоранте вегетарианская,385г",null,null,null,null,null,null,null,null,null,null,0]
["              1-20-820200 Пицца Ристоранте Пепперони Салями 320г",null,null,null,null,null,null,null,null,null,null,0]
["              1-20-820300 Пицца Ристоранте Болоньезе 375г",null,null,null,null,null,null,null,null,null,null,0]
["              1-20-834000 Пицца Ристоранте Пиккола салями 280г",null,null,null,null,null,null,null,null,null,null,0]
["              1-20-834200 Пицца Ристоранте Пиккола Моцарелла,310г",null,null,null,null,null,null,null,null,null,null,0]
["Каса ди Мама",null,null,null,null,null,null,null,null,null,null,0]
["              1-20-205100 Пицца Каса ди Мама \"Ветчина-Грибы\"380г",5,null,null,null,null,null,null,null,null,null,5]
["              1-20-205200 Пицца Каса ди Мама \"4вида сыра\"395г",5,null,null,null,null,null,null,null,null,null,5]
["              1-20-205300 Пицца Каса ди Мама \"Специале\" 405г",5,null,null,null,null,null,null,null,null,null,5]
["              1-20-205400 Пицца Каса ди Мама\"Салями\"380г",null,null,null,null,null,null,null,null,null,null,0]
["026001090000021000",null,null,null,null,null,null,null,null,null,null,0]
["              1-60-901204 Пицца-чка с сыром 245г",null,null,null,null,null,null,null,null,null,null,0]
["              1-60-901205 Пицца-чка с салями 255г",null,null,null,null,null,null,null,null,null,null,{"$f":"SUM(B102:H102)","v":0}]
["              1-60-901208 Пицца-чка с шампиньонами 285г",null,null,null,null,null,null,null,null,null,null,0]
["Фруктовый йогурт",null,null,null,null,null,null,null,null,null,null,0]
["              1-84-000116 Максифрут лег. 0,1% 4х100 Клуб/Персик",null,null,null,null,null,null,null,null,null,null,0]
["              1-84-000117 Максифрут лег. 0,1% 4х100 Мал/Абр/Манго",null,null,null,null,null,null,null,null,null,null,0]
["              1-84-000118 Максифрут лег. 0,1% 4х100 Клуб/Черника",null,null,null,null,null,null,null,null,null,null,0]
["              1-84-000136 Максифрут 2,7% 4х100г Клуб/Абрикос-Манго",null,null,null,null,null,null,null,null,null,null,0]
["              1-84-000137 Максифрут 2,7% 4*100 Вишня/Персик",null,null,null,null,null,null,null,null,null,null,0]
["              1-84-000146 Максифрут Экстра4,5% 4*100 Клуб/Яблоко",null,null,null,null,null,null,null,null,null,null,0]
["              1-84-000147 Максифрут Экстра4,5% 4*100 Вишня/Персик",null,null,null,null,null,null,null,null,null,null,0]
["              1-84-000148 Максифрут Экстра4,5% 4*100 Клуб/Абрикос",null,null,null,null,null,null,null,null,null,null,0]
["              1-84-000156 Максифрут Люкс 8,0% 4х100 Клуб/Персик",null,null,null,null,null,null,null,null,null,null,0]
["              1-84-000157 Максифрут Люкс 8,0% 4х100 Малина/Абрикос",null,null,null,null,null,null,null,null,null,null,0]
["              1-84-000158 Максифрут Люкс 8,0% 4х100 Клуб/Нектарин",null,null,null,null,null,null,null,null,null,null,0]

{"sheet":"Магазины","index":1,"n_rows":137,"n_cols":13,"rows_kept":137,"cut":false,"hidden":false,"merged":[]}
[]
[null,"ЯНВ - &CM_RTT01&"]
[null,"Валовый оборот"]
["Получатель материала","Мг1","Мг2","Мг3","Мг4","Мг5","Мг6","Мг7","Мг8","Мг9","Мг10","Мг11","Общий результат"]
["Иерархия продуктов","RUB","RUB","RUB","RUB","RUB","RUB","RUB","RUB","RUB","RUB",null,"RUB"]
["Общий результат",{"$f":"SUM(B7:B137)","v":1},{"$f":"SUM(C7:C137)","v":5},7,126,4,8,17,5,2,0,null,{"$f":"SUM(B6:L6)","v":175}]
["Разрыхлитель теста",null,null,null,null,null,null,null,null,null,null,null,0]
["              1-84-001001 Разрыхлитель теста,10г",1,5,1,null,null,null,12,5,null,null,null,24]
["              1-84-001201 Разрыхлитель теста,10гх5шт. (60)",null,null,null,null,1,null,null,null,null,null,null,1]
["              1-84-071734 Разрыхлитель теста,10гх5шт.Юнит",null,null,1,null,null,null,null,null,null,null,null,1]
["Дрожжи",null,null,null,null,null,null,null,null,null,null,null,0]
["              1-84-001080 Дрожжи сух.мгновеннодейств. 80 шт.",null,null,null,null,null,null,2,null,null,null,null,2]
["              1-84-071080 Дрожжи хлебопекарные сухие,7гх5шт.",null,null,2,null,null,null,null,null,2,null,null,4]
["Ванильный сахар",null,null,null,null,null,null,null,null,null,null,null,0]
["              1-84-001010 Сахар Ванильный 8г(100шт)",null,null,null,null,null,null,null,null,null,null,null,0]
["              1-84-001208 Сахар ванильный,8г 60x5",null,null,3,null,3,null,null,null,null,null,null,6]
["              1-84-001210 Сахар с натуральной Ванилью 15г*2шт",null,null,null,null,null,null,3,null,null,null,null,3]
["              1-84-010100 Сахар с натуральной ванилью 15г",null,null,null,3,null,null,null,null,null,null,null,3]
["              1-84-071733 Сахар ванильный,8гх5 шт.Юнит",null,null,null,3,null,8,null,null,null,null,null,11]
["Желе для торта",null,null,null,null,null,null,null,null,null,null,null,0]
["              1-84-001004 Желе для торта бесцветное,8г",null,null,null,null,null,null,null,null,null,null,null,0]
["              1-84-071104 Желе для торта бесцветное,8гх5шт.",null,null,null,null,null,null,null,null,null,null,null,0]
["Загуститель сливок",null,null,null,null,null,null,null,null,null,null,null,0]
["              1-84-001002 Загуститель для сливок,8г",null,null,null,null,null,null,null,null,null,null,null,0]
["              1-84-077358 Загуститель для сливок,8гх5 шт.Юнит",null,null,null,null,null,null,null,null,null,null,null,0]
["Сахар с корицей",null,null,null,null,null,null,null,null,null,null,null,0]
["              1-84-001011 Сахар с корицей 40г",null,null,null,null,null,null,null,null,null,null,null,0]
["Взбитые сливки",null,null,null,null,null,null,null,null,null,null,null,0]
["              1-84-001003 Смесь для взбитых сливок 48г",null,null,null,null,null,null,null,null,null,null,null,0]
["              1-84-072101 Смесь для взбитых сливок,48гх5шт.",null,null,null,42,null,null,null,null,null,null,null,42]
["Творопыш",null,null,null,null,null,null,null,null,null,null,null,0]
["              1-84-002003 Смесь \"Творопыш\",60г",null,null,null,null,null,null,null,null,null,null,null,0]
["              1-84-072003 Смесь \"Творопыш\",60гх5шт.",null,null,null,null,null,null,null,null,null,null,null,0]
["Крем для торта",null,null,null,null,null,null,null,null,null,null,null,0]
["              1-84-002001 Крем для торта \"Ванильный\",50г",null,null,null,78,null,null,null,null,null,null,null,78]
["              1-84-002002 Крем для торта \"Шоколадный\",55г",null,null,null,null,null,null,null,null,null,null,null,0]
["              1-84-072001 Крем для торта ванильный,50гх5шт.",null,null,null,null,null,null,null,null,null,null,null,0]
["              1-84-072002 Крем для торта шоколадный,55гх5шт.",null,null,null,null,null,null,null,null,null,null,null,{"$f":"SUM(B38:L38)","v":0}]
["Желатин молотый",null,null,null,null,null,null,null,null,null,null,null,0]
["              1-84-001006 Желатин пищевой,10г",null,null,null,null,null,null,null,null,null,null,null,0]
["              1-84-001013 Желатин 30г",null,null,null,null,null,null,null,null,null,null,null,0]
["              1-84-001213 Желатин 30гх2",null,null,null,null,null,null,null,null,null,null,null,0]
["              1-84-077740 Желатин пищевой,10гх5шт Юнит",null,null,null,null,null,null,null,null,null,null,null,0]
["Сода пищевая",null,null,null,null,null,null,null,null,null,null,null,0]
["              1-84-001007 Сода пищевая,50г",null,null,null,null,null,null,null,null,null,null,null,0]
["              1-84-071007 Сода пищевая,50гх5шт.",null,null,null,null,null,null,null,null,null,null,null,0]
["010001510000010000",null,null,null,null,null,null,null,null,null,null,null,0]
["              1-84-001012 Посыпка цветная 80г",null,null,null,null,null,null,null,null,null,null,null,0]
["              1-84-091093 Посыпка Шоколадная 80г",null,null,null,null,null,null,null,null,null,null,null,0]
["010001510000050000",null,null,null,null,null,null,null,null,null,null,null,0]
["              1-84-001009 Сахарная пудра \"Ваниль\" 80г",null,null,null,null,null,null,null,null,null,null,null,0]
["              1-84-071009 Сахарная пудра 80г*5",null,null,null,null,null,null,null,null,null,null,null,0]
["010001510000060000",null,null,null,null,null,null,null,null,null,null,null,0]
["              1-84-003053 Карандаши сахарные 76г",null,null,null,null,null,null,null,null,null,null,null,0]
["010001520000010000",null,null,null,null,null,null,null,null,null,null,null,0]
["              1-84-003051 Глазурь со вкусом лимона,100г",null,null,null,null,null,null,null,null,null,null,null,0]
["              1-84-003052 Глазурь со вкусом марципана,100г",null,null,null,null,null,null,null,null,null,null,null,0]
["              1-84-073052 Глазурь марципан 100г*5",null,null,null,null,null,null,null,null,null,null,null,0]
["010001520000020000",null,null,null,null,null,null,null,null,null,null,null,0]
["              1-84-090804 Глазурь темный шоколад 100г",null,null,null,null,null,null,null,null,null,null,null,0]
["              1-84-091142 Глазурь темный и белый шоколад 100г",null,null,null,null,null,null,null,null,null,null,null,0]
["Смесь для пудинга",null,null,null,null,null,null,null,null,null,null,null,0]
["              1-84-004001 Пудинг ванильный,40г",null,null,null,null,null,null,null,null,null,null,null,0]
["              1-84-004002 Пудинг шоколадный,50г",null,null,null,null,null,null,null,null,null,null,null,0]
["              1-84-004003 Пудинг сливочный,40г",null,null,null,null,null,null,null,null,null,null,null,0]
["              1-84-074001 Пудинг ванильный,40гx5шт.",null,null,null,null,null,null,null,null,null,null,null,0]
["              1-84-074002 Пудинг шоколадный,50гх5шт.",null,null,null,null,null,null,null,null,null,null,null,0]
["              1-84-074003 Пудинг сливочный,40гх5шт.",null,null,null,null,null,null,null,null,null,null,null,0]
["Желе со вкусом ягод",null,null,null,null,null,null,null,null,null,null,null,0]
["              1-84-005001 Желе со вкусом вишни,45г",null,null,null,null,null,null,null,null,null,null,null,{"$f":"SUM(B70:L70)","v":0}]
["              1-84-005002 Желе со вкусом апельсина,45г",null,null,null,null,null,null,null,null,null,null,null,0]
["              1-84-005003 Желе со вкусом клубники,45г",null,null,null,null,null,null,null,null,null,null,null,0]
["              1-84-005004 Желе со вкусом малины,45г",null,null,null,null,null,null,null,null,null,null,null,0]
["              1-84-005005 Желе со вкусом лесной ягоды,45г",null,null,null,null,null,null,null,null,null,null,null,0]
["              1-84-005006 Желе со вкусом лимона,45г",null,null,null,null,null,null,null,null,null,null,null,0]
["              1-84-075004 Желе со вкусом малины,45гх5шт.",null,null,null,null,null,null,null,null,null,null,null,0]
["              1-84-075005 Желе со вкусом лесной ягоды,45г*5",null,null,null,null,null,null,null,null,null,null,null,0]
["              1-84-075006 Желе со вкусом лимона,45г*5",null,null,null,null,null,null,null,null,null,null,null,0]
["              1-84-075101 Желе со вкусом вишни,45гх5шт.",null,null,null,null,null,null,null,null,null,null,null,0]
["Кисель",null,null,null,null,null,null,null,null,null,null,null,0]
["              1-84-006001 Кисель со вкусом вишни,30г",null,null,null,null,null,null,null,null,null,null,null,0]
["              1-84-006002 Кисель со вкусом малины,30г",null,null,null,null,null,null,null,null,null,null,null,0]
["              1-84-006003 Кисель со вкусом клубники,30г",null,null,null,null,null,null,null,null,null,null,null,0]
["              1-84-007001 Кисель \"Ягодник\" клубника,70г",null,null,null,null,null,null,null,null,null,null,null,0]
["              1-84-007002 Кисель \"Ягодник\" лесная ягода,70г",null,null,null,null,null,null,null,null,null,null,null,0]
["              1-84-007003 Кисель \"Ягодник\" вишня,70г",null,null,null,null,null,null,null,null,null,null,null,0]
["              1-84-076001 Кисель со вкусом вишни,30гх5шт.",null,null,null,null,null,null,null,null,null,null,null,0]
["              1-84-076002 Кисель со вкусом малины,30гх5шт",null,null,null,null,null,null,null,null,null,null,null,0]
["              1-84-076003 Кисель со вкусом клубники,30гх5шт.",null,null,null,null,null,null,null,null,null,null,null,0]
["              1-84-077001 Кисель \"Ягодник\" клубника,70г*5",null,null,null,null,null,null,null,null,null,null,null,0]
["              1-84-077002 Кисель \"Ягодник\" лесная ягода,70г*5",null,null,null,null,null,null,null,null,null,null,null,0]
["              1-84-077003 Кисель \"Ягодник\" вишня,70г*5",null,null,null,null,null,null,null,null,null,null,null,0]
["Фирменн. десерт/мусс",null,null,null,null,null,null,null,null,null,null,null,0]
["              1-84-047200 Крем Тирамису 70г",null,null,null,null,null,null,null,null,null,null,null,0]
["Консервaнт",null,null,null,null,null,null,null,null,null,null,null,0]
["              1-84-008003 Консервант (бензоат натрия),7г",null,null,null,null,null,null,null,null,null,null,null,0]
["Желфикс",null,null,null,null,null,null,null,null,null,null,null,0]
["              1-84-008001 Желфикс 2:1 для консервирования,40г",null,null,null,null,null,null,null,null,null,null,null,0]
["              1-84-008002 Желфикс 1:1 для консервирования,20г",null,null,null,null,null,null,null,null,null,null,null,0]
["Прочие средства для",null,null,null,null,null,null,null,null,null,null,null,0]
["              1-84-008004 Кислота лимонная пищевая,8г",null,null,null,null,null,null,null,null,null,null,null,0]
["              1-84-008005 Кислота лимонная пищевая 50г",null,null,null,null,null,null,null,null,null,null,null,{"$f":"SUM(B102:L102)","v":0}]
["              1-84-078104 Кислота лимонная пищевая,8гх5шт.",null,null,null,null,null,null,null,null,null,null,null,0]
["Виталис Мюсли до 500",null,null,null,null,null,null,null,null,null,null,null,0]
["              1-84-006420 Мюсли фруктовые без сахара,375г",null,null,null,null,null,null,null,null,null,null,null,0]
["              1-84-006421 Мюсли шоколадные,375г",null,null,null,null,null,null,null,null,null,null,null,0]
["              1-84-006424 Мюсли хрустящие с шоколадом,375г",null,null,null,null,null,null,null,null,null,null,null,0]
["              1-84-006425 Мюсли хрустящие,375г",null,null,null,null,null,null,null,null,null,null,null,0]
["              1-84-006428 Мюсли хрустящие с миндалем,375г",null,null,null,null,null,null,null,null,null,null,null,0]
["              1-84-006446 Мюсли хрустящие медовые,375г",null,null,null,null,null,null,null,null,null,null,null,0]
["              1-84-076420 Мюсли фруктовые без сахара,375гх2шт.",null,null,null,null,null,null,null,null,null,null,null,0]
["              1-84-076421 Мюсли шоколадные 375гх2",null,null,null,null,null,null,null,null,null,null,null,0]
["              1-84-076425 Мюсли хрустящие,375гх2шт.",null,null,null,null,null,null,null,null,null,null,null,0]
["              1-84-076428 Мюсли хрустящие с миндалем,375гх2шт.",null,null,null,null,null,null,null,null,null,null,null,0]
["              1-84-076446 Мюсли хрустящие медовые,375гх2шт.",null,null,null,null,null,null,null,null,null,null,null,0]
["Ристоранте",null,null,null,null,null,null,null,null,null,null,null,0]
["              1-20-810100 Пицца Ристоранте Кальцоне Специале,290г",null,null,null,null,null,null,null,null,null,null,null,0]
["              1-20-810200 Пицца Ристоранте Сыр и Помидоры 355г",null,null,null,null,null,null,null,null,null,null,null,0]
["              1-20-818900 Пицца Ристоранте 4 вида сыра,340г",null,null,null,null,null,null,null,null,null,null,null,0]
["              1-20-819000 Пицца Ристоранте с салями,320г",null,null,null,null,null,null,null,null,null,null,null,0]
["              1-20-819100 Пицца Ристоранте с шампиньонами,365г",null,null,null,null,null,null,null,null,null,null,null,0]
["              1-20-819200 Пицца Ристоранте с ветчиной,330г",null,null,null,null,null,null,null,null,null,null,null,0]
["              1-20-819500 Пицца Ристоранте Специале,330г",null,null,null,null,null,null,null,null,null,null,null,0]
["              1-20-819600 Пицца Ристоранте Гавайи,355г",null,null,null,null,null,null,null,null,null,null,null,0]
["              1-20-819800 Пицца Ристоранте Моццарелла,335г",null,null,null,null,null,null,null,null,null,null,null,0]
["              1-20-819900 Пицца Ристоранте вегетарианская,385г",null,null,null,null,null,null,null,null,null,null,null,0]
["              1-20-820200 Пицца Ристоранте Пепперони Салями 320г",null,null,null,null,null,null,null,null,null,null,null,0]
["              1-20-820300 Пицца Ристоранте Болоньезе 375г",null,null,null,null,null,null,null,null,null,null,null,0]
["              1-20-834000 Пицца Ристоранте Пиккола салями 280г",null,null,null,null,null,null,null,null,null,null,null,0]
["              1-20-834200 Пицца Ристоранте Пиккола Моцарелла,310г",null,null,null,null,null,null,null,null,null,null,null,0]
["Каса ди Мама",null,null,null,null,null,null,null,null,null,null,null,0]
["              1-20-205100 Пицца Каса ди Мама \"Ветчина-Грибы\"380г",null,null,null,null,null,null,null,null,null,null,null,0]
["              1-20-205200 Пицца Каса ди Мама \"4вида сыра\"395г",null,null,null,null,null,null,null,null,null,null,null,0]
["              1-20-205300 Пицца Каса ди Мама \"Специале\" 405г",null,null,null,null,null,null,null,null,null,null,null,{"$f":"SUM(B134:L134)","v":0}]
["              1-20-205400 Пицца Каса ди Мама\"Салями\"380г",null,null,null,null,null,null,null,null,null,null,null,0]
["026001090000021000",null,null,null,null,null,null,null,null,null,null,null,0]
["              1-60-901208 Пицца-чка с шампиньонами 285г",null,null,null,null,null,null,null,null,null,null,null,0]

{"sheet":"Клиенты по регионам","index":2,"n_rows":23,"n_cols":6,"rows_kept":23,"cut":false,"hidden":false,"merged":[]}
[]
[null,"№пп","Клиент","Город"]
[null,1,"Кл1","Нижний Новгород"]
[null,2,"Кл2","Казань"]
[null,3,"Кл3","Нижний Новгород"]
[null,4,"Кл4","Уфа"]
[null,5,"Кл5","Уфа"]
[null,6,"Кл6","Екатеринбург"]
[null,7,"Кл7","Нижний Новгород"]
[null,8,"Кл8","Восток"]
[null,9,"Кл9","Восток",null,"Города"]
[null,10,"Кл10","Казань",null,"Нижний Новгород"]
[null,11,"Мг1","Уфа",null,"Казань"]
[null,12,"Мг2","Екатеринбург",null,"Уфа"]
[null,13,"Мг3","Казань",null,"Екатеринбург"]
[null,14,"Мг4","Екатеринбург",null,"Восток"]
[null,15,"Мг5","Уфа"]
[null,16,"Мг6","Восток"]
[null,17,"Мг7","Восток"]
[null,18,"Мг8","Восток"]
[null,19,"Мг9","Нижний Новгород"]
[null,20,"Мг10","Казань"]
[null,21,"Мг11","Екатеринбург"]

{"sheet":"СВОДНЫЙ","index":3,"n_rows":190,"n_cols":24,"rows_kept":190,"cut":false,"hidden":false,"merged":[]}
[]
[]
[]
["Заказчик","Ф-лы","Кл1","Кл2","Кл3","Кл4","Кл5","Кл6","Кл7","Кл8","Кл9","Кл10","Мг1","Мг2","Мг3","Мг4","Мг5","Мг6","Мг7","Мг8","Мг9","Мг10","Мг11","Общий результат"]
["            1-84-001001 Разрыхлитель теста,10г",null,1,null,5,null,null,null,11,null,null,11,1,5,1,null,null,null,12,5,null,null,null,{"$f":"SumHid(B5:W5)","v":52}]
["              1-84-001201 Разрыхлитель теста,10гх5шт. (60)",null,null,null,null,null,null,null,null,null,null,null,null,null,null,null,1,null,null,null,null,null,null,1]
["              1-84-041534 Разрыхлитель теста,10г (4+1)Metro",null,null,null,null,null,null,null,null,null,null,null,null,null,null,null,null,null,null,null,null,null,null,0]
["              1-84-041535 Разрыхлитель теста,10г (4+1)",null,null,null,null,null,null,null,null,null,null,null,null,null,null,null,null,null,null,null,null,null,null,0]
["              1-84-071734 Разрыхлитель теста,10гх5шт.Юнит",null,null,null,null,null,null,null,null,null,null,null,null,null,1,null,null,null,null,null,null,null,null,1]
["Разрыхлитель теста,10г. ",{"$f":"SUM(B5:B9)","v":0},{"$f":"SUM(C5:C9)","v":1},0,5,0,0,0,11,0,0,11,1,5,2,0,1,0,12,5,0,0,0,54]
[null,null,null,null,null,null,null,null,null,null,null,null,null,null,null,null,null,null,null,null,null,null,null,0]
["              1-84-001080 Дрожжи сух.мгновеннодейств. 80 шт.",null,null,null,2,6,null,null,null,null,null,null,null,null,null,null,null,null,2,null,null,null,null,10]
[null,null,null,null,null,null,null,null,null,null,null,null,null,null,null,null,null,null,null,null,null,null,null,0]
["              1-84-044040 Дрожжи хлебоп.сухие7г(4+1)",null,null,null,null,null,null,null,null,null,null,null,null,null,null,null,null,null,null,null,null,null,null,0]
["              1-84-071080 Дрожжи хлебопекарные сухие,7гх5шт.",null,null,null,null,null,null,null,null,null,null,null,null,null,2,null,null,null,null,null,2,null,null,4]
["Дрожжи сух.мгновеннодейств. ",{"$f":"SUM(B11:B15)","v":0},{"$f":"SUM(C11:C15)","v":0},0,2,6,0,0,0,0,0,0,0,0,2,0,0,0,2,0,2,0,0,14]
[null,null,null,null,null,null,null,null,null,null,null,null,null,null,null,null,null,null,null,null,null,null,null,0]
["              1-84-001008 Сахар Ванильный,8г(50шт)",null,null,null,null,null,null,null,null,null,null,null,null,null,null,null,null,null,null,null,null,null,null,0]
["              1-84-001010 Сахар Ванильный 8г(100шт)",null,null,null,null,null,5,null,null,5,null,null,null,null,null,null,null,null,null,null,null,null,null,10]
["              1-84-001208 Сахар ванильный,8г 60x5",null,null,null,null,null,null,7,null,null,8,null,null,null,3,null,3,null,null,null,null,null,null,21]
["              1-84-045433 Сахар ван.,8гх5 шт(4+1).Metro",null,null,null,null,null,null,null,null,null,null,null,null,null,null,null,null,null,null,null,null,null,null,0]
["              1-84-045434 Сахар ванильный,8г (4+1)",null,null,null,null,null,null,null,null,null,null,null,null,null,null,null,null,null,null,null,null,null,null,0]
["              1-84-071733 Сахар ванильный,8гх5 шт.Юнит",null,null,null,null,null,null,null,null,null,null,null,null,null,null,3,null,8,null,null,null,null,null,11]
["              1-84-001210 Сахар с натуральной Ванилью 15г*2шт",null,null,null,null,null,null,null,null,null,null,null,null,null,null,null,null,null,3,null,null,null,null,3]
["              1-84-010100 Сахар с натуральной ванилью 15г",null,null,null,null,null,null,null,1,null,null,1,null,null,null,3,null,null,null,null,null,null,null,5]
["Ванильный сахар,8г. ",{"$f":"SUM(B17:B25)","v":0},{"$f":"SUM(C17:C25)","v":0},0,0,0,5,7,1,5,8,1,0,0,3,6,3,8,3,0,0,0,0,50]
[null,null,null,null,null,null,null,null,null,null,null,null,null,null,null,null,null,null,null,null,null,null,null,0]
["              1-84-001006 Желатин пищевой,10г",null,null,null,null,null,null,null,null,null,null,null,null,null,null,null,null,null,null,null,null,null,null,0]
["              1-84-047041 Желатин пищевой,10г (4+1)",null,null,null,null,null,null,null,null,null,null,null,null,null,null,null,null,null,null,null,null,null,null,0]
["              1-84-047040 Желатин пищевой,10г (4+1)Metro",null,null,null,null,null,null,null,null,null,null,null,null,null,null,null,null,null,null,null,null,null,null,0]
["              1-84-001206 Желатин пищевой,10гх5шт. (33уп)",null,null,null,null,null,null,null,null,null,null,null,null,null,null,null,null,null,null,null,null,null,null,0]
["              1-84-077740 Желатин пищевой,10гх5шт Юнит",null,null,null,null,null,null,null,null,null,null,null,null,null,null,null,null,null,null,null,null,null,null,0]
["              1-84-001013 Желатин 30г",null,null,null,null,null,null,null,null,null,null,null,null,null,null,null,null,null,null,null,null,null,null,0]
["              1-84-001213 Желатин 30гх2",null,null,null,null,null,null,null,null,null,null,null,null,null,null,null,null,null,null,null,null,null,null,0]
["Желатин быстрорастворимый,10г ",{"$f":"SUM(B27:B34)","v":0},{"$f":"SUM(C27:C34)","v":0},0,0,0,0,0,0,0,0,0,0,0,0,0,0,0,0,0,0,0,0,0]
[null,null,null,null,null,null,null,null,null,null,null,null,null,null,null,null,null,null,null,null,null,null,null,0]
["              1-84-001004 Желе для торта бесцветное,8г",null,null,null,12,null,null,null,null,null,null,null,null,null,null,null,null,null,null,null,null,null,null,{"$f":"SumHid(B37:W37)","v":12}]
["              1-84-001005 Желе для торта красное,8г",null,null,null,null,null,3,null,null,3,null,null,null,null,null,null,null,null,null,null,null,null,null,6]
["              1-84-071104 Желе для торта бесцветное,8гх5шт.",null,null,null,null,null,null,null,null,null,null,null,null,null,null,null,null,null,null,null,null,null,null,0]
["              1-84-071104 Желе для торта красное,8гх5шт.",null,null,null,null,null,null,null,null,null,null,null,null,null,null,null,null,null,null,null,null,null,null,0]
["              1-84-001002 Загуститель для сливок,8г",null,null,null,null,null,8,null,null,8,null,null,null,null,null,null,null,null,null,null,null,null,null,16]
["              1-84-077358 Загуститель для сливок,8гх5 шт.Юнит",null,null,null,null,null,null,null,null,null,null,null,null,null,null,null,null,null,null,null,null,null,null,0]
["              1-84-001011 Сахар с корицей 40г",null,null,null,41,null,null,null,null,null,null,null,null,null,null,null,null,null,null,null,null,null,null,41]
["              1-84-001003 Смесь для взбитых сливок 48г",null,2,null,null,null,null,null,null,null,null,null,null,null,null,null,null,null,null,null,null,null,null,2]
["              1-84-072101 Смесь для взбитых сливок,48гх5шт.",null,null,null,null,null,null,null,null,null,null,null,null,null,null,42,null,null,null,null,null,null,null,42]
["Всего добавок для выпечки",{"$f":"SUM(B36:B45)","v":0},2,0,53,0,11,0,0,11,0,0,0,0,0,42,0,0,0,0,0,0,0,119]
[null,null,null,null,null,null,null,null,null,null,null,null,null,null,null,null,null,null,null,null,null,null,null,0]
[null,null,null,null,null,null,null,null,null,null,null,null,null,null,null,null,null,null,null,null,null,null,null,0]
["              1-84-002003 Смесь \"Творопыш\",60г",null,null,null,null,null,null,null,null,null,null,null,null,null,null,null,null,null,null,null,null,null,null,0]
["              1-84-072003 Смесь \"Творопыш\",60гх5шт.",null,null,null,null,null,null,null,null,null,null,null,null,null,null,null,null,null,null,null,null,null,null,0]
["              1-84-002001 Крем для торта \"Ванильный\",50г",null,null,null,null,null,null,null,null,null,null,null,null,null,null,78,null,null,null,null,null,null,null,78]
["              1-84-002002 Крем для торта \"Шоколадный\",55г",null,null,null,null,null,null,null,null,null,null,null,null,null,null,null,null,null,null,null,null,null,null,0]
["              1-84-072001 Крем для торта ванильный,50гх5шт.",null,null,null,null,null,null,null,null,null,null,null,null,null,null,null,null,null,null,null,null,null,null,0]
["              1-84-072002 Крем для торта шоколадный,55гх5шт.",null,null,null,null,null,null,null,null,null,null,null,null,null,null,null,null,null,null,null,null,null,null,0]
["Всего добавок дляторта",{"$f":"SUM(B47:B54)","v":0},0,0,0,0,0,0,0,0,0,0,0,0,0,78,0,0,0,0,0,0,0,78]
[null,null,null,null,null,null,null,null,null,null,null,null,null,null,null,null,null,null,null,null,null,null,null,0]
["              1-84-003053 Карандаши сахарные 76г",null,5,null,null,null,null,null,null,null,null,null,null,null,null,null,null,null,null,null,null,null,null,5]
["              1-84-001012 Посыпка цветная 80г",null,null,null,null,null,null,null,null,null,null,null,null,null,null,null,null,null,null,null,null,null,null,0]
["              1-84-091093 Посыпка Шоколадная 80г",null,null,null,null,null,null,null,null,null,null,null,null,null,null,null,null,null,null,null,null,null,null,0]
["              1-84-003051 Глазурь со вкусом лимона,100г",null,5,null,null,null,null,null,null,null,null,null,null,null,null,null,null,null,null,null,null,null,null,5]
["              1-84-003052 Глазурь со вкусом марципана,100г",null,null,null,null,null,null,null,null,null,null,null,null,null,null,null,null,null,null,null,null,null,null,0]
["              1-84-073052 Глазурь марципан 100г*5",null,null,null,null,null,null,null,null,null,null,null,null,null,null,null,null,null,null,null,null,null,null,0]
["              1-84-091142 Глазурь темный и белый шоколад 100г",null,null,null,null,null,null,null,null,null,null,null,null,null,null,null,null,null,null,null,null,null,null,0]
["              1-84-090804 Глазурь темный шоколад 100г",null,null,null,null,null,null,null,null,null,null,null,null,null,null,null,null,null,null,null,null,null,null,0]
["              1-84-001009 Сахарная пудра \"Ваниль\" 80г",null,null,null,null,null,null,null,null,null,null,null,null,null,null,null,null,null,null,null,null,null,null,0]
["              1-84-071009 Сахарная пудра 80г*5",null,null,null,null,null,null,null,null,null,null,null,null,null,null,null,null,null,null,null,null,null,null,0]
["Всего декор",{"$f":"SUM(B57:B66)","v":0},10,0,0,0,0,0,0,0,0,0,0,0,0,0,0,0,0,0,0,0,0,10]
[null,null,null,null,null,null,null,null,null,null,null,null,null,null,null,null,null,null,null,null,null,null,null,0]
["              1-84-001007 Сода пищевая,50г",null,null,null,null,null,null,null,null,null,null,null,null,null,null,null,null,null,null,null,null,null,null,{"$f":"SumHid(B69:W69)","v":0}]
["              1-84-071007 Сода пищевая,50гх5шт.",null,null,null,null,null,null,null,null,null,null,null,null,null,null,null,null,null,null,null,null,null,null,0]
[null,null,null,null,null,null,null,null,null,null,null,null,null,null,null,null,null,null,null,null,null,null,null,0]
["Всего сода",{"$f":"SUM(B69:B71)","v":0},{"$f":"SUM(C69:C71)","v":0},0,0,0,0,0,0,0,0,0,0,0,0,0,0,0,0,0,0,0,0,0]
["Прочие ингредиенты для выпечки",{"$f":"B72+B67+B55+B46","v":0},{"$f":"C72+C67+C55+C46","v":12},0,53,0,11,0,0,11,0,0,0,0,0,120,0,0,0,0,0,0,0,207]
[null,null,null,null,null,null,null,null,null,null,null,null,null,null,null,null,null,null,null,null,null,null,null,0]
["              1-84-004001 Пудинг ванильный,40г",null,15,null,null,null,null,null,null,null,null,null,null,null,null,null,null,null,null,null,null,null,null,15]
["              1-84-004002 Пудинг шоколадный,50г",null,20,null,null,null,null,null,null,null,null,null,null,null,null,null,null,null,null,null,null,null,null,20]
["              1-84-004003 Пудинг сливочный,40г",null,null,null,null,null,null,null,null,null,null,null,null,null,null,null,null,null,null,null,null,null,null,0]
["              1-84-004004 Пудинг клубничный,40г",null,null,null,null,null,null,null,null,null,null,null,null,null,null,null,null,null,null,null,null,null,null,0]
["              1-84-004005 Пудинг малиновый,40г",null,null,null,null,null,null,null,null,null,null,null,null,null,null,null,null,null,null,null,null,null,null,0]
["              1-84-004006 Пудинг карамельный,40г",null,null,null,null,null,null,null,null,null,null,null,null,null,null,null,null,null,null,null,null,null,null,0]
["              1-84-074001 Пудинг ванильный,40гx5шт.",null,null,null,null,null,null,null,null,null,null,null,null,null,null,null,null,null,null,null,null,null,null,0]
["              1-84-074002 Пудинг шоколадный,50гх5шт.",null,null,null,null,null,null,null,null,null,null,null,null,null,null,null,null,null,null,null,null,null,null,0]
["              1-84-074003 Пудинг сливочный,40гх5шт.",null,null,null,null,null,null,null,null,null,null,null,null,null,null,null,null,null,null,null,null,null,null,0]
["              1-84-074006 Пудинг карамельный,40гх5шт.",null,null,null,null,null,null,null,null,null,null,null,null,null,null,null,null,null,null,null,null,null,null,0]
["Всего пудинги",{"$f":"SUM(B74:B84)","v":0},35,0,0,0,0,0,0,0,0,0,0,0,0,0,0,0,0,0,0,0,0,35]
[null,null,null,null,null,null,null,null,null,null,null,null,null,null,null,null,null,null,null,null,null,null,null,0]
[null,null,null,null,null,null,null,null,null,null,null,null,null,null,null,null,null,null,null,null,null,null,null,0]
["              1-84-007001 Кисель \"Ягодник\" клубника,70г",null,28,null,null,null,null,null,null,null,null,null,null,null,null,null,null,null,null,null,null,null,null,28]
["              1-84-007002 Кисель \"Ягодник\" лесная ягода,70г",null,null,null,null,null,null,null,null,null,null,null,null,null,null,null,null,null,null,null,null,null,null,0]
["              1-84-007003 Кисель \"Ягодник\" вишня,70г",null,null,null,null,null,null,null,null,null,null,null,null,null,null,null,null,null,null,null,null,null,null,0]
["              1-84-007004 Кисель \"Ягодник\" малина,70г",null,null,null,null,null,null,null,null,null,null,null,null,null,null,null,null,null,null,null,null,null,null,0]
["              1-84-077001 Кисель \"Ягодник\" клубника,70г*5",null,null,null,null,null,null,null,null,null,null,null,null,null,null,null,null,null,null,null,null,null,null,0]
["              1-84-077002 Кисель \"Ягодник\" лесная ягода,70г*5",null,null,null,null,null,null,null,null,null,null,null,null,null,null,null,null,null,null,null,null,null,null,0]
["              1-84-077003 Кисель \"Ягодник\" вишня,70г*5",null,null,null,null,null,null,null,null,null,null,null,null,null,null,null,null,null,null,null,null,null,null,0]
["Всего традиционный кисель",{"$f":"SUM(B88:B94)","v":0},28,0,0,0,0,0,0,0,0,0,0,0,0,0,0,0,0,0,0,0,0,28]
["              1-84-006001 Кисель со вкусом вишни,30г",null,null,null,null,null,null,null,null,null,null,null,null,null,null,null,null,null,null,null,null,null,null,0]
["              1-84-006002 Кисель со вкусом малины,30г",null,17,null,null,null,null,null,null,null,null,null,null,null,null,null,null,null,null,null,null,null,null,17]
["              1-84-006003 Кисель со вкусом клубники,30г",null,null,null,null,null,null,null,null,null,null,null,null,null,null,null,null,null,null,null,null,null,null,0]
["              1-84-076001 Кисель со вкусом вишни,30гх5шт.",null,null,null,null,null,null,null,null,null,null,null,null,null,null,null,null,null,null,null,null,null,null,0]
["              1-84-076002 Кисель со вкусом малины,30гх5шт",null,null,null,null,null,null,null,null,null,null,null,null,null,null,null,null,null,null,null,null,null,null,0]
["              1-84-076003 Кисель со вкусом клубники,30гх5шт.",null,null,null,null,null,null,null,null,null,null,null,null,null,null,null,null,null,null,null,null,null,null,{"$f":"SumHid(B101:W101)","v":0}]
[null,null,null,null,null,null,null,null,null,null,null,null,null,null,null,null,null,null,null,null,null,null,null,0]
[null,null,null,null,null,null,null,null,null,null,null,null,null,null,null,null,null,null,null,null,null,null,null,0]
["Всего  кисель Сладкий момент",{"$f":"SUM(B96:B103)","v":0},{"$f":"SUM(C96:C103)","v":17},0,0,0,0,0,0,0,0,0,0,0,0,0,0,0,0,0,0,0,0,17]
["              1-84-005001 Желе со вкусом вишни,45г",null,25,null,null,null,null,null,null,null,null,null,null,null,null,null,null,null,null,null,null,null,null,25]
["              1-84-005002 Желе со вкусом апельсина,45г",null,36,null,null,null,null,null,null,null,null,null,null,null,null,null,null,null,null,null,null,null,null,36]
["              1-84-005003 Желе со вкусом клубники,45г",null,null,null,null,null,null,null,null,null,null,null,null,null,null,null,null,null,null,null,null,null,null,0]
["              1-84-005004 Желе со вкусом малины,45г",null,null,null,null,null,null,null,null,null,null,null,null,null,null,null,null,null,null,null,null,null,null,0]
["              1-84-005005 Желе со вкусом лесной ягоды,45г",null,null,null,null,null,null,null,null,null,null,null,null,null,null,null,null,null,null,null,null,null,null,0]
["              1-84-005006 Желе со вкусом лимона,45г",null,null,null,null,null,null,null,null,null,null,null,null,null,null,null,null,null,null,null,null,null,null,0]
["              1-84-075003 Желе со вкусом клубники,45гх5шт.",null,null,null,null,null,null,null,null,null,null,null,null,null,null,null,null,null,null,null,null,null,null,0]
["              1-84-075004 Желе со вкусом малины,45гх5шт.",null,null,null,null,null,null,null,null,null,null,null,null,null,null,null,null,null,null,null,null,null,null,0]
["              1-84-075005 Желе со вкусом лесной ягоды,45г*5",null,null,null,null,null,null,null,null,null,null,null,null,null,null,null,null,null,null,null,null,null,null,0]
["              1-84-075006 Желе со вкусом лимона,45г*5",null,null,null,null,null,null,null,null,null,null,null,null,null,null,null,null,null,null,null,null,null,null,0]
["              1-84-075101 Желе со вкусом вишни,45гх5шт.",null,null,null,null,null,null,null,null,null,null,null,null,null,null,null,null,null,null,null,null,null,null,0]
[null,null,null,null,null,null,null,null,null,null,null,null,null,null,null,null,null,null,null,null,null,null,null,0]
[null,null,null,null,null,null,null,null,null,null,null,null,null,null,null,null,null,null,null,null,null,null,null,0]
[null,null,null,null,null,null,null,null,null,null,null,null,null,null,null,null,null,null,null,null,null,null,null,0]
[null,null,null,null,null,null,null,null,null,null,null,null,null,null,null,null,null,null,null,null,null,null,null,0]
[null,null,null,null,null,null,null,null,null,null,null,null,null,null,null,null,null,null,null,null,null,null,null,0]
["Всего  желе",{"$f":"SUM(B105:B120)","v":0},{"$f":"SUM(C105:C120)","v":61},0,0,0,0,0,0,0,0,0,0,0,0,0,0,0,0,0,0,0,0,61]
[null,null,null,null,null,null,null,null,null,null,null,null,null,null,null,null,null,null,null,null,null,null,null,0]
["              1-84-047200 Крем Тирамису 70г",null,null,null,null,null,null,null,null,null,null,null,null,null,null,null,null,null,null,null,null,null,null,0]
["Другие десерты",{"$f":"SUM(B122:B123)","v":0},{"$f":"SUM(C122:C123)","v":0},0,0,0,0,0,0,0,0,0,0,0,0,0,0,0,0,0,0,0,0,0]
["Сумма Десертов всего",{"$f":"B124+B121+B104+B95+B85","v":0},{"$f":"C124+C121+C104+C95+C85","v":141},0,0,0,0,0,0,0,0,0,0,0,0,0,0,0,0,0,0,0,0,141]
[null,null,null,null,null,null,null,null,null,null,null,null,null,null,null,null,null,null,null,null,null,null,null,0]
["              1-66-100212 Пикантфикс - кисло-сладкий,100г",null,null,null,null,null,null,null,null,null,null,null,null,null,null,null,null,null,null,null,null,null,null,0]
["              1-66-100213 Пикантфикс - острый,100г",null,null,null,null,null,null,null,null,null,null,null,null,null,null,null,null,null,null,null,null,null,null,0]
["              1-66-100482 Пикантфикс острый 100г*5",null,null,null,null,null,null,null,null,null,null,null,null,null,null,null,null,null,null,null,null,null,null,0]
["              1-66-100496 Пикантфикс кисло-сладкий 100г*5",null,null,null,null,null,null,null,null,null,null,null,null,null,null,null,null,null,null,null,null,null,null,0]
["              1-84-008003 Консервант (бензоат натрия),7г",null,null,null,null,null,null,null,null,null,null,null,null,null,null,null,null,null,null,null,null,null,null,0]
["              1-84-078003 Консервант (бензоат натрия),7гх5шт.",null,null,null,null,null,null,null,null,null,null,null,null,null,null,null,null,null,null,null,null,null,null,0]
["              1-84-008004 Кислота лимонная пищевая,8г",null,null,null,null,null,null,null,null,null,null,null,null,null,null,null,null,null,null,null,null,null,null,{"$f":"SumHid(B133:W133)","v":0}]
["              1-84-078104 Кислота лимонная пищевая,8гх5шт.",null,null,null,null,null,null,null,null,null,null,null,null,null,null,null,null,null,null,null,null,null,null,0]
["              1-84-008005 Кислота лимонная пищевая 50г",null,null,null,null,null,null,null,null,null,null,null,null,null,null,null,null,null,null,null,null,null,null,0]
["              1-84-008001 Желфикс 2:1 для консервирования,40г",null,null,null,null,null,null,null,null,null,null,null,null,null,null,null,null,null,null,null,null,null,null,0]
["              1-84-008002 Желфикс 1:1 для консервирования,20г",null,null,null,null,null,null,null,null,null,null,null,null,null,null,null,null,null,null,null,null,null,null,0]
["              1-84-008201 Желфикс 2+1х2шт.",null,null,null,null,null,null,null,null,null,null,null,null,null,null,null,null,null,null,null,null,null,null,0]
["              1-84-078001 Желфикс 2:1, 40гх5шт.",null,null,null,null,null,null,null,null,null,null,null,null,null,null,null,null,null,null,null,null,null,null,0]
["              1-84-078002 Желфикс 1:1, 20гх5шт.",null,null,null,null,null,null,null,null,null,null,null,null,null,null,null,null,null,null,null,null,null,null,0]
["Всего  средств для консервирования",{"$f":"SUM(B126:B140)","v":0},0,0,0,0,0,0,0,0,0,0,0,0,0,0,0,0,0,0,0,0,0,0]
[null,null,null,null,null,null,null,null,null,null,null,null,null,null,null,null,null,null,null,null,null,null,null,0]
["              1-84-006420 Мюсли фруктовые без сахара,375г",null,2,null,null,null,null,null,null,null,null,null,null,null,null,null,null,null,null,null,null,null,null,2]
["              1-84-006421 Мюсли шоколадные,375г",null,2,null,null,null,null,null,null,null,null,null,null,null,null,null,null,null,null,null,null,null,null,2]
["              1-84-006423 Мюсли плюс без сахара,375г",null,null,null,null,null,null,null,null,null,null,null,null,null,null,null,null,null,null,null,null,null,null,0]
["              1-84-006424 Мюсли хрустящие с шоколадом,375г",null,2,null,null,null,null,null,null,null,null,null,null,null,null,null,null,null,null,null,null,null,null,2]
["              1-84-006425 Мюсли хрустящие,375г",null,null,null,null,null,null,null,null,null,null,null,null,null,null,null,null,null,null,null,null,null,null,0]
["              1-84-006428 Мюсли хрустящие с миндалем,375г",null,null,null,null,null,null,null,null,null,null,null,null,null,null,null,null,null,null,null,null,null,null,0]
["              1-84-006429 Мюсли хрустящие с банан. Шоколад, 375г",null,null,null,null,null,null,null,null,null,null,null,null,null,null,null,null,null,null,null,null,null,null,0]
["              1-84-006446 Мюсли хрустящие медовые,375г",null,null,null,null,null,null,null,null,null,null,null,null,null,null,null,null,null,null,null,null,null,null,0]
["              1-84-076420 Мюсли фруктовые без сахара,375гх2шт.",null,null,null,null,null,null,null,null,null,null,null,null,null,null,null,null,null,null,null,null,null,null,0]
["              1-84-076421 Мюсли шоколадные 375гх2",null,null,null,null,null,null,null,null,null,null,null,null,null,null,null,null,null,null,null,null,null,null,0]
["              1-84-076423 Мюсли плюс без сахара,375гх2шт.",null,null,null,null,null,null,null,null,null,null,null,null,null,null,null,null,null,null,null,null,null,null,0]
["              1-84-076425 Мюсли хрустящие,375гх2шт.",null,null,null,null,null,null,null,null,null,null,null,null,null,null,null,null,null,null,null,null,null,null,0]
["              1-84-076428 Мюсли хрустящие с миндалем,375гх2шт.",null,null,null,null,null,null,null,null,null,null,null,null,null,null,null,null,null,null,null,null,null,null,0]
["              1-84-076429 Мюсли хрустящие с банан.,375гх2шт.",null,null,null,null,null,null,null,null,null,null,null,null,null,null,null,null,null,null,null,null,null,null,0]
["              1-84-076446 Мюсли хрустящие медовые,375гх2шт.",null,null,null,null,null,null,null,null,null,null,null,null,null,null,null,null,null,null,null,null,null,null,0]
["Всего  Мюсли",{"$f":"SUM(B142:B157)","v":0},{"$f":"SUM(C142:C157)","v":6},0,0,0,0,0,0,0,0,0,0,0,0,0,0,0,0,0,0,0,0,6]
["Всего сухие продукты",{"$f":"B158+B141+B125+B73","v":0},{"$f":"C158+C141+C125+C73","v":159},0,53,0,11,0,0,11,0,0,0,0,0,120,0,0,0,0,0,0,0,354]
[null,null,null,null,null,null,null,null,null,null,null,null,null,null,null,null,null,null,null,null,null,null,null,0]
["              1-20-810100 Пицца Ристоранте Кальцоне Специале,290г",null,null,null,null,null,null,null,null,null,null,null,null,null,null,null,null,null,null,null,null,null,null,0]
["              1-20-810200 Пицца Ристоранте Сыр и Помидоры 355г",null,7,null,null,null,null,null,null,null,null,null,null,null,null,null,null,null,null,null,null,null,null,7]
["              1-20-814800 Пицца\"Ристоранте\"Пиколиссима салями 275г",null,null,null,null,null,null,null,null,null,null,null,null,null,null,null,null,null,null,null,null,null,null,0]
[null,null,null,null,null,null,null,null,null,null,null,null,null,null,null,null,null,null,null,null,null,null,null,0]
["              1-20-818900 Пицца Ристоранте 4 вида сыра,340г",null,7,null,null,null,null,null,null,null,null,null,null,null,null,null,null,null,null,null,null,null,null,{"$f":"SumHid(B165:W165)","v":7}]
["              1-20-819000 Пицца Ристоранте с салями,320г",null,7,null,null,null,null,null,null,null,null,null,null,null,null,null,null,null,null,null,null,null,null,7]
["              1-20-819100 Пицца Ристоранте с шампиньонами,365г",null,null,null,null,null,null,null,null,null,null,null,null,null,null,null,null,null,null,null,null,null,null,0]
["              1-20-819200 Пицца Ристоранте с ветчиной,330г",null,null,null,null,null,null,null,null,null,null,null,null,null,null,null,null,null,null,null,null,null,null,0]
["              1-20-819500 Пицца Ристоранте Специале,330г",null,7,null,null,null,null,null,null,null,null,null,null,null,null,null,null,null,null,null,null,null,null,7]
["              1-20-819600 Пицца Ристоранте Гавайи,355г",null,null,null,null,null,null,null,null,null,null,null,null,null,null,null,null,null,null,null,null,null,null,0]
["              1-20-819800 Пицца Ристоранте Моццарелла,335г",null,null,null,null,null,null,null,null,null,null,null,null,null,null,null,null,null,null,null,null,null,null,0]
["              1-20-819900 Пицца Ристоранте вегетарианская,385г",null,null,null,null,null,null,null,null,null,null,null,null,null,null,null,null,null,null,null,null,null,null,0]
["              1-20-820200 Пицца Ристоранте Пепперони Салями 320г",null,null,null,null,null,null,null,null,null,null,null,null,null,null,null,null,null,null,null,null,null,null,0]
["              1-20-820300 Пицца Ристоранте Болоньезе 375г",null,null,null,null,null,null,null,null,null,null,null,null,null,null,null,null,null,null,null,null,null,null,0]
["              1-20-834000 Пицца Ристоранте Пиккола салями 280г",null,null,null,null,null,null,null,null,null,null,null,null,null,null,null,null,null,null,null,null,null,null,0]
["              1-20-834200 Пицца Ристоранте Пиккола Моцарелла,310г",null,null,null,null,null,null,null,null,null,null,null,null,null,null,null,null,null,null,null,null,null,null,0]
[null,null,null,null,null,null,null,null,null,null,null,null,null,null,null,null,null,null,null,null,null,null,null,0]
[null,null,null,null,null,null,null,null,null,null,null,null,null,null,null,null,null,null,null,null,null,null,null,0]
[null,null,null,null,null,null,null,null,null,null,null,null,null,null,null,null,null,null,null,null,null,null,null,0]
[null,null,null,null,null,null,null,null,null,null,null,null,null,null,null,null,null,null,null,null,null,null,null,0]
["Всего  Ристоранте",{"$f":"SUM(B160:B180)","v":0},{"$f":"SUM(C160:C180)","v":28},0,0,0,0,0,0,0,0,0,0,0,0,0,0,0,0,0,0,0,0,28]
["              1-20-205100 Пицца Каса ди Мама \"Ветчина-Грибы\"380г",null,5,null,null,null,null,null,null,null,null,null,null,null,null,null,null,null,null,null,null,null,null,5]
["              1-20-205200 Пицца Каса ди Мама \"4вида сыра\"395г",null,5,null,null,null,null,null,null,null,null,null,null,null,null,null,null,null,null,null,null,null,null,5]
["              1-20-205300 Пицца Каса ди Мама \"Специале\" 405г",null,5,null,null,null,null,null,null,null,null,null,null,null,null,null,null,null,null,null,null,null,null,5]
["              1-20-205400 Пицца Каса ди Мама\"Салями\"380г",null,null,null,null,null,null,null,null,null,null,null,null,null,null,null,null,null,null,null,null,null,null,0]
[null,null,null,null,null,null,null,null,null,null,null,null,null,null,null,null,null,null,null,null,null,null,null,0]
[null,null,null,null,null,null,null,null,null,null,null,null,null,null,null,null,null,null,null,null,null,null,null,0]
["Всего  Каса ди Мама",{"$f":"SUM(B182:B187)","v":0},{"$f":"SUM(C182:C187)","v":15},0,0,0,0,0,0,0,0,0,0,0,0,0,0,0,0,0,0,0,0,15]
[null,null,null,null,null,null,null,null,null,null,null,null,null,null,null,null,null,null,null,null,null,null,null,0]
["ИТОГО:",{"$f":"B10+B16+B26+B35+B46+B55+B67+B72+B85+B95+B104+B121+B124+B141+B158+B181+B188","v":0},{"$f":"C10+C16+C26+C35+C46+C55+C67+C72+C85+C95+C104+C121+C124+C141+C158+C181+C188","v":203},0,60,6,16,7,12,16,8,12,1,5,7,126,4,8,17,5,2,0,0,515]

{"sheet":"Нижний Новгород","index":4,"n_rows":25,"n_cols":31,"rows_kept":25,"cut":false,"hidden":false,"merged":[[24,1,24,7]]}
[]
[null,{"$f":"MID(CELL(\"ИМЯФАЙЛА\",A1),SEARCH(\"]\",CELL(\"ИМЯФАЙЛА\",A1))+1,255)","v":"Нижний Новгород"}]
[]
[null,null,"Итог","Метро","Перекресток","Х","Х","Х","Ф-лы","Кл1","Кл3","Кл7","Мг9",null,null,null,null,null,0,0,0,0,0,0,0,0,0,0,0,0,0]
["Метро","Разрыхлитель теста,10г. ",{"$f":"SUM(J5:AE5)","v":17},{"$f":"SUMIF($J$4:$AE$4,D$4&\"*\",J5:AE5)","v":0},{"$f":"SUMIF($J$4:$AE$4,E$4&\"*\",J5:AE5)","v":0},{"$f":"SUMIF($J$4:$AE$4,F$4&\"*\",J5:AE5)","v":0},{"$f":"SUMIF($J$4:$AE$4,G$4&\"*\",J5:AE5)","v":0},{"$f":"SUMIF($J$4:$DF$4,H$4&\"*\",J5:DF5)","v":0},{"$f":"IFERROR(HLOOKUP(I$4,СВОДНЫЙ!$A$4:$X$186,2,FALSE),)","v":0},{"$f":"IFERROR(HLOOKUP(J$4,СВОДНЫЙ!$A$4:$X$186,2,FALSE),)","v":1},{"$f":"IFERROR(HLOOKUP(K$4,СВОДНЫЙ!$A$4:$X$186,2,FALSE),)","v":5},{"$f":"IFERROR(HLOOKUP(L$4,СВОДНЫЙ!$A$4:$X$186,2,FALSE),)","v":11},{"$f":"IFERROR(HLOOKUP(M$4,СВОДНЫЙ!$A$4:$X$186,2,FALSE),)","v":0},{"$f":"IFERROR(HLOOKUP(N$4,СВОДНЫЙ!$A$4:$X$186,2,FALSE),)","v":0},{"$f":"IFERROR(HLOOKUP(O$4,СВОДНЫЙ!$A$4:$X$186,2,FALSE),)","v":0},{"$f":"IFERROR(HLOOKUP(P$4,СВОДНЫЙ!$A$4:$X$186,2,FALSE),)","v":0},{"$f":"IFERROR(HLOOKUP(Q$4,СВОДНЫЙ!$A$4:$X$186,2,FALSE),)","v":0},{"$f":"IFERROR(HLOOKUP(R$4,СВОДНЫЙ!$A$4:$X$186,2,FALSE),)","v":0},{"$f":"IFERROR(HLOOKUP(S$4,СВОДНЫЙ!$A$4:$X$186,2,FALSE),)","v":0},{"$f":"IFERROR(HLOOKUP(T$4,СВОДНЫЙ!$A$4:$X$186,2,FALSE),)","v":0},{"$f":"IFERROR(HLOOKUP(U$4,СВОДНЫЙ!$A$4:$X$186,2,FALSE),)","v":0},{"$f":"IFERROR(HLOOKUP(V$4,СВОДНЫЙ!$A$4:$X$186,2,FALSE),)","v":0},{"$f":"IFERROR(HLOOKUP(W$4,СВОДНЫЙ!$A$4:$X$186,2,FALSE),)","v":0},{"$f":"IFERROR(HLOOKUP(X$4,СВОДНЫЙ!$A$4:$X$186,2,FALSE),)","v":0},{"$f":"IFERROR(HLOOKUP(Y$4,СВОДНЫЙ!$A$4:$X$186,2,FALSE),)","v":0},{"$f":"IFERROR(HLOOKUP(Z$4,СВОДНЫЙ!$A$4:$X$186,2,FALSE),)","v":0},{"$f":"IFERROR(HLOOKUP(AA$4,СВОДНЫЙ!$A$4:$X$186,2,FALSE),)","v":0},{"$f":"IFERROR(HLOOKUP(AB$4,СВОДНЫЙ!$A$4:$X$186,2,FALSE),)","v":0},{"$f":"IFERROR(HLOOKUP(AC$4,СВОДНЫЙ!$A$4:$X$186,2,FALSE),)","v":0},{"$f":"IFERROR(HLOOKUP(AD$4,СВОДНЫЙ!$A$4:$X$186,2,FALSE),)","v":0},{"$f":"IFERROR(HLOOKUP(AE$4,СВОДНЫЙ!$A$4:$X$186,2,FALSE),)","v":0}]
["Ашан","Дрожжи сух.мгновеннодейств. ",{"$f":"SUM(J6:AE6)","v":4},0,0,0,0,{"$f":"SUMIF($J$4:$DF$4,H$4&\"*\",J6:DF6)","v":0},{"$f":"IFERROR(HLOOKUP(I$4,СВОДНЫЙ!$A$4:$X$186,13,FALSE),)","v":0},{"$f":"IFERROR(HLOOKUP(J$4,СВОДНЫЙ!$A$4:$X$186,13,FALSE),)","v":0},{"$f":"IFERROR(HLOOKUP(K$4,СВОДНЫЙ!$A$4:$X$186,13,FALSE),)","v":2},{"$f":"IFERROR(HLOOKUP(L$4,СВОДНЫЙ!$A$4:$X$186,13,FALSE),)","v":0},{"$f":"IFERROR(HLOOKUP(M$4,СВОДНЫЙ!$A$4:$X$186,13,FALSE),)","v":2},{"$f":"IFERROR(HLOOKUP(N$4,СВОДНЫЙ!$A$4:$X$186,13,FALSE),)","v":0},{"$f":"IFERROR(HLOOKUP(O$4,СВОДНЫЙ!$A$4:$X$186,13,FALSE),)","v":0},{"$f":"IFERROR(HLOOKUP(P$4,СВОДНЫЙ!$A$4:$X$186,13,FALSE),)","v":0},{"$f":"IFERROR(HLOOKUP(Q$4,СВОДНЫЙ!$A$4:$X$186,13,FALSE),)","v":0},{"$f":"IFERROR(HLOOKUP(R$4,СВОДНЫЙ!$A$4:$X$186,13,FALSE),)","v":0},{"$f":"IFERROR(HLOOKUP(S$4,СВОДНЫЙ!$A$4:$X$186,13,FALSE),)","v":0},{"$f":"IFERROR(HLOOKUP(T$4,СВОДНЫЙ!$A$4:$X$186,13,FALSE),)","v":0},{"$f":"IFERROR(HLOOKUP(U$4,СВОДНЫЙ!$A$4:$X$186,13,FALSE),)","v":0},{"$f":"IFERROR(HLOOKUP(V$4,СВОДНЫЙ!$A$4:$X$186,13,FALSE),)","v":0},{"$f":"IFERROR(HLOOKUP(W$4,СВОДНЫЙ!$A$4:$X$186,13,FALSE),)","v":0},{"$f":"IFERROR(HLOOKUP(X$4,СВОДНЫЙ!$A$4:$X$186,13,FALSE),)","v":0},{"$f":"IFERROR(HLOOKUP(Y$4,СВОДНЫЙ!$A$4:$X$186,13,FALSE),)","v":0},{"$f":"IFERROR(HLOOKUP(Z$4,СВОДНЫЙ!$A$4:$X$186,13,FALSE),)","v":0},{"$f":"IFERROR(HLOOKUP(AA$4,СВОДНЫЙ!$A$4:$X$186,13,FALSE),)","v":0},{"$f":"IFERROR(HLOOKUP(AB$4,СВОДНЫЙ!$A$4:$X$186,13,FALSE),)","v":0},{"$f":"IFERROR(HLOOKUP(AC$4,СВОДНЫЙ!$A$4:$X$186,13,FALSE),)","v":0},{"$f":"IFERROR(HLOOKUP(AD$4,СВОДНЫЙ!$A$4:$X$186,13,FALSE),)","v":0},{"$f":"IFERROR(HLOOKUP(AE$4,СВОДНЫЙ!$A$4:$X$186,13,FALSE),)","v":0}]
["Перекресток","Ванильный сахар,8г. ",1,0,0,0,0,0,{"$f":"IFERROR(HLOOKUP(I$4,СВОДНЫЙ!$A$4:$X$186,23,FALSE),)","v":0},{"$f":"IFERROR(HLOOKUP(J$4,СВОДНЫЙ!$A$4:$X$186,23,FALSE),)","v":0},{"$f":"IFERROR(HLOOKUP(K$4,СВОДНЫЙ!$A$4:$X$186,23,FALSE),)","v":0},{"$f":"IFERROR(HLOOKUP(L$4,СВОДНЫЙ!$A$4:$X$186,23,FALSE),)","v":1},{"$f":"IFERROR(HLOOKUP(M$4,СВОДНЫЙ!$A$4:$X$186,23,FALSE),)","v":0},{"$f":"IFERROR(HLOOKUP(N$4,СВОДНЫЙ!$A$4:$X$186,23,FALSE),)","v":0},{"$f":"IFERROR(HLOOKUP(O$4,СВОДНЫЙ!$A$4:$X$186,23,FALSE),)","v":0},{"$f":"IFERROR(HLOOKUP(P$4,СВОДНЫЙ!$A$4:$X$186,23,FALSE),)","v":0},{"$f":"IFERROR(HLOOKUP(Q$4,СВОДНЫЙ!$A$4:$X$186,23,FALSE),)","v":0},{"$f":"IFERROR(HLOOKUP(R$4,СВОДНЫЙ!$A$4:$X$186,23,FALSE),)","v":0},{"$f":"IFERROR(HLOOKUP(S$4,СВОДНЫЙ!$A$4:$X$186,23,FALSE),)","v":0},{"$f":"IFERROR(HLOOKUP(T$4,СВОДНЫЙ!$A$4:$X$186,23,FALSE),)","v":0},{"$f":"IFERROR(HLOOKUP(U$4,СВОДНЫЙ!$A$4:$X$186,23,FALSE),)","v":0},{"$f":"IFERROR(HLOOKUP(V$4,СВОДНЫЙ!$A$4:$X$186,23,FALSE),)","v":0},{"$f":"IFERROR(HLOOKUP(W$4,СВОДНЫЙ!$A$4:$X$186,23,FALSE),)","v":0},{"$f":"IFERROR(HLOOKUP(X$4,СВОДНЫЙ!$A$4:$X$186,23,FALSE),)","v":0},{"$f":"IFERROR(HLOOKUP(Y$4,СВОДНЫЙ!$A$4:$X$186,23,FALSE),)","v":0},{"$f":"IFERROR(HLOOKUP(Z$4,СВОДНЫЙ!$A$4:$X$186,23,FALSE),)","v":0},{"$f":"IFERROR(HLOOKUP(AA$4,СВОДНЫЙ!$A$4:$X$186,23,FALSE),)","v":0},{"$f":"IFERROR(HLOOKUP(AB$4,СВОДНЫЙ!$A$4:$X$186,23,FALSE),)","v":0},{"$f":"IFERROR(HLOOKUP(AC$4,СВОДНЫЙ!$A$4:$X$186,23,FALSE),)","v":0},{"$f":"IFERROR(HLOOKUP(AD$4,СВОДНЫЙ!$A$4:$X$186,23,FALSE),)","v":0},{"$f":"IFERROR(HLOOKUP(AE$4,СВОДНЫЙ!$A$4:$X$186,23,FALSE),)","v":0}]
["Тандер","Желатин быстрорастворимый,10г ",0,0,0,0,0,0,{"$f":"IFERROR(HLOOKUP(I$4,СВОДНЫЙ!$A$4:$X$186,32,FALSE),)","v":0},{"$f":"IFERROR(HLOOKUP(J$4,СВОДНЫЙ!$A$4:$X$186,32,FALSE),)","v":0},{"$f":"IFERROR(HLOOKUP(K$4,СВОДНЫЙ!$A$4:$X$186,32,FALSE),)","v":0},{"$f":"IFERROR(HLOOKUP(L$4,СВОДНЫЙ!$A$4:$X$186,32,FALSE),)","v":0},{"$f":"IFERROR(HLOOKUP(M$4,СВОДНЫЙ!$A$4:$X$186,32,FALSE),)","v":0},{"$f":"IFERROR(HLOOKUP(N$4,СВОДНЫЙ!$A$4:$X$186,32,FALSE),)","v":0},{"$f":"IFERROR(HLOOKUP(O$4,СВОДНЫЙ!$A$4:$X$186,32,FALSE),)","v":0},{"$f":"IFERROR(HLOOKUP(P$4,СВОДНЫЙ!$A$4:$X$186,32,FALSE),)","v":0},{"$f":"IFERROR(HLOOKUP(Q$4,СВОДНЫЙ!$A$4:$X$186,32,FALSE),)","v":0},{"$f":"IFERROR(HLOOKUP(R$4,СВОДНЫЙ!$A$4:$X$186,32,FALSE),)","v":0},{"$f":"IFERROR(HLOOKUP(S$4,СВОДНЫЙ!$A$4:$X$186,32,FALSE),)","v":0},{"$f":"IFERROR(HLOOKUP(T$4,СВОДНЫЙ!$A$4:$X$186,32,FALSE),)","v":0},{"$f":"IFERROR(HLOOKUP(U$4,СВОДНЫЙ!$A$4:$X$186,32,FALSE),)","v":0},{"$f":"IFERROR(HLOOKUP(V$4,СВОДНЫЙ!$A$4:$X$186,32,FALSE),)","v":0},{"$f":"IFERROR(HLOOKUP(W$4,СВОДНЫЙ!$A$4:$X$186,32,FALSE),)","v":0},{"$f":"IFERROR(HLOOKUP(X$4,СВОДНЫЙ!$A$4:$X$186,32,FALSE),)","v":0},{"$f":"IFERROR(HLOOKUP(Y$4,СВОДНЫЙ!$A$4:$X$186,32,FALSE),)","v":0},{"$f":"IFERROR(HLOOKUP(Z$4,СВОДНЫЙ!$A$4:$X$186,32,FALSE),)","v":0},{"$f":"IFERROR(HLOOKUP(AA$4,СВОДНЫЙ!$A$4:$X$186,32,FALSE),)","v":0},{"$f":"IFERROR(HLOOKUP(AB$4,СВОДНЫЙ!$A$4:$X$186,32,FALSE),)","v":0},{"$f":"IFERROR(HLOOKUP(AC$4,СВОДНЫЙ!$A$4:$X$186,32,FALSE),)","v":0},{"$f":"IFERROR(HLOOKUP(AD$4,СВОДНЫЙ!$A$4:$X$186,32,FALSE),)","v":0},{"$f":"IFERROR(HLOOKUP(AE$4,СВОДНЫЙ!$A$4:$X$186,32,FALSE),)","v":0}]
["Х","Прочие ингредиенты для выпечки",65,0,0,0,0,0,{"$f":"IFERROR(HLOOKUP(I$4,СВОДНЫЙ!$A$4:$X$186,70,FALSE),)","v":0},{"$f":"IFERROR(HLOOKUP(J$4,СВОДНЫЙ!$A$4:$X$186,70,FALSE),)","v":12},{"$f":"IFERROR(HLOOKUP(K$4,СВОДНЫЙ!$A$4:$X$186,70,FALSE),)","v":53},{"$f":"IFERROR(HLOOKUP(L$4,СВОДНЫЙ!$A$4:$X$186,70,FALSE),)","v":0},{"$f":"IFERROR(HLOOKUP(M$4,СВОДНЫЙ!$A$4:$X$186,70,FALSE),)","v":0},{"$f":"IFERROR(HLOOKUP(N$4,СВОДНЫЙ!$A$4:$X$186,70,FALSE),)","v":0},{"$f":"IFERROR(HLOOKUP(O$4,СВОДНЫЙ!$A$4:$X$186,70,FALSE),)","v":0},{"$f":"IFERROR(HLOOKUP(P$4,СВОДНЫЙ!$A$4:$X$186,70,FALSE),)","v":0},{"$f":"IFERROR(HLOOKUP(Q$4,СВОДНЫЙ!$A$4:$X$186,70,FALSE),)","v":0},{"$f":"IFERROR(HLOOKUP(R$4,СВОДНЫЙ!$A$4:$X$186,70,FALSE),)","v":0},{"$f":"IFERROR(HLOOKUP(S$4,СВОДНЫЙ!$A$4:$X$186,70,FALSE),)","v":0},{"$f":"IFERROR(HLOOKUP(T$4,СВОДНЫЙ!$A$4:$X$186,70,FALSE),)","v":0},{"$f":"IFERROR(HLOOKUP(U$4,СВОДНЫЙ!$A$4:$X$186,70,FALSE),)","v":0},{"$f":"IFERROR(HLOOKUP(V$4,СВОДНЫЙ!$A$4:$X$186,70,FALSE),)","v":0},{"$f":"IFERROR(HLOOKUP(W$4,СВОДНЫЙ!$A$4:$X$186,70,FALSE),)","v":0},{"$f":"IFERROR(HLOOKUP(X$4,СВОДНЫЙ!$A$4:$X$186,70,FALSE),)","v":0},{"$f":"IFERROR(HLOOKUP(Y$4,СВОДНЫЙ!$A$4:$X$186,70,FALSE),)","v":0},{"$f":"IFERROR(HLOOKUP(Z$4,СВОДНЫЙ!$A$4:$X$186,70,FALSE),)","v":0},{"$f":"IFERROR(HLOOKUP(AA$4,СВОДНЫЙ!$A$4:$X$186,70,FALSE),)","v":0},{"$f":"IFERROR(HLOOKUP(AB$4,СВОДНЫЙ!$A$4:$X$186,70,FALSE),)","v":0},{"$f":"IFERROR(HLOOKUP(AC$4,СВОДНЫЙ!$A$4:$X$186,70,FALSE),)","v":0},{"$f":"IFERROR(HLOOKUP(AD$4,СВОДНЫЙ!$A$4:$X$186,70,FALSE),)","v":0},{"$f":"IFERROR(HLOOKUP(AE$4,СВОДНЫЙ!$A$4:$X$186,70,FALSE),)","v":0}]
[null,"Всего ингредиенты для выпечки",87,0,0,0,0,0,{"$f":"SUM(I5:I9)","v":0},{"$f":"SUM(J5:J9)","v":13},{"$f":"SUM(K5:K9)","v":60},12,2,0,0,0,0,0,0,0,0,0,0,0,0,0,0,0,0,0,0]
[null,"Всего пудинги",35,0,0,0,0,0,{"$f":"IFERROR(HLOOKUP(I$4,СВОДНЫЙ!$A$4:$X$186,82,FALSE),)","v":0},{"$f":"IFERROR(HLOOKUP(J$4,СВОДНЫЙ!$A$4:$X$186,82,FALSE),)","v":35},{"$f":"IFERROR(HLOOKUP(K$4,СВОДНЫЙ!$A$4:$X$186,82,FALSE),)","v":0},{"$f":"IFERROR(HLOOKUP(L$4,СВОДНЫЙ!$A$4:$X$186,82,FALSE),)","v":0},{"$f":"IFERROR(HLOOKUP(M$4,СВОДНЫЙ!$A$4:$X$186,82,FALSE),)","v":0},{"$f":"IFERROR(HLOOKUP(N$4,СВОДНЫЙ!$A$4:$X$186,82,FALSE),)","v":0},{"$f":"IFERROR(HLOOKUP(O$4,СВОДНЫЙ!$A$4:$X$186,82,FALSE),)","v":0},{"$f":"IFERROR(HLOOKUP(P$4,СВОДНЫЙ!$A$4:$X$186,82,FALSE),)","v":0},{"$f":"IFERROR(HLOOKUP(Q$4,СВОДНЫЙ!$A$4:$X$186,82,FALSE),)","v":0},{"$f":"IFERROR(HLOOKUP(R$4,СВОДНЫЙ!$A$4:$X$186,82,FALSE),)","v":0},{"$f":"IFERROR(HLOOKUP(S$4,СВОДНЫЙ!$A$4:$X$186,82,FALSE),)","v":0},{"$f":"IFERROR(HLOOKUP(T$4,СВОДНЫЙ!$A$4:$X$186,82,FALSE),)","v":0},{"$f":"IFERROR(HLOOKUP(U$4,СВОДНЫЙ!$A$4:$X$186,82,FALSE),)","v":0},{"$f":"IFERROR(HLOOKUP(V$4,СВОДНЫЙ!$A$4:$X$186,82,FALSE),)","v":0},{"$f":"IFERROR(HLOOKUP(W$4,СВОДНЫЙ!$A$4:$X$186,82,FALSE),)","v":0},{"$f":"IFERROR(HLOOKUP(X$4,СВОДНЫЙ!$A$4:$X$186,82,FALSE),)","v":0},{"$f":"IFERROR(HLOOKUP(Y$4,СВОДНЫЙ!$A$4:$X$186,82,FALSE),)","v":0},{"$f":"IFERROR(HLOOKUP(Z$4,СВОДНЫЙ!$A$4:$X$186,82,FALSE),)","v":0},{"$f":"IFERROR(HLOOKUP(AA$4,СВОДНЫЙ!$A$4:$X$186,82,FALSE),)","v":0},{"$f":"IFERROR(HLOOKUP(AB$4,СВОДНЫЙ!$A$4:$X$186,82,FALSE),)","v":0},{"$f":"IFERROR(HLOOKUP(AC$4,СВОДНЫЙ!$A$4:$X$186,82,FALSE),)","v":0},{"$f":"IFERROR(HLOOKUP(AD$4,СВОДНЫЙ!$A$4:$X$186,82,FALSE),)","v":0},{"$f":"IFERROR(HLOOKUP(AE$4,СВОДНЫЙ!$A$4:$X$186,82,FALSE),)","v":0}]
[null,"Всего трад. кисель",28,0,0,0,0,0,{"$f":"IFERROR(HLOOKUP(I$4,СВОДНЫЙ!$A$4:$X$186,92,FALSE),)","v":0},{"$f":"IFERROR(HLOOKUP(J$4,СВОДНЫЙ!$A$4:$X$186,92,FALSE),)","v":28},{"$f":"IFERROR(HLOOKUP(K$4,СВОДНЫЙ!$A$4:$X$186,92,FALSE),)","v":0},{"$f":"IFERROR(HLOOKUP(L$4,СВОДНЫЙ!$A$4:$X$186,92,FALSE),)","v":0},{"$f":"IFERROR(HLOOKUP(M$4,СВОДНЫЙ!$A$4:$X$186,92,FALSE),)","v":0},{"$f":"IFERROR(HLOOKUP(N$4,СВОДНЫЙ!$A$4:$X$186,92,FALSE),)","v":0},{"$f":"IFERROR(HLOOKUP(O$4,СВОДНЫЙ!$A$4:$X$186,92,FALSE),)","v":0},{"$f":"IFERROR(HLOOKUP(P$4,СВОДНЫЙ!$A$4:$X$186,92,FALSE),)","v":0},{"$f":"IFERROR(HLOOKUP(Q$4,СВОДНЫЙ!$A$4:$X$186,92,FALSE),)","v":0},{"$f":"IFERROR(HLOOKUP(R$4,СВОДНЫЙ!$A$4:$X$186,92,FALSE),)","v":0},{"$f":"IFERROR(HLOOKUP(S$4,СВОДНЫЙ!$A$4:$X$186,92,FALSE),)","v":0},{"$f":"IFERROR(HLOOKUP(T$4,СВОДНЫЙ!$A$4:$X$186,92,FALSE),)","v":0},{"$f":"IFERROR(HLOOKUP(U$4,СВОДНЫЙ!$A$4:$X$186,92,FALSE),)","v":0},{"$f":"IFERROR(HLOOKUP(V$4,СВОДНЫЙ!$A$4:$X$186,92,FALSE),)","v":0},{"$f":"IFERROR(HLOOKUP(W$4,СВОДНЫЙ!$A$4:$X$186,92,FALSE),)","v":0},{"$f":"IFERROR(HLOOKUP(X$4,СВОДНЫЙ!$A$4:$X$186,92,FALSE),)","v":0},{"$f":"IFERROR(HLOOKUP(Y$4,СВОДНЫЙ!$A$4:$X$186,92,FALSE),)","v":0},{"$f":"IFERROR(HLOOKUP(Z$4,СВОДНЫЙ!$A$4:$X$186,92,FALSE),)","v":0},{"$f":"IFERROR(HLOOKUP(AA$4,СВОДНЫЙ!$A$4:$X$186,92,FALSE),)","v":0},{"$f":"IFERROR(HLOOKUP(AB$4,СВОДНЫЙ!$A$4:$X$186,92,FALSE),)","v":0},{"$f":"IFERROR(HLOOKUP(AC$4,СВОДНЫЙ!$A$4:$X$186,92,FALSE),)","v":0},{"$f":"IFERROR(HLOOKUP(AD$4,СВОДНЫЙ!$A$4:$X$186,92,FALSE),)","v":0},{"$f":"IFERROR(HLOOKUP(AE$4,СВОДНЫЙ!$A$4:$X$186,92,FALSE),)","v":0}]
[null,"Всего кисель \"Сладкий Момент\"",17,0,0,0,0,0,{"$f":"IFERROR(HLOOKUP(I$4,СВОДНЫЙ!$A$4:$X$186,101,FALSE),)","v":0},{"$f":"IFERROR(HLOOKUP(J$4,СВОДНЫЙ!$A$4:$X$186,101,FALSE),)","v":17},{"$f":"IFERROR(HLOOKUP(K$4,СВОДНЫЙ!$A$4:$X$186,101,FALSE),)","v":0},{"$f":"IFERROR(HLOOKUP(L$4,СВОДНЫЙ!$A$4:$X$186,101,FALSE),)","v":0},{"$f":"IFERROR(HLOOKUP(M$4,СВОДНЫЙ!$A$4:$X$186,101,FALSE),)","v":0},{"$f":"IFERROR(HLOOKUP(N$4,СВОДНЫЙ!$A$4:$X$186,101,FALSE),)","v":0},{"$f":"IFERROR(HLOOKUP(O$4,СВОДНЫЙ!$A$4:$X$186,101,FALSE),)","v":0},{"$f":"IFERROR(HLOOKUP(P$4,СВОДНЫЙ!$A$4:$X$186,101,FALSE),)","v":0},{"$f":"IFERROR(HLOOKUP(Q$4,СВОДНЫЙ!$A$4:$X$186,101,FALSE),)","v":0},{"$f":"IFERROR(HLOOKUP(R$4,СВОДНЫЙ!$A$4:$X$186,101,FALSE),)","v":0},{"$f":"IFERROR(HLOOKUP(S$4,СВОДНЫЙ!$A$4:$X$186,101,FALSE),)","v":0},{"$f":"IFERROR(HLOOKUP(T$4,СВОДНЫЙ!$A$4:$X$186,101,FALSE),)","v":0},{"$f":"IFERROR(HLOOKUP(U$4,СВОДНЫЙ!$A$4:$X$186,101,FALSE),)","v":0},{"$f":"IFERROR(HLOOKUP(V$4,СВОДНЫЙ!$A$4:$X$186,101,FALSE),)","v":0},{"$f":"IFERROR(HLOOKUP(W$4,СВОДНЫЙ!$A$4:$X$186,101,FALSE),)","v":0},{"$f":"IFERROR(HLOOKUP(X$4,СВОДНЫЙ!$A$4:$X$186,101,FALSE),)","v":0},{"$f":"IFERROR(HLOOKUP(Y$4,СВОДНЫЙ!$A$4:$X$186,101,FALSE),)","v":0},{"$f":"IFERROR(HLOOKUP(Z$4,СВОДНЫЙ!$A$4:$X$186,101,FALSE),)","v":0},{"$f":"IFERROR(HLOOKUP(AA$4,СВОДНЫЙ!$A$4:$X$186,101,FALSE),)","v":0},{"$f":"IFERROR(HLOOKUP(AB$4,СВОДНЫЙ!$A$4:$X$186,101,FALSE),)","v":0},{"$f":"IFERROR(HLOOKUP(AC$4,СВОДНЫЙ!$A$4:$X$186,101,FALSE),)","v":0},{"$f":"IFERROR(HLOOKUP(AD$4,СВОДНЫЙ!$A$4:$X$186,101,FALSE),)","v":0},{"$f":"IFERROR(HLOOKUP(AE$4,СВОДНЫЙ!$A$4:$X$186,101,FALSE),)","v":0}]
[null,"Всего желе",61,0,0,0,0,0,{"$f":"IFERROR(HLOOKUP(I$4,СВОДНЫЙ!$A$4:$X$186,118,FALSE),)","v":0},{"$f":"IFERROR(HLOOKUP(J$4,СВОДНЫЙ!$A$4:$X$186,118,FALSE),)","v":61},{"$f":"IFERROR(HLOOKUP(K$4,СВОДНЫЙ!$A$4:$X$186,118,FALSE),)","v":0},{"$f":"IFERROR(HLOOKUP(L$4,СВОДНЫЙ!$A$4:$X$186,118,FALSE),)","v":0},{"$f":"IFERROR(HLOOKUP(M$4,СВОДНЫЙ!$A$4:$X$186,118,FALSE),)","v":0},{"$f":"IFERROR(HLOOKUP(N$4,СВОДНЫЙ!$A$4:$X$186,118,FALSE),)","v":0},{"$f":"IFERROR(HLOOKUP(O$4,СВОДНЫЙ!$A$4:$X$186,118,FALSE),)","v":0},{"$f":"IFERROR(HLOOKUP(P$4,СВОДНЫЙ!$A$4:$X$186,118,FALSE),)","v":0},{"$f":"IFERROR(HLOOKUP(Q$4,СВОДНЫЙ!$A$4:$X$186,118,FALSE),)","v":0},{"$f":"IFERROR(HLOOKUP(R$4,СВОДНЫЙ!$A$4:$X$186,118,FALSE),)","v":0},{"$f":"IFERROR(HLOOKUP(S$4,СВОДНЫЙ!$A$4:$X$186,118,FALSE),)","v":0},{"$f":"IFERROR(HLOOKUP(T$4,СВОДНЫЙ!$A$4:$X$186,118,FALSE),)","v":0},{"$f":"IFERROR(HLOOKUP(U$4,СВОДНЫЙ!$A$4:$X$186,118,FALSE),)","v":0},{"$f":"IFERROR(HLOOKUP(V$4,СВОДНЫЙ!$A$4:$X$186,118,FALSE),)","v":0},{"$f":"IFERROR(HLOOKUP(W$4,СВОДНЫЙ!$A$4:$X$186,118,FALSE),)","v":0},{"$f":"IFERROR(HLOOKUP(X$4,СВОДНЫЙ!$A$4:$X$186,118,FALSE),)","v":0},{"$f":"IFERROR(HLOOKUP(Y$4,СВОДНЫЙ!$A$4:$X$186,118,FALSE),)","v":0},{"$f":"IFERROR(HLOOKUP(Z$4,СВОДНЫЙ!$A$4:$X$186,118,FALSE),)","v":0},{"$f":"IFERROR(HLOOKUP(AA$4,СВОДНЫЙ!$A$4:$X$186,118,FALSE),)","v":0},{"$f":"IFERROR(HLOOKUP(AB$4,СВОДНЫЙ!$A$4:$X$186,118,FALSE),)","v":0},{"$f":"IFERROR(HLOOKUP(AC$4,СВОДНЫЙ!$A$4:$X$186,118,FALSE),)","v":0},{"$f":"IFERROR(HLOOKUP(AD$4,СВОДНЫЙ!$A$4:$X$186,118,FALSE),)","v":0},{"$f":"IFERROR(HLOOKUP(AE$4,СВОДНЫЙ!$A$4:$X$186,118,FALSE),)","v":0}]
[null,"Другие десерты",0,0,0,0,0,0,{"$f":"IFERROR(HLOOKUP(I$4,СВОДНЫЙ!$A$4:$X$186,121,FALSE),)","v":0},{"$f":"IFERROR(HLOOKUP(J$4,СВОДНЫЙ!$A$4:$X$186,121,FALSE),)","v":0},{"$f":"IFERROR(HLOOKUP(K$4,СВОДНЫЙ!$A$4:$X$186,121,FALSE),)","v":0},{"$f":"IFERROR(HLOOKUP(L$4,СВОДНЫЙ!$A$4:$X$186,121,FALSE),)","v":0},{"$f":"IFERROR(HLOOKUP(M$4,СВОДНЫЙ!$A$4:$X$186,121,FALSE),)","v":0},{"$f":"IFERROR(HLOOKUP(N$4,СВОДНЫЙ!$A$4:$X$186,121,FALSE),)","v":0},{"$f":"IFERROR(HLOOKUP(O$4,СВОДНЫЙ!$A$4:$X$186,121,FALSE),)","v":0},{"$f":"IFERROR(HLOOKUP(P$4,СВОДНЫЙ!$A$4:$X$186,121,FALSE),)","v":0},{"$f":"IFERROR(HLOOKUP(Q$4,СВОДНЫЙ!$A$4:$X$186,121,FALSE),)","v":0},{"$f":"IFERROR(HLOOKUP(R$4,СВОДНЫЙ!$A$4:$X$186,121,FALSE),)","v":0},{"$f":"IFERROR(HLOOKUP(S$4,СВОДНЫЙ!$A$4:$X$186,121,FALSE),)","v":0},{"$f":"IFERROR(HLOOKUP(T$4,СВОДНЫЙ!$A$4:$X$186,121,FALSE),)","v":0},{"$f":"IFERROR(HLOOKUP(U$4,СВОДНЫЙ!$A$4:$X$186,121,FALSE),)","v":0},{"$f":"IFERROR(HLOOKUP(V$4,СВОДНЫЙ!$A$4:$X$186,121,FALSE),)","v":0},{"$f":"IFERROR(HLOOKUP(W$4,СВОДНЫЙ!$A$4:$X$186,121,FALSE),)","v":0},{"$f":"IFERROR(HLOOKUP(X$4,СВОДНЫЙ!$A$4:$X$186,121,FALSE),)","v":0},{"$f":"IFERROR(HLOOKUP(Y$4,СВОДНЫЙ!$A$4:$X$186,121,FALSE),)","v":0},{"$f":"IFERROR(HLOOKUP(Z$4,СВОДНЫЙ!$A$4:$X$186,121,FALSE),)","v":0},{"$f":"IFERROR(HLOOKUP(AA$4,СВОДНЫЙ!$A$4:$X$186,121,FALSE),)","v":0},{"$f":"IFERROR(HLOOKUP(AB$4,СВОДНЫЙ!$A$4:$X$186,121,FALSE),)","v":0},{"$f":"IFERROR(HLOOKUP(AC$4,СВОДНЫЙ!$A$4:$X$186,121,FALSE),)","v":0},{"$f":"IFERROR(HLOOKUP(AD$4,СВОДНЫЙ!$A$4:$X$186,121,FALSE),)","v":0},{"$f":"IFERROR(HLOOKUP(AE$4,СВОДНЫЙ!$A$4:$X$186,121,FALSE),)","v":0}]
[null,"Сумма Десертов всего",141,0,0,0,0,0,{"$f":"SUM(I11:I15)","v":0},{"$f":"SUM(J11:J15)","v":141},{"$f":"SUM(K11:K15)","v":0},0,0,0,0,0,0,0,0,0,0,0,0,0,0,0,0,0,0,0,0]
[null,"Всего средства для консервир-я",0,0,0,0,0,0,{"$f":"IFERROR(HLOOKUP(I$4,СВОДНЫЙ!$A$4:$X$186,138,FALSE),)","v":0},{"$f":"IFERROR(HLOOKUP(J$4,СВОДНЫЙ!$A$4:$X$186,138,FALSE),)","v":0},{"$f":"IFERROR(HLOOKUP(K$4,СВОДНЫЙ!$A$4:$X$186,138,FALSE),)","v":0},{"$f":"IFERROR(HLOOKUP(L$4,СВОДНЫЙ!$A$4:$X$186,138,FALSE),)","v":0},{"$f":"IFERROR(HLOOKUP(M$4,СВОДНЫЙ!$A$4:$X$186,138,FALSE),)","v":0},{"$f":"IFERROR(HLOOKUP(N$4,СВОДНЫЙ!$A$4:$X$186,138,FALSE),)","v":0},{"$f":"IFERROR(HLOOKUP(O$4,СВОДНЫЙ!$A$4:$X$186,138,FALSE),)","v":0},{"$f":"IFERROR(HLOOKUP(P$4,СВОДНЫЙ!$A$4:$X$186,138,FALSE),)","v":0},{"$f":"IFERROR(HLOOKUP(Q$4,СВОДНЫЙ!$A$4:$X$186,138,FALSE),)","v":0},{"$f":"IFERROR(HLOOKUP(R$4,СВОДНЫЙ!$A$4:$X$186,138,FALSE),)","v":0},{"$f":"IFERROR(HLOOKUP(S$4,СВОДНЫЙ!$A$4:$X$186,138,FALSE),)","v":0},{"$f":"IFERROR(HLOOKUP(T$4,СВОДНЫЙ!$A$4:$X$186,138,FALSE),)","v":0},{"$f":"IFERROR(HLOOKUP(U$4,СВОДНЫЙ!$A$4:$X$186,138,FALSE),)","v":0},{"$f":"IFERROR(HLOOKUP(V$4,СВОДНЫЙ!$A$4:$X$186,138,FALSE),)","v":0},{"$f":"IFERROR(HLOOKUP(W$4,СВОДНЫЙ!$A$4:$X$186,138,FALSE),)","v":0},{"$f":"IFERROR(HLOOKUP(X$4,СВОДНЫЙ!$A$4:$X$186,138,FALSE),)","v":0},{"$f":"IFERROR(HLOOKUP(Y$4,СВОДНЫЙ!$A$4:$X$186,138,FALSE),)","v":0},{"$f":"IFERROR(HLOOKUP(Z$4,СВОДНЫЙ!$A$4:$X$186,138,FALSE),)","v":0},{"$f":"IFERROR(HLOOKUP(AA$4,СВОДНЫЙ!$A$4:$X$186,138,FALSE),)","v":0},{"$f":"IFERROR(HLOOKUP(AB$4,СВОДНЫЙ!$A$4:$X$186,138,FALSE),)","v":0},{"$f":"IFERROR(HLOOKUP(AC$4,СВОДНЫЙ!$A$4:$X$186,138,FALSE),)","v":0},{"$f":"IFERROR(HLOOKUP(AD$4,СВОДНЫЙ!$A$4:$X$186,138,FALSE),)","v":0},{"$f":"IFERROR(HLOOKUP(AE$4,СВОДНЫЙ!$A$4:$X$186,138,FALSE),)","v":0}]
[null,"Всего Виталис",6,0,0,0,0,0,{"$f":"IFERROR(HLOOKUP(I$4,СВОДНЫЙ!$A$4:$X$186,155,FALSE),)","v":0},{"$f":"IFERROR(HLOOKUP(J$4,СВОДНЫЙ!$A$4:$X$186,155,FALSE),)","v":6},{"$f":"IFERROR(HLOOKUP(K$4,СВОДНЫЙ!$A$4:$X$186,155,FALSE),)","v":0},{"$f":"IFERROR(HLOOKUP(L$4,СВОДНЫЙ!$A$4:$X$186,155,FALSE),)","v":0},{"$f":"IFERROR(HLOOKUP(M$4,СВОДНЫЙ!$A$4:$X$186,155,FALSE),)","v":0},{"$f":"IFERROR(HLOOKUP(N$4,СВОДНЫЙ!$A$4:$X$186,155,FALSE),)","v":0},{"$f":"IFERROR(HLOOKUP(O$4,СВОДНЫЙ!$A$4:$X$186,155,FALSE),)","v":0},{"$f":"IFERROR(HLOOKUP(P$4,СВОДНЫЙ!$A$4:$X$186,155,FALSE),)","v":0},{"$f":"IFERROR(HLOOKUP(Q$4,СВОДНЫЙ!$A$4:$X$186,155,FALSE),)","v":0},{"$f":"IFERROR(HLOOKUP(R$4,СВОДНЫЙ!$A$4:$X$186,155,FALSE),)","v":0},{"$f":"IFERROR(HLOOKUP(S$4,СВОДНЫЙ!$A$4:$X$186,155,FALSE),)","v":0},{"$f":"IFERROR(HLOOKUP(T$4,СВОДНЫЙ!$A$4:$X$186,155,FALSE),)","v":0},{"$f":"IFERROR(HLOOKUP(U$4,СВОДНЫЙ!$A$4:$X$186,155,FALSE),)","v":0},{"$f":"IFERROR(HLOOKUP(V$4,СВОДНЫЙ!$A$4:$X$186,155,FALSE),)","v":0},{"$f":"IFERROR(HLOOKUP(W$4,СВОДНЫЙ!$A$4:$X$186,155,FALSE),)","v":0},{"$f":"IFERROR(HLOOKUP(X$4,СВОДНЫЙ!$A$4:$X$186,155,FALSE),)","v":0},{"$f":"IFERROR(HLOOKUP(Y$4,СВОДНЫЙ!$A$4:$X$186,155,FALSE),)","v":0},{"$f":"IFERROR(HLOOKUP(Z$4,СВОДНЫЙ!$A$4:$X$186,155,FALSE),)","v":0},{"$f":"IFERROR(HLOOKUP(AA$4,СВОДНЫЙ!$A$4:$X$186,155,FALSE),)","v":0},{"$f":"IFERROR(HLOOKUP(AB$4,СВОДНЫЙ!$A$4:$X$186,155,FALSE),)","v":0},{"$f":"IFERROR(HLOOKUP(AC$4,СВОДНЫЙ!$A$4:$X$186,155,FALSE),)","v":0},{"$f":"IFERROR(HLOOKUP(AD$4,СВОДНЫЙ!$A$4:$X$186,155,FALSE),)","v":0},{"$f":"IFERROR(HLOOKUP(AE$4,СВОДНЫЙ!$A$4:$X$186,155,FALSE),)","v":0}]
[null,"Всего сухие продукты",234,0,0,0,0,0,{"$f":"I18+I17+I16+I10","v":0},{"$f":"J18+J17+J16+J10","v":160},{"$f":"K18+K17+K16+K10","v":60},12,2,0,0,0,0,0,0,0,0,0,0,0,0,0,0,0,0,0,0]
[null,"Всего пицца \"Ристоранте\"",28,0,0,0,0,0,{"$f":"IFERROR(HLOOKUP(I$4,СВОДНЫЙ!$A$4:$X$186,178,FALSE),)","v":0},{"$f":"IFERROR(HLOOKUP(J$4,СВОДНЫЙ!$A$4:$X$186,178,FALSE),)","v":28},{"$f":"IFERROR(HLOOKUP(K$4,СВОДНЫЙ!$A$4:$X$186,178,FALSE),)","v":0},{"$f":"IFERROR(HLOOKUP(L$4,СВОДНЫЙ!$A$4:$X$186,178,FALSE),)","v":0},{"$f":"IFERROR(HLOOKUP(M$4,СВОДНЫЙ!$A$4:$X$186,178,FALSE),)","v":0},{"$f":"IFERROR(HLOOKUP(N$4,СВОДНЫЙ!$A$4:$X$186,178,FALSE),)","v":0},{"$f":"IFERROR(HLOOKUP(O$4,СВОДНЫЙ!$A$4:$X$186,178,FALSE),)","v":0},{"$f":"IFERROR(HLOOKUP(P$4,СВОДНЫЙ!$A$4:$X$186,178,FALSE),)","v":0},{"$f":"IFERROR(HLOOKUP(Q$4,СВОДНЫЙ!$A$4:$X$186,178,FALSE),)","v":0},{"$f":"IFERROR(HLOOKUP(R$4,СВОДНЫЙ!$A$4:$X$186,178,FALSE),)","v":0},{"$f":"IFERROR(HLOOKUP(S$4,СВОДНЫЙ!$A$4:$X$186,178,FALSE),)","v":0},{"$f":"IFERROR(HLOOKUP(T$4,СВОДНЫЙ!$A$4:$X$186,178,FALSE),)","v":0},{"$f":"IFERROR(HLOOKUP(U$4,СВОДНЫЙ!$A$4:$X$186,178,FALSE),)","v":0},{"$f":"IFERROR(HLOOKUP(V$4,СВОДНЫЙ!$A$4:$X$186,178,FALSE),)","v":0},{"$f":"IFERROR(HLOOKUP(W$4,СВОДНЫЙ!$A$4:$X$186,178,FALSE),)","v":0},{"$f":"IFERROR(HLOOKUP(X$4,СВОДНЫЙ!$A$4:$X$186,178,FALSE),)","v":0},{"$f":"IFERROR(HLOOKUP(Y$4,СВОДНЫЙ!$A$4:$X$186,178,FALSE),)","v":0},{"$f":"IFERROR(HLOOKUP(Z$4,СВОДНЫЙ!$A$4:$X$186,178,FALSE),)","v":0},{"$f":"IFERROR(HLOOKUP(AA$4,СВОДНЫЙ!$A$4:$X$186,178,FALSE),)","v":0},{"$f":"IFERROR(HLOOKUP(AB$4,СВОДНЫЙ!$A$4:$X$186,178,FALSE),)","v":0},{"$f":"IFERROR(HLOOKUP(AC$4,СВОДНЫЙ!$A$4:$X$186,178,FALSE),)","v":0},{"$f":"IFERROR(HLOOKUP(AD$4,СВОДНЫЙ!$A$4:$X$186,178,FALSE),)","v":0},{"$f":"IFERROR(HLOOKUP(AE$4,СВОДНЫЙ!$A$4:$X$186,178,FALSE),)","v":0}]
[null,"Всего Каса ди Мама",15,0,0,0,0,0,{"$f":"IFERROR(HLOOKUP(I$4,СВОДНЫЙ!4:190,185,FALSE),)","v":0},{"$f":"IFERROR(HLOOKUP(J$4,СВОДНЫЙ!4:190,185,FALSE),)","v":15},{"$f":"IFERROR(HLOOKUP(K$4,СВОДНЫЙ!4:190,185,FALSE),)","v":0},{"$f":"IFERROR(HLOOKUP(L$4,СВОДНЫЙ!4:190,185,FALSE),)","v":0},{"$f":"IFERROR(HLOOKUP(M$4,СВОДНЫЙ!4:190,185,FALSE),)","v":0},{"$f":"IFERROR(HLOOKUP(N$4,СВОДНЫЙ!4:190,185,FALSE),)","v":0},{"$f":"IFERROR(HLOOKUP(O$4,СВОДНЫЙ!4:190,185,FALSE),)","v":0},{"$f":"IFERROR(HLOOKUP(P$4,СВОДНЫЙ!4:190,185,FALSE),)","v":0},{"$f":"IFERROR(HLOOKUP(Q$4,СВОДНЫЙ!4:190,185,FALSE),)","v":0},{"$f":"IFERROR(HLOOKUP(R$4,СВОДНЫЙ!4:190,185,FALSE),)","v":0},{"$f":"IFERROR(HLOOKUP(S$4,СВОДНЫЙ!4:190,185,FALSE),)","v":0},{"$f":"IFERROR(HLOOKUP(T$4,СВОДНЫЙ!4:190,185,FALSE),)","v":0},{"$f":"IFERROR(HLOOKUP(U$4,СВОДНЫЙ!4:190,185,FALSE),)","v":0},{"$f":"IFERROR(HLOOKUP(V$4,СВОДНЫЙ!4:190,185,FALSE),)","v":0},{"$f":"IFERROR(HLOOKUP(W$4,СВОДНЫЙ!4:190,185,FALSE),)","v":0},{"$f":"IFERROR(HLOOKUP(X$4,СВОДНЫЙ!4:190,185,FALSE),)","v":0},{"$f":"IFERROR(HLOOKUP(Y$4,СВОДНЫЙ!4:190,185,FALSE),)","v":0},{"$f":"IFERROR(HLOOKUP(Z$4,СВОДНЫЙ!4:190,185,FALSE),)","v":0},{"$f":"IFERROR(HLOOKUP(AA$4,СВОДНЫЙ!4:190,185,FALSE),)","v":0},{"$f":"IFERROR(HLOOKUP(AB$4,СВОДНЫЙ!4:190,185,FALSE),)","v":0},{"$f":"IFERROR(HLOOKUP(AC$4,СВОДНЫЙ!4:190,185,FALSE),)","v":0},{"$f":"IFERROR(HLOOKUP(AD$4,СВОДНЫЙ!4:190,185,FALSE),)","v":0},{"$f":"IFERROR(HLOOKUP(AE$4,СВОДНЫЙ!4:190,185,FALSE),)","v":0}]
[null,"Всего заморож. продукты",277,0,0,0,0,0,{"$f":"SUM(I19:I21)","v":0},203,60,12,2,0,0,0,0,0,0,0,0,0,0,0,0,0,0,0,0,0,0]
[null,"Итог по всему ассортименту",511,0,0,0,0,0,{"$f":"I22+I19","v":0},{"$f":"J22+J19","v":363},{"$f":"K22+K19","v":120},24,4,0,0,0,0,0,0,0,0,0,0,0,0,0,0,0,0,0,0]
[]
[null,"Данный диапазон на всех листах с городами одинаковый без изменений",null,null,null,null,null,null,"Данный диапазон содержит формулы для копирования в таблицу справа"]

{"sheet":"Казань","index":5,"n_rows":25,"n_cols":31,"rows_kept":25,"cut":false,"hidden":false,"merged":[[24,1,24,7]]}
[]
[null,{"$f":"MID(CELL(\"ИМЯФАЙЛА\",A1),SEARCH(\"]\",CELL(\"ИМЯФАЙЛА\",A1))+1,255)","v":"Казань"}]
[]
[null,null,"Итог","Метро","Перекресток","Х","Х","Х","Ф-лы","Кл2","Кл10","Мг3","Мг10",null,null,null,null,null,0,0,0,0,0,0,0,0,0,0,0,0,0]
["Метро","Разрыхлитель теста,10г. ",{"$f":"SUM(J5:AE5)","v":12},{"$f":"SUMIF($J$4:$AE$4,D$4&\"*\",J5:AE5)","v":0},{"$f":"SUMIF($J$4:$AE$4,E$4&\"*\",J5:AE5)","v":0},{"$f":"SUMIF($J$4:$AE$4,F$4&\"*\",J5:AE5)","v":0},{"$f":"SUMIF($J$4:$AE$4,G$4&\"*\",J5:AE5)","v":0},{"$f":"SUMIF($J$4:$DF$4,H$4&\"*\",J5:DF5)","v":0},{"$f":"IFERROR(HLOOKUP(I$4,СВОДНЫЙ!$A$4:$X$186,2,FALSE),)","v":0},{"$f":"IFERROR(HLOOKUP(J$4,СВОДНЫЙ!$A$4:$X$186,2,FALSE),)","v":0},{"$f":"IFERROR(HLOOKUP(K$4,СВОДНЫЙ!$A$4:$X$186,2,FALSE),)","v":11},{"$f":"IFERROR(HLOOKUP(L$4,СВОДНЫЙ!$A$4:$X$186,2,FALSE),)","v":1},{"$f":"IFERROR(HLOOKUP(M$4,СВОДНЫЙ!$A$4:$X$186,2,FALSE),)","v":0},{"$f":"IFERROR(HLOOKUP(N$4,СВОДНЫЙ!$A$4:$X$186,2,FALSE),)","v":0},{"$f":"IFERROR(HLOOKUP(O$4,СВОДНЫЙ!$A$4:$X$186,2,FALSE),)","v":0},{"$f":"IFERROR(HLOOKUP(P$4,СВОДНЫЙ!$A$4:$X$186,2,FALSE),)","v":0},{"$f":"IFERROR(HLOOKUP(Q$4,СВОДНЫЙ!$A$4:$X$186,2,FALSE),)","v":0},{"$f":"IFERROR(HLOOKUP(R$4,СВОДНЫЙ!$A$4:$X$186,2,FALSE),)","v":0},{"$f":"IFERROR(HLOOKUP(S$4,СВОДНЫЙ!$A$4:$X$186,2,FALSE),)","v":0},{"$f":"IFERROR(HLOOKUP(T$4,СВОДНЫЙ!$A$4:$X$186,2,FALSE),)","v":0},{"$f":"IFERROR(HLOOKUP(U$4,СВОДНЫЙ!$A$4:$X$186,2,FALSE),)","v":0},{"$f":"IFERROR(HLOOKUP(V$4,СВОДНЫЙ!$A$4:$X$186,2,FALSE),)","v":0},{"$f":"IFERROR(HLOOKUP(W$4,СВОДНЫЙ!$A$4:$X$186,2,FALSE),)","v":0},{"$f":"IFERROR(HLOOKUP(X$4,СВОДНЫЙ!$A$4:$X$186,2,FALSE),)","v":0},{"$f":"IFERROR(HLOOKUP(Y$4,СВОДНЫЙ!$A$4:$X$186,2,FALSE),)","v":0},{"$f":"IFERROR(HLOOKUP(Z$4,СВОДНЫЙ!$A$4:$X$186,2,FALSE),)","v":0},{"$f":"IFERROR(HLOOKUP(AA$4,СВОДНЫЙ!$A$4:$X$186,2,FALSE),)","v":0},{"$f":"IFERROR(HLOOKUP(AB$4,СВОДНЫЙ!$A$4:$X$186,2,FALSE),)","v":0},{"$f":"IFERROR(HLOOKUP(AC$4,СВОДНЫЙ!$A$4:$X$186,2,FALSE),)","v":0},{"$f":"IFERROR(HLOOKUP(AD$4,СВОДНЫЙ!$A$4:$X$186,2,FALSE),)","v":0},{"$f":"IFERROR(HLOOKUP(AE$4,СВОДНЫЙ!$A$4:$X$186,2,FALSE),)","v":0}]
["Ашан","Дрожжи сух.мгновеннодейств. ",{"$f":"SUM(J6:AE6)","v":2},0,0,0,0,{"$f":"SUMIF($J$4:$DF$4,H$4&\"*\",J6:DF6)","v":0},{"$f":"IFERROR(HLOOKUP(I$4,СВОДНЫЙ!$A$4:$X$186,13,FALSE),)","v":0},{"$f":"IFERROR(HLOOKUP(J$4,СВОДНЫЙ!$A$4:$X$186,13,FALSE),)","v":0},{"$f":"IFERROR(HLOOKUP(K$4,СВОДНЫЙ!$A$4:$X$186,13,FALSE),)","v":0},{"$f":"IFERROR(HLOOKUP(L$4,СВОДНЫЙ!$A$4:$X$186,13,FALSE),)","v":2},{"$f":"IFERROR(HLOOKUP(M$4,СВОДНЫЙ!$A$4:$X$186,13,FALSE),)","v":0},{"$f":"IFERROR(HLOOKUP(N$4,СВОДНЫЙ!$A$4:$X$186,13,FALSE),)","v":0},{"$f":"IFERROR(HLOOKUP(O$4,СВОДНЫЙ!$A$4:$X$186,13,FALSE),)","v":0},{"$f":"IFERROR(HLOOKUP(P$4,СВОДНЫЙ!$A$4:$X$186,13,FALSE),)","v":0},{"$f":"IFERROR(HLOOKUP(Q$4,СВОДНЫЙ!$A$4:$X$186,13,FALSE),)","v":0},{"$f":"IFERROR(HLOOKUP(R$4,СВОДНЫЙ!$A$4:$X$186,13,FALSE),)","v":0},{"$f":"IFERROR(HLOOKUP(S$4,СВОДНЫЙ!$A$4:$X$186,13,FALSE),)","v":0},{"$f":"IFERROR(HLOOKUP(T$4,СВОДНЫЙ!$A$4:$X$186,13,FALSE),)","v":0},{"$f":"IFERROR(HLOOKUP(U$4,СВОДНЫЙ!$A$4:$X$186,13,FALSE),)","v":0},{"$f":"IFERROR(HLOOKUP(V$4,СВОДНЫЙ!$A$4:$X$186,13,FALSE),)","v":0},{"$f":"IFERROR(HLOOKUP(W$4,СВОДНЫЙ!$A$4:$X$186,13,FALSE),)","v":0},{"$f":"IFERROR(HLOOKUP(X$4,СВОДНЫЙ!$A$4:$X$186,13,FALSE),)","v":0},{"$f":"IFERROR(HLOOKUP(Y$4,СВОДНЫЙ!$A$4:$X$186,13,FALSE),)","v":0},{"$f":"IFERROR(HLOOKUP(Z$4,СВОДНЫЙ!$A$4:$X$186,13,FALSE),)","v":0},{"$f":"IFERROR(HLOOKUP(AA$4,СВОДНЫЙ!$A$4:$X$186,13,FALSE),)","v":0},{"$f":"IFERROR(HLOOKUP(AB$4,СВОДНЫЙ!$A$4:$X$186,13,FALSE),)","v":0},{"$f":"IFERROR(HLOOKUP(AC$4,СВОДНЫЙ!$A$4:$X$186,13,FALSE),)","v":0},{"$f":"IFERROR(HLOOKUP(AD$4,СВОДНЫЙ!$A$4:$X$186,13,FALSE),)","v":0},{"$f":"IFERROR(HLOOKUP(AE$4,СВОДНЫЙ!$A$4:$X$186,13,FALSE),)","v":0}]
["Перекресток","Ванильный сахар,8г. ",4,0,0,0,0,0,{"$f":"IFERROR(HLOOKUP(I$4,СВОДНЫЙ!$A$4:$X$186,23,FALSE),)","v":0},{"$f":"IFERROR(HLOOKUP(J$4,СВОДНЫЙ!$A$4:$X$186,23,FALSE),)","v":0},{"$f":"IFERROR(HLOOKUP(K$4,СВОДНЫЙ!$A$4:$X$186,23,FALSE),)","v":1},{"$f":"IFERROR(HLOOKUP(L$4,СВОДНЫЙ!$A$4:$X$186,23,FALSE),)","v":3},{"$f":"IFERROR(HLOOKUP(M$4,СВОДНЫЙ!$A$4:$X$186,23,FALSE),)","v":0},{"$f":"IFERROR(HLOOKUP(N$4,СВОДНЫЙ!$A$4:$X$186,23,FALSE),)","v":0},{"$f":"IFERROR(HLOOKUP(O$4,СВОДНЫЙ!$A$4:$X$186,23,FALSE),)","v":0},{"$f":"IFERROR(HLOOKUP(P$4,СВОДНЫЙ!$A$4:$X$186,23,FALSE),)","v":0},{"$f":"IFERROR(HLOOKUP(Q$4,СВОДНЫЙ!$A$4:$X$186,23,FALSE),)","v":0},{"$f":"IFERROR(HLOOKUP(R$4,СВОДНЫЙ!$A$4:$X$186,23,FALSE),)","v":0},{"$f":"IFERROR(HLOOKUP(S$4,СВОДНЫЙ!$A$4:$X$186,23,FALSE),)","v":0},{"$f":"IFERROR(HLOOKUP(T$4,СВОДНЫЙ!$A$4:$X$186,23,FALSE),)","v":0},{"$f":"IFERROR(HLOOKUP(U$4,СВОДНЫЙ!$A$4:$X$186,23,FALSE),)","v":0},{"$f":"IFERROR(HLOOKUP(V$4,СВОДНЫЙ!$A$4:$X$186,23,FALSE),)","v":0},{"$f":"IFERROR(HLOOKUP(W$4,СВОДНЫЙ!$A$4:$X$186,23,FALSE),)","v":0},{"$f":"IFERROR(HLOOKUP(X$4,СВОДНЫЙ!$A$4:$X$186,23,FALSE),)","v":0},{"$f":"IFERROR(HLOOKUP(Y$4,СВОДНЫЙ!$A$4:$X$186,23,FALSE),)","v":0},{"$f":"IFERROR(HLOOKUP(Z$4,СВОДНЫЙ!$A$4:$X$186,23,FALSE),)","v":0},{"$f":"IFERROR(HLOOKUP(AA$4,СВОДНЫЙ!$A$4:$X$186,23,FALSE),)","v":0},{"$f":"IFERROR(HLOOKUP(AB$4,СВОДНЫЙ!$A$4:$X$186,23,FALSE),)","v":0},{"$f":"IFERROR(HLOOKUP(AC$4,СВОДНЫЙ!$A$4:$X$186,23,FALSE),)","v":0},{"$f":"IFERROR(HLOOKUP(AD$4,СВОДНЫЙ!$A$4:$X$186,23,FALSE),)","v":0},{"$f":"IFERROR(HLOOKUP(AE$4,СВОДНЫЙ!$A$4:$X$186,23,FALSE),)","v":0}]
["Тандер","Желатин быстрорастворимый,10г ",0,0,0,0,0,0,{"$f":"IFERROR(HLOOKUP(I$4,СВОДНЫЙ!$A$4:$X$186,32,FALSE),)","v":0},{"$f":"IFERROR(HLOOKUP(J$4,СВОДНЫЙ!$A$4:$X$186,32,FALSE),)","v":0},{"$f":"IFERROR(HLOOKUP(K$4,СВОДНЫЙ!$A$4:$X$186,32,FALSE),)","v":0},{"$f":"IFERROR(HLOOKUP(L$4,СВОДНЫЙ!$A$4:$X$186,32,FALSE),)","v":0},{"$f":"IFERROR(HLOOKUP(M$4,СВОДНЫЙ!$A$4:$X$186,32,FALSE),)","v":0},{"$f":"IFERROR(HLOOKUP(N$4,СВОДНЫЙ!$A$4:$X$186,32,FALSE),)","v":0},{"$f":"IFERROR(HLOOKUP(O$4,СВОДНЫЙ!$A$4:$X$186,32,FALSE),)","v":0},{"$f":"IFERROR(HLOOKUP(P$4,СВОДНЫЙ!$A$4:$X$186,32,FALSE),)","v":0},{"$f":"IFERROR(HLOOKUP(Q$4,СВОДНЫЙ!$A$4:$X$186,32,FALSE),)","v":0},{"$f":"IFERROR(HLOOKUP(R$4,СВОДНЫЙ!$A$4:$X$186,32,FALSE),)","v":0},{"$f":"IFERROR(HLOOKUP(S$4,СВОДНЫЙ!$A$4:$X$186,32,FALSE),)","v":0},{"$f":"IFERROR(HLOOKUP(T$4,СВОДНЫЙ!$A$4:$X$186,32,FALSE),)","v":0},{"$f":"IFERROR(HLOOKUP(U$4,СВОДНЫЙ!$A$4:$X$186,32,FALSE),)","v":0},{"$f":"IFERROR(HLOOKUP(V$4,СВОДНЫЙ!$A$4:$X$186,32,FALSE),)","v":0},{"$f":"IFERROR(HLOOKUP(W$4,СВОДНЫЙ!$A$4:$X$186,32,FALSE),)","v":0},{"$f":"IFERROR(HLOOKUP(X$4,СВОДНЫЙ!$A$4:$X$186,32,FALSE),)","v":0},{"$f":"IFERROR(HLOOKUP(Y$4,СВОДНЫЙ!$A$4:$X$186,32,FALSE),)","v":0},{"$f":"IFERROR(HLOOKUP(Z$4,СВОДНЫЙ!$A$4:$X$186,32,FALSE),)","v":0},{"$f":"IFERROR(HLOOKUP(AA$4,СВОДНЫЙ!$A$4:$X$186,32,FALSE),)","v":0},{"$f":"IFERROR(HLOOKUP(AB$4,СВОДНЫЙ!$A$4:$X$186,32,FALSE),)","v":0},{"$f":"IFERROR(HLOOKUP(AC$4,СВОДНЫЙ!$A$4:$X$186,32,FALSE),)","v":0},{"$f":"IFERROR(HLOOKUP(AD$4,СВОДНЫЙ!$A$4:$X$186,32,FALSE),)","v":0},{"$f":"IFERROR(HLOOKUP(AE$4,СВОДНЫЙ!$A$4:$X$186,32,FALSE),)","v":0}]
["Х","Прочие ингредиенты для выпечки",0,0,0,0,0,0,{"$f":"IFERROR(HLOOKUP(I$4,СВОДНЫЙ!$A$4:$X$186,70,FALSE),)","v":0},{"$f":"IFERROR(HLOOKUP(J$4,СВОДНЫЙ!$A$4:$X$186,70,FALSE),)","v":0},{"$f":"IFERROR(HLOOKUP(K$4,СВОДНЫЙ!$A$4:$X$186,70,FALSE),)","v":0},{"$f":"IFERROR(HLOOKUP(L$4,СВОДНЫЙ!$A$4:$X$186,70,FALSE),)","v":0},{"$f":"IFERROR(HLOOKUP(M$4,СВОДНЫЙ!$A$4:$X$186,70,FALSE),)","v":0},{"$f":"IFERROR(HLOOKUP(N$4,СВОДНЫЙ!$A$4:$X$186,70,FALSE),)","v":0},{"$f":"IFERROR(HLOOKUP(O$4,СВОДНЫЙ!$A$4:$X$186,70,FALSE),)","v":0},{"$f":"IFERROR(HLOOKUP(P$4,СВОДНЫЙ!$A$4:$X$186,70,FALSE),)","v":0},{"$f":"IFERROR(HLOOKUP(Q$4,СВОДНЫЙ!$A$4:$X$186,70,FALSE),)","v":0},{"$f":"IFERROR(HLOOKUP(R$4,СВОДНЫЙ!$A$4:$X$186,70,FALSE),)","v":0},{"$f":"IFERROR(HLOOKUP(S$4,СВОДНЫЙ!$A$4:$X$186,70,FALSE),)","v":0},{"$f":"IFERROR(HLOOKUP(T$4,СВОДНЫЙ!$A$4:$X$186,70,FALSE),)","v":0},{"$f":"IFERROR(HLOOKUP(U$4,СВОДНЫЙ!$A$4:$X$186,70,FALSE),)","v":0},{"$f":"IFERROR(HLOOKUP(V$4,СВОДНЫЙ!$A$4:$X$186,70,FALSE),)","v":0},{"$f":"IFERROR(HLOOKUP(W$4,СВОДНЫЙ!$A$4:$X$186,70,FALSE),)","v":0},{"$f":"IFERROR(HLOOKUP(X$4,СВОДНЫЙ!$A$4:$X$186,70,FALSE),)","v":0},{"$f":"IFERROR(HLOOKUP(Y$4,СВОДНЫЙ!$A$4:$X$186,70,FALSE),)","v":0},{"$f":"IFERROR(HLOOKUP(Z$4,СВОДНЫЙ!$A$4:$X$186,70,FALSE),)","v":0},{"$f":"IFERROR(HLOOKUP(AA$4,СВОДНЫЙ!$A$4:$X$186,70,FALSE),)","v":0},{"$f":"IFERROR(HLOOKUP(AB$4,СВОДНЫЙ!$A$4:$X$186,70,FALSE),)","v":0},{"$f":"IFERROR(HLOOKUP(AC$4,СВОДНЫЙ!$A$4:$X$186,70,FALSE),)","v":0},{"$f":"IFERROR(HLOOKUP(AD$4,СВОДНЫЙ!$A$4:$X$186,70,FALSE),)","v":0},{"$f":"IFERROR(HLOOKUP(AE$4,СВОДНЫЙ!$A$4:$X$186,70,FALSE),)","v":0}]
[null,"Всего ингредиенты для выпечки",18,0,0,0,0,0,{"$f":"SUM(I5:I9)","v":0},{"$f":"SUM(J5:J9)","v":0},{"$f":"SUM(K5:K9)","v":12},6,0,0,0,0,0,0,0,0,0,0,0,0,0,0,0,0,0,0,0]
[null,"Всего пудинги",0,0,0,0,0,0,{"$f":"IFERROR(HLOOKUP(I$4,СВОДНЫЙ!$A$4:$X$186,82,FALSE),)","v":0},{"$f":"IFERROR(HLOOKUP(J$4,СВОДНЫЙ!$A$4:$X$186,82,FALSE),)","v":0},{"$f":"IFERROR(HLOOKUP(K$4,СВОДНЫЙ!$A$4:$X$186,82,FALSE),)","v":0},{"$f":"IFERROR(HLOOKUP(L$4,СВОДНЫЙ!$A$4:$X$186,82,FALSE),)","v":0},{"$f":"IFERROR(HLOOKUP(M$4,СВОДНЫЙ!$A$4:$X$186,82,FALSE),)","v":0},{"$f":"IFERROR(HLOOKUP(N$4,СВОДНЫЙ!$A$4:$X$186,82,FALSE),)","v":0},{"$f":"IFERROR(HLOOKUP(O$4,СВОДНЫЙ!$A$4:$X$186,82,FALSE),)","v":0},{"$f":"IFERROR(HLOOKUP(P$4,СВОДНЫЙ!$A$4:$X$186,82,FALSE),)","v":0},{"$f":"IFERROR(HLOOKUP(Q$4,СВОДНЫЙ!$A$4:$X$186,82,FALSE),)","v":0},{"$f":"IFERROR(HLOOKUP(R$4,СВОДНЫЙ!$A$4:$X$186,82,FALSE),)","v":0},{"$f":"IFERROR(HLOOKUP(S$4,СВОДНЫЙ!$A$4:$X$186,82,FALSE),)","v":0},{"$f":"IFERROR(HLOOKUP(T$4,СВОДНЫЙ!$A$4:$X$186,82,FALSE),)","v":0},{"$f":"IFERROR(HLOOKUP(U$4,СВОДНЫЙ!$A$4:$X$186,82,FALSE),)","v":0},{"$f":"IFERROR(HLOOKUP(V$4,СВОДНЫЙ!$A$4:$X$186,82,FALSE),)","v":0},{"$f":"IFERROR(HLOOKUP(W$4,СВОДНЫЙ!$A$4:$X$186,82,FALSE),)","v":0},{"$f":"IFERROR(HLOOKUP(X$4,СВОДНЫЙ!$A$4:$X$186,82,FALSE),)","v":0},{"$f":"IFERROR(HLOOKUP(Y$4,СВОДНЫЙ!$A$4:$X$186,82,FALSE),)","v":0},{"$f":"IFERROR(HLOOKUP(Z$4,СВОДНЫЙ!$A$4:$X$186,82,FALSE),)","v":0},{"$f":"IFERROR(HLOOKUP(AA$4,СВОДНЫЙ!$A$4:$X$186,82,FALSE),)","v":0},{"$f":"IFERROR(HLOOKUP(AB$4,СВОДНЫЙ!$A$4:$X$186,82,FALSE),)","v":0},{"$f":"IFERROR(HLOOKUP(AC$4,СВОДНЫЙ!$A$4:$X$186,82,FALSE),)","v":0},{"$f":"IFERROR(HLOOKUP(AD$4,СВОДНЫЙ!$A$4:$X$186,82,FALSE),)","v":0},{"$f":"IFERROR(HLOOKUP(AE$4,СВОДНЫЙ!$A$4:$X$186,82,FALSE),)","v":0}]
[null,"Всего трад. кисель",0,0,0,0,0,0,{"$f":"IFERROR(HLOOKUP(I$4,СВОДНЫЙ!$A$4:$X$186,92,FALSE),)","v":0},{"$f":"IFERROR(HLOOKUP(J$4,СВОДНЫЙ!$A$4:$X$186,92,FALSE),)","v":0},{"$f":"IFERROR(HLOOKUP(K$4,СВОДНЫЙ!$A$4:$X$186,92,FALSE),)","v":0},{"$f":"IFERROR(HLOOKUP(L$4,СВОДНЫЙ!$A$4:$X$186,92,FALSE),)","v":0},{"$f":"IFERROR(HLOOKUP(M$4,СВОДНЫЙ!$A$4:$X$186,92,FALSE),)","v":0},{"$f":"IFERROR(HLOOKUP(N$4,СВОДНЫЙ!$A$4:$X$186,92,FALSE),)","v":0},{"$f":"IFERROR(HLOOKUP(O$4,СВОДНЫЙ!$A$4:$X$186,92,FALSE),)","v":0},{"$f":"IFERROR(HLOOKUP(P$4,СВОДНЫЙ!$A$4:$X$186,92,FALSE),)","v":0},{"$f":"IFERROR(HLOOKUP(Q$4,СВОДНЫЙ!$A$4:$X$186,92,FALSE),)","v":0},{"$f":"IFERROR(HLOOKUP(R$4,СВОДНЫЙ!$A$4:$X$186,92,FALSE),)","v":0},{"$f":"IFERROR(HLOOKUP(S$4,СВОДНЫЙ!$A$4:$X$186,92,FALSE),)","v":0},{"$f":"IFERROR(HLOOKUP(T$4,СВОДНЫЙ!$A$4:$X$186,92,FALSE),)","v":0},{"$f":"IFERROR(HLOOKUP(U$4,СВОДНЫЙ!$A$4:$X$186,92,FALSE),)","v":0},{"$f":"IFERROR(HLOOKUP(V$4,СВОДНЫЙ!$A$4:$X$186,92,FALSE),)","v":0},{"$f":"IFERROR(HLOOKUP(W$4,СВОДНЫЙ!$A$4:$X$186,92,FALSE),)","v":0},{"$f":"IFERROR(HLOOKUP(X$4,СВОДНЫЙ!$A$4:$X$186,92,FALSE),)","v":0},{"$f":"IFERROR(HLOOKUP(Y$4,СВОДНЫЙ!$A$4:$X$186,92,FALSE),)","v":0},{"$f":"IFERROR(HLOOKUP(Z$4,СВОДНЫЙ!$A$4:$X$186,92,FALSE),)","v":0},{"$f":"IFERROR(HLOOKUP(AA$4,СВОДНЫЙ!$A$4:$X$186,92,FALSE),)","v":0},{"$f":"IFERROR(HLOOKUP(AB$4,СВОДНЫЙ!$A$4:$X$186,92,FALSE),)","v":0},{"$f":"IFERROR(HLOOKUP(AC$4,СВОДНЫЙ!$A$4:$X$186,92,FALSE),)","v":0},{"$f":"IFERROR(HLOOKUP(AD$4,СВОДНЫЙ!$A$4:$X$186,92,FALSE),)","v":0},{"$f":"IFERROR(HLOOKUP(AE$4,СВОДНЫЙ!$A$4:$X$186,92,FALSE),)","v":0}]
[null,"Всего кисель \"Сладкий Момент\"",0,0,0,0,0,0,{"$f":"IFERROR(HLOOKUP(I$4,СВОДНЫЙ!$A$4:$X$186,101,FALSE),)","v":0},{"$f":"IFERROR(HLOOKUP(J$4,СВОДНЫЙ!$A$4:$X$186,101,FALSE),)","v":0},{"$f":"IFERROR(HLOOKUP(K$4,СВОДНЫЙ!$A$4:$X$186,101,FALSE),)","v":0},{"$f":"IFERROR(HLOOKUP(L$4,СВОДНЫЙ!$A$4:$X$186,101,FALSE),)","v":0},{"$f":"IFERROR(HLOOKUP(M$4,СВОДНЫЙ!$A$4:$X$186,101,FALSE),)","v":0},{"$f":"IFERROR(HLOOKUP(N$4,СВОДНЫЙ!$A$4:$X$186,101,FALSE),)","v":0},{"$f":"IFERROR(HLOOKUP(O$4,СВОДНЫЙ!$A$4:$X$186,101,FALSE),)","v":0},{"$f":"IFERROR(HLOOKUP(P$4,СВОДНЫЙ!$A$4:$X$186,101,FALSE),)","v":0},{"$f":"IFERROR(HLOOKUP(Q$4,СВОДНЫЙ!$A$4:$X$186,101,FALSE),)","v":0},{"$f":"IFERROR(HLOOKUP(R$4,СВОДНЫЙ!$A$4:$X$186,101,FALSE),)","v":0},{"$f":"IFERROR(HLOOKUP(S$4,СВОДНЫЙ!$A$4:$X$186,101,FALSE),)","v":0},{"$f":"IFERROR(HLOOKUP(T$4,СВОДНЫЙ!$A$4:$X$186,101,FALSE),)","v":0},{"$f":"IFERROR(HLOOKUP(U$4,СВОДНЫЙ!$A$4:$X$186,101,FALSE),)","v":0},{"$f":"IFERROR(HLOOKUP(V$4,СВОДНЫЙ!$A$4:$X$186,101,FALSE),)","v":0},{"$f":"IFERROR(HLOOKUP(W$4,СВОДНЫЙ!$A$4:$X$186,101,FALSE),)","v":0},{"$f":"IFERROR(HLOOKUP(X$4,СВОДНЫЙ!$A$4:$X$186,101,FALSE),)","v":0},{"$f":"IFERROR(HLOOKUP(Y$4,СВОДНЫЙ!$A$4:$X$186,101,FALSE),)","v":0},{"$f":"IFERROR(HLOOKUP(Z$4,СВОДНЫЙ!$A$4:$X$186,101,FALSE),)","v":0},{"$f":"IFERROR(HLOOKUP(AA$4,СВОДНЫЙ!$A$4:$X$186,101,FALSE),)","v":0},{"$f":"IFERROR(HLOOKUP(AB$4,СВОДНЫЙ!$A$4:$X$186,101,FALSE),)","v":0},{"$f":"IFERROR(HLOOKUP(AC$4,СВОДНЫЙ!$A$4:$X$186,101,FALSE),)","v":0},{"$f":"IFERROR(HLOOKUP(AD$4,СВОДНЫЙ!$A$4:$X$186,101,FALSE),)","v":0},{"$f":"IFERROR(HLOOKUP(AE$4,СВОДНЫЙ!$A$4:$X$186,101,FALSE),)","v":0}]
[null,"Всего желе",0,0,0,0,0,0,{"$f":"IFERROR(HLOOKUP(I$4,СВОДНЫЙ!$A$4:$X$186,118,FALSE),)","v":0},{"$f":"IFERROR(HLOOKUP(J$4,СВОДНЫЙ!$A$4:$X$186,118,FALSE),)","v":0},{"$f":"IFERROR(HLOOKUP(K$4,СВОДНЫЙ!$A$4:$X$186,118,FALSE),)","v":0},{"$f":"IFERROR(HLOOKUP(L$4,СВОДНЫЙ!$A$4:$X$186,118,FALSE),)","v":0},{"$f":"IFERROR(HLOOKUP(M$4,СВОДНЫЙ!$A$4:$X$186,118,FALSE),)","v":0},{"$f":"IFERROR(HLOOKUP(N$4,СВОДНЫЙ!$A$4:$X$186,118,FALSE),)","v":0},{"$f":"IFERROR(HLOOKUP(O$4,СВОДНЫЙ!$A$4:$X$186,118,FALSE),)","v":0},{"$f":"IFERROR(HLOOKUP(P$4,СВОДНЫЙ!$A$4:$X$186,118,FALSE),)","v":0},{"$f":"IFERROR(HLOOKUP(Q$4,СВОДНЫЙ!$A$4:$X$186,118,FALSE),)","v":0},{"$f":"IFERROR(HLOOKUP(R$4,СВОДНЫЙ!$A$4:$X$186,118,FALSE),)","v":0},{"$f":"IFERROR(HLOOKUP(S$4,СВОДНЫЙ!$A$4:$X$186,118,FALSE),)","v":0},{"$f":"IFERROR(HLOOKUP(T$4,СВОДНЫЙ!$A$4:$X$186,118,FALSE),)","v":0},{"$f":"IFERROR(HLOOKUP(U$4,СВОДНЫЙ!$A$4:$X$186,118,FALSE),)","v":0},{"$f":"IFERROR(HLOOKUP(V$4,СВОДНЫЙ!$A$4:$X$186,118,FALSE),)","v":0},{"$f":"IFERROR(HLOOKUP(W$4,СВОДНЫЙ!$A$4:$X$186,118,FALSE),)","v":0},{"$f":"IFERROR(HLOOKUP(X$4,СВОДНЫЙ!$A$4:$X$186,118,FALSE),)","v":0},{"$f":"IFERROR(HLOOKUP(Y$4,СВОДНЫЙ!$A$4:$X$186,118,FALSE),)","v":0},{"$f":"IFERROR(HLOOKUP(Z$4,СВОДНЫЙ!$A$4:$X$186,118,FALSE),)","v":0},{"$f":"IFERROR(HLOOKUP(AA$4,СВОДНЫЙ!$A$4:$X$186,118,FALSE),)","v":0},{"$f":"IFERROR(HLOOKUP(AB$4,СВОДНЫЙ!$A$4:$X$186,118,FALSE),)","v":0},{"$f":"IFERROR(HLOOKUP(AC$4,СВОДНЫЙ!$A$4:$X$186,118,FALSE),)","v":0},{"$f":"IFERROR(HLOOKUP(AD$4,СВОДНЫЙ!$A$4:$X$186,118,FALSE),)","v":0},{"$f":"IFERROR(HLOOKUP(AE$4,СВОДНЫЙ!$A$4:$X$186,118,FALSE),)","v":0}]
[null,"Другие десерты",0,0,0,0,0,0,{"$f":"IFERROR(HLOOKUP(I$4,СВОДНЫЙ!$A$4:$X$186,121,FALSE),)","v":0},{"$f":"IFERROR(HLOOKUP(J$4,СВОДНЫЙ!$A$4:$X$186,121,FALSE),)","v":0},{"$f":"IFERROR(HLOOKUP(K$4,СВОДНЫЙ!$A$4:$X$186,121,FALSE),)","v":0},{"$f":"IFERROR(HLOOKUP(L$4,СВОДНЫЙ!$A$4:$X$186,121,FALSE),)","v":0},{"$f":"IFERROR(HLOOKUP(M$4,СВОДНЫЙ!$A$4:$X$186,121,FALSE),)","v":0},{"$f":"IFERROR(HLOOKUP(N$4,СВОДНЫЙ!$A$4:$X$186,121,FALSE),)","v":0},{"$f":"IFERROR(HLOOKUP(O$4,СВОДНЫЙ!$A$4:$X$186,121,FALSE),)","v":0},{"$f":"IFERROR(HLOOKUP(P$4,СВОДНЫЙ!$A$4:$X$186,121,FALSE),)","v":0},{"$f":"IFERROR(HLOOKUP(Q$4,СВОДНЫЙ!$A$4:$X$186,121,FALSE),)","v":0},{"$f":"IFERROR(HLOOKUP(R$4,СВОДНЫЙ!$A$4:$X$186,121,FALSE),)","v":0},{"$f":"IFERROR(HLOOKUP(S$4,СВОДНЫЙ!$A$4:$X$186,121,FALSE),)","v":0},{"$f":"IFERROR(HLOOKUP(T$4,СВОДНЫЙ!$A$4:$X$186,121,FALSE),)","v":0},{"$f":"IFERROR(HLOOKUP(U$4,СВОДНЫЙ!$A$4:$X$186,121,FALSE),)","v":0},{"$f":"IFERROR(HLOOKUP(V$4,СВОДНЫЙ!$A$4:$X$186,121,FALSE),)","v":0},{"$f":"IFERROR(HLOOKUP(W$4,СВОДНЫЙ!$A$4:$X$186,121,FALSE),)","v":0},{"$f":"IFERROR(HLOOKUP(X$4,СВОДНЫЙ!$A$4:$X$186,121,FALSE),)","v":0},{"$f":"IFERROR(HLOOKUP(Y$4,СВОДНЫЙ!$A$4:$X$186,121,FALSE),)","v":0},{"$f":"IFERROR(HLOOKUP(Z$4,СВОДНЫЙ!$A$4:$X$186,121,FALSE),)","v":0},{"$f":"IFERROR(HLOOKUP(AA$4,СВОДНЫЙ!$A$4:$X$186,121,FALSE),)","v":0},{"$f":"IFERROR(HLOOKUP(AB$4,СВОДНЫЙ!$A$4:$X$186,121,FALSE),)","v":0},{"$f":"IFERROR(HLOOKUP(AC$4,СВОДНЫЙ!$A$4:$X$186,121,FALSE),)","v":0},{"$f":"IFERROR(HLOOKUP(AD$4,СВОДНЫЙ!$A$4:$X$186,121,FALSE),)","v":0},{"$f":"IFERROR(HLOOKUP(AE$4,СВОДНЫЙ!$A$4:$X$186,121,FALSE),)","v":0}]
[null,"Сумма Десертов всего",0,0,0,0,0,0,{"$f":"SUM(I11:I15)","v":0},{"$f":"SUM(J11:J15)","v":0},{"$f":"SUM(K11:K15)","v":0},0,0,0,0,0,0,0,0,0,0,0,0,0,0,0,0,0,0,0,0]
[null,"Всего средства для консервир-я",0,0,0,0,0,0,{"$f":"IFERROR(HLOOKUP(I$4,СВОДНЫЙ!$A$4:$X$186,138,FALSE),)","v":0},{"$f":"IFERROR(HLOOKUP(J$4,СВОДНЫЙ!$A$4:$X$186,138,FALSE),)","v":0},{"$f":"IFERROR(HLOOKUP(K$4,СВОДНЫЙ!$A$4:$X$186,138,FALSE),)","v":0},{"$f":"IFERROR(HLOOKUP(L$4,СВОДНЫЙ!$A$4:$X$186,138,FALSE),)","v":0},{"$f":"IFERROR(HLOOKUP(M$4,СВОДНЫЙ!$A$4:$X$186,138,FALSE),)","v":0},{"$f":"IFERROR(HLOOKUP(N$4,СВОДНЫЙ!$A$4:$X$186,138,FALSE),)","v":0},{"$f":"IFERROR(HLOOKUP(O$4,СВОДНЫЙ!$A$4:$X$186,138,FALSE),)","v":0},{"$f":"IFERROR(HLOOKUP(P$4,СВОДНЫЙ!$A$4:$X$186,138,FALSE),)","v":0},{"$f":"IFERROR(HLOOKUP(Q$4,СВОДНЫЙ!$A$4:$X$186,138,FALSE),)","v":0},{"$f":"IFERROR(HLOOKUP(R$4,СВОДНЫЙ!$A$4:$X$186,138,FALSE),)","v":0},{"$f":"IFERROR(HLOOKUP(S$4,СВОДНЫЙ!$A$4:$X$186,138,FALSE),)","v":0},{"$f":"IFERROR(HLOOKUP(T$4,СВОДНЫЙ!$A$4:$X$186,138,FALSE),)","v":0},{"$f":"IFERROR(HLOOKUP(U$4,СВОДНЫЙ!$A$4:$X$186,138,FALSE),)","v":0},{"$f":"IFERROR(HLOOKUP(V$4,СВОДНЫЙ!$A$4:$X$186,138,FALSE),)","v":0},{"$f":"IFERROR(HLOOKUP(W$4,СВОДНЫЙ!$A$4:$X$186,138,FALSE),)","v":0},{"$f":"IFERROR(HLOOKUP(X$4,СВОДНЫЙ!$A$4:$X$186,138,FALSE),)","v":0},{"$f":"IFERROR(HLOOKUP(Y$4,СВОДНЫЙ!$A$4:$X$186,138,FALSE),)","v":0},{"$f":"IFERROR(HLOOKUP(Z$4,СВОДНЫЙ!$A$4:$X$186,138,FALSE),)","v":0},{"$f":"IFERROR(HLOOKUP(AA$4,СВОДНЫЙ!$A$4:$X$186,138,FALSE),)","v":0},{"$f":"IFERROR(HLOOKUP(AB$4,СВОДНЫЙ!$A$4:$X$186,138,FALSE),)","v":0},{"$f":"IFERROR(HLOOKUP(AC$4,СВОДНЫЙ!$A$4:$X$186,138,FALSE),)","v":0},{"$f":"IFERROR(HLOOKUP(AD$4,СВОДНЫЙ!$A$4:$X$186,138,FALSE),)","v":0},{"$f":"IFERROR(HLOOKUP(AE$4,СВОДНЫЙ!$A$4:$X$186,138,FALSE),)","v":0}]
[null,"Всего Виталис",0,0,0,0,0,0,{"$f":"IFERROR(HLOOKUP(I$4,СВОДНЫЙ!$A$4:$X$186,155,FALSE),)","v":0},{"$f":"IFERROR(HLOOKUP(J$4,СВОДНЫЙ!$A$4:$X$186,155,FALSE),)","v":0},{"$f":"IFERROR(HLOOKUP(K$4,СВОДНЫЙ!$A$4:$X$186,155,FALSE),)","v":0},{"$f":"IFERROR(HLOOKUP(L$4,СВОДНЫЙ!$A$4:$X$186,155,FALSE),)","v":0},{"$f":"IFERROR(HLOOKUP(M$4,СВОДНЫЙ!$A$4:$X$186,155,FALSE),)","v":0},{"$f":"IFERROR(HLOOKUP(N$4,СВОДНЫЙ!$A$4:$X$186,155,FALSE),)","v":0},{"$f":"IFERROR(HLOOKUP(O$4,СВОДНЫЙ!$A$4:$X$186,155,FALSE),)","v":0},{"$f":"IFERROR(HLOOKUP(P$4,СВОДНЫЙ!$A$4:$X$186,155,FALSE),)","v":0},{"$f":"IFERROR(HLOOKUP(Q$4,СВОДНЫЙ!$A$4:$X$186,155,FALSE),)","v":0},{"$f":"IFERROR(HLOOKUP(R$4,СВОДНЫЙ!$A$4:$X$186,155,FALSE),)","v":0},{"$f":"IFERROR(HLOOKUP(S$4,СВОДНЫЙ!$A$4:$X$186,155,FALSE),)","v":0},{"$f":"IFERROR(HLOOKUP(T$4,СВОДНЫЙ!$A$4:$X$186,155,FALSE),)","v":0},{"$f":"IFERROR(HLOOKUP(U$4,СВОДНЫЙ!$A$4:$X$186,155,FALSE),)","v":0},{"$f":"IFERROR(HLOOKUP(V$4,СВОДНЫЙ!$A$4:$X$186,155,FALSE),)","v":0},{"$f":"IFERROR(HLOOKUP(W$4,СВОДНЫЙ!$A$4:$X$186,155,FALSE),)","v":0},{"$f":"IFERROR(HLOOKUP(X$4,СВОДНЫЙ!$A$4:$X$186,155,FALSE),)","v":0},{"$f":"IFERROR(HLOOKUP(Y$4,СВОДНЫЙ!$A$4:$X$186,155,FALSE),)","v":0},{"$f":"IFERROR(HLOOKUP(Z$4,СВОДНЫЙ!$A$4:$X$186,155,FALSE),)","v":0},{"$f":"IFERROR(HLOOKUP(AA$4,СВОДНЫЙ!$A$4:$X$186,155,FALSE),)","v":0},{"$f":"IFERROR(HLOOKUP(AB$4,СВОДНЫЙ!$A$4:$X$186,155,FALSE),)","v":0},{"$f":"IFERROR(HLOOKUP(AC$4,СВОДНЫЙ!$A$4:$X$186,155,FALSE),)","v":0},{"$f":"IFERROR(HLOOKUP(AD$4,СВОДНЫЙ!$A$4:$X$186,155,FALSE),)","v":0},{"$f":"IFERROR(HLOOKUP(AE$4,СВОДНЫЙ!$A$4:$X$186,155,FALSE),)","v":0}]
[null,"Всего сухие продукты",18,0,0,0,0,0,{"$f":"I18+I17+I16+I10","v":0},{"$f":"J18+J17+J16+J10","v":0},{"$f":"K18+K17+K16+K10","v":12},6,0,0,0,0,0,0,0,0,0,0,0,0,0,0,0,0,0,0,0]
[null,"Всего пицца \"Ристоранте\"",0,0,0,0,0,0,{"$f":"IFERROR(HLOOKUP(I$4,СВОДНЫЙ!$A$4:$X$186,178,FALSE),)","v":0},{"$f":"IFERROR(HLOOKUP(J$4,СВОДНЫЙ!$A$4:$X$186,178,FALSE),)","v":0},{"$f":"IFERROR(HLOOKUP(K$4,СВОДНЫЙ!$A$4:$X$186,178,FALSE),)","v":0},{"$f":"IFERROR(HLOOKUP(L$4,СВОДНЫЙ!$A$4:$X$186,178,FALSE),)","v":0},{"$f":"IFERROR(HLOOKUP(M$4,СВОДНЫЙ!$A$4:$X$186,178,FALSE),)","v":0},{"$f":"IFERROR(HLOOKUP(N$4,СВОДНЫЙ!$A$4:$X$186,178,FALSE),)","v":0},{"$f":"IFERROR(HLOOKUP(O$4,СВОДНЫЙ!$A$4:$X$186,178,FALSE),)","v":0},{"$f":"IFERROR(HLOOKUP(P$4,СВОДНЫЙ!$A$4:$X$186,178,FALSE),)","v":0},{"$f":"IFERROR(HLOOKUP(Q$4,СВОДНЫЙ!$A$4:$X$186,178,FALSE),)","v":0},{"$f":"IFERROR(HLOOKUP(R$4,СВОДНЫЙ!$A$4:$X$186,178,FALSE),)","v":0},{"$f":"IFERROR(HLOOKUP(S$4,СВОДНЫЙ!$A$4:$X$186,178,FALSE),)","v":0},{"$f":"IFERROR(HLOOKUP(T$4,СВОДНЫЙ!$A$4:$X$186,178,FALSE),)","v":0},{"$f":"IFERROR(HLOOKUP(U$4,СВОДНЫЙ!$A$4:$X$186,178,FALSE),)","v":0},{"$f":"IFERROR(HLOOKUP(V$4,СВОДНЫЙ!$A$4:$X$186,178,FALSE),)","v":0},{"$f":"IFERROR(HLOOKUP(W$4,СВОДНЫЙ!$A$4:$X$186,178,FALSE),)","v":0},{"$f":"IFERROR(HLOOKUP(X$4,СВОДНЫЙ!$A$4:$X$186,178,FALSE),)","v":0},{"$f":"IFERROR(HLOOKUP(Y$4,СВОДНЫЙ!$A$4:$X$186,178,FALSE),)","v":0},{"$f":"IFERROR(HLOOKUP(Z$4,СВОДНЫЙ!$A$4:$X$186,178,FALSE),)","v":0},{"$f":"IFERROR(HLOOKUP(AA$4,СВОДНЫЙ!$A$4:$X$186,178,FALSE),)","v":0},{"$f":"IFERROR(HLOOKUP(AB$4,СВОДНЫЙ!$A$4:$X$186,178,FALSE),)","v":0},{"$f":"IFERROR(HLOOKUP(AC$4,СВОДНЫЙ!$A$4:$X$186,178,FALSE),)","v":0},{"$f":"IFERROR(HLOOKUP(AD$4,СВОДНЫЙ!$A$4:$X$186,178,FALSE),)","v":0},{"$f":"IFERROR(HLOOKUP(AE$4,СВОДНЫЙ!$A$4:$X$186,178,FALSE),)","v":0}]
[null,"Всего Каса ди Мама",0,0,0,0,0,0,{"$f":"IFERROR(HLOOKUP(I$4,СВОДНЫЙ!4:190,185,FALSE),)","v":0},{"$f":"IFERROR(HLOOKUP(J$4,СВОДНЫЙ!4:190,185,FALSE),)","v":0},{"$f":"IFERROR(HLOOKUP(K$4,СВОДНЫЙ!4:190,185,FALSE),)","v":0},{"$f":"IFERROR(HLOOKUP(L$4,СВОДНЫЙ!4:190,185,FALSE),)","v":0},{"$f":"IFERROR(HLOOKUP(M$4,СВОДНЫЙ!4:190,185,FALSE),)","v":0},{"$f":"IFERROR(HLOOKUP(N$4,СВОДНЫЙ!4:190,185,FALSE),)","v":0},{"$f":"IFERROR(HLOOKUP(O$4,СВОДНЫЙ!4:190,185,FALSE),)","v":0},{"$f":"IFERROR(HLOOKUP(P$4,СВОДНЫЙ!4:190,185,FALSE),)","v":0},{"$f":"IFERROR(HLOOKUP(Q$4,СВОДНЫЙ!4:190,185,FALSE),)","v":0},{"$f":"IFERROR(HLOOKUP(R$4,СВОДНЫЙ!4:190,185,FALSE),)","v":0},{"$f":"IFERROR(HLOOKUP(S$4,СВОДНЫЙ!4:190,185,FALSE),)","v":0},{"$f":"IFERROR(HLOOKUP(T$4,СВОДНЫЙ!4:190,185,FALSE),)","v":0},{"$f":"IFERROR(HLOOKUP(U$4,СВОДНЫЙ!4:190,185,FALSE),)","v":0},{"$f":"IFERROR(HLOOKUP(V$4,СВОДНЫЙ!4:190,185,FALSE),)","v":0},{"$f":"IFERROR(HLOOKUP(W$4,СВОДНЫЙ!4:190,185,FALSE),)","v":0},{"$f":"IFERROR(HLOOKUP(X$4,СВОДНЫЙ!4:190,185,FALSE),)","v":0},{"$f":"IFERROR(HLOOKUP(Y$4,СВОДНЫЙ!4:190,185,FALSE),)","v":0},{"$f":"IFERROR(HLOOKUP(Z$4,СВОДНЫЙ!4:190,185,FALSE),)","v":0},{"$f":"IFERROR(HLOOKUP(AA$4,СВОДНЫЙ!4:190,185,FALSE),)","v":0},{"$f":"IFERROR(HLOOKUP(AB$4,СВОДНЫЙ!4:190,185,FALSE),)","v":0},{"$f":"IFERROR(HLOOKUP(AC$4,СВОДНЫЙ!4:190,185,FALSE),)","v":0},{"$f":"IFERROR(HLOOKUP(AD$4,СВОДНЫЙ!4:190,185,FALSE),)","v":0},{"$f":"IFERROR(HLOOKUP(AE$4,СВОДНЫЙ!4:190,185,FALSE),)","v":0}]
[null,"Всего заморож. продукты",18,0,0,0,0,0,{"$f":"SUM(I19:I21)","v":0},0,12,6,0,0,0,0,0,0,0,0,0,0,0,0,0,0,0,0,0,0,0]
[null,"Итог по всему ассортименту",36,0,0,0,0,0,{"$f":"I22+I19","v":0},{"$f":"J22+J19","v":0},{"$f":"K22+K19","v":24},12,0,0,0,0,0,0,0,0,0,0,0,0,0,0,0,0,0,0,0]
[]
[null,"Данный диапазон на всех листах с городами одинаковый без изменений",null,null,null,null,null,null,"Данный диапазон содержит формулы для копирования в таблицу справа"]

{"sheet":"Уфа","index":6,"n_rows":25,"n_cols":31,"rows_kept":25,"cut":false,"hidden":false,"merged":[[24,1,24,7]]}
[]
[null,{"$f":"MID(CELL(\"ИМЯФАЙЛА\",A1),SEARCH(\"]\",CELL(\"ИМЯФАЙЛА\",A1))+1,255)","v":"Уфа"}]
[]
[null,null,"Итог","Метро","Перекресток","Х","Х","Х","Ф-лы","Кл4","Кл5","Мг1","Мг5",null,null,null,null,null,0,0,0,0,0,0,0,0,0,0,0,0,0]
["Метро","Разрыхлитель теста,10г. ",{"$f":"SUM(J5:AE5)","v":1},{"$f":"SUMIF($J$4:$AE$4,D$4&\"*\",J5:AE5)","v":0},{"$f":"SUMIF($J$4:$AE$4,E$4&\"*\",J5:AE5)","v":0},{"$f":"SUMIF($J$4:$AE$4,F$4&\"*\",J5:AE5)","v":0},{"$f":"SUMIF($J$4:$AE$4,G$4&\"*\",J5:AE5)","v":0},{"$f":"SUMIF($J$4:$DF$4,H$4&\"*\",J5:DF5)","v":0},{"$f":"IFERROR(HLOOKUP(I$4,СВОДНЫЙ!$A$4:$X$186,2,FALSE),)","v":0},{"$f":"IFERROR(HLOOKUP(J$4,СВОДНЫЙ!$A$4:$X$186,2,FALSE),)","v":0},{"$f":"IFERROR(HLOOKUP(K$4,СВОДНЫЙ!$A$4:$X$186,2,FALSE),)","v":0},{"$f":"IFERROR(HLOOKUP(L$4,СВОДНЫЙ!$A$4:$X$186,2,FALSE),)","v":1},{"$f":"IFERROR(HLOOKUP(M$4,СВОДНЫЙ!$A$4:$X$186,2,FALSE),)","v":0},{"$f":"IFERROR(HLOOKUP(N$4,СВОДНЫЙ!$A$4:$X$186,2,FALSE),)","v":0},{"$f":"IFERROR(HLOOKUP(O$4,СВОДНЫЙ!$A$4:$X$186,2,FALSE),)","v":0},{"$f":"IFERROR(HLOOKUP(P$4,СВОДНЫЙ!$A$4:$X$186,2,FALSE),)","v":0},{"$f":"IFERROR(HLOOKUP(Q$4,СВОДНЫЙ!$A$4:$X$186,2,FALSE),)","v":0},{"$f":"IFERROR(HLOOKUP(R$4,СВОДНЫЙ!$A$4:$X$186,2,FALSE),)","v":0},{"$f":"IFERROR(HLOOKUP(S$4,СВОДНЫЙ!$A$4:$X$186,2,FALSE),)","v":0},{"$f":"IFERROR(HLOOKUP(T$4,СВОДНЫЙ!$A$4:$X$186,2,FALSE),)","v":0},{"$f":"IFERROR(HLOOKUP(U$4,СВОДНЫЙ!$A$4:$X$186,2,FALSE),)","v":0},{"$f":"IFERROR(HLOOKUP(V$4,СВОДНЫЙ!$A$4:$X$186,2,FALSE),)","v":0},{"$f":"IFERROR(HLOOKUP(W$4,СВОДНЫЙ!$A$4:$X$186,2,FALSE),)","v":0},{"$f":"IFERROR(HLOOKUP(X$4,СВОДНЫЙ!$A$4:$X$186,2,FALSE),)","v":0},{"$f":"IFERROR(HLOOKUP(Y$4,СВОДНЫЙ!$A$4:$X$186,2,FALSE),)","v":0},{"$f":"IFERROR(HLOOKUP(Z$4,СВОДНЫЙ!$A$4:$X$186,2,FALSE),)","v":0},{"$f":"IFERROR(HLOOKUP(AA$4,СВОДНЫЙ!$A$4:$X$186,2,FALSE),)","v":0},{"$f":"IFERROR(HLOOKUP(AB$4,СВОДНЫЙ!$A$4:$X$186,2,FALSE),)","v":0},{"$f":"IFERROR(HLOOKUP(AC$4,СВОДНЫЙ!$A$4:$X$186,2,FALSE),)","v":0},{"$f":"IFERROR(HLOOKUP(AD$4,СВОДНЫЙ!$A$4:$X$186,2,FALSE),)","v":0},{"$f":"IFERROR(HLOOKUP(AE$4,СВОДНЫЙ!$A$4:$X$186,2,FALSE),)","v":0}]
["Ашан","Дрожжи сух.мгновеннодейств. ",{"$f":"SUM(J6:AE6)","v":6},0,0,0,0,{"$f":"SUMIF($J$4:$DF$4,H$4&\"*\",J6:DF6)","v":0},{"$f":"IFERROR(HLOOKUP(I$4,СВОДНЫЙ!$A$4:$X$186,13,FALSE),)","v":0},{"$f":"IFERROR(HLOOKUP(J$4,СВОДНЫЙ!$A$4:$X$186,13,FALSE),)","v":6},{"$f":"IFERROR(HLOOKUP(K$4,СВОДНЫЙ!$A$4:$X$186,13,FALSE),)","v":0},{"$f":"IFERROR(HLOOKUP(L$4,СВОДНЫЙ!$A$4:$X$186,13,FALSE),)","v":0},{"$f":"IFERROR(HLOOKUP(M$4,СВОДНЫЙ!$A$4:$X$186,13,FALSE),)","v":0},{"$f":"IFERROR(HLOOKUP(N$4,СВОДНЫЙ!$A$4:$X$186,13,FALSE),)","v":0},{"$f":"IFERROR(HLOOKUP(O$4,СВОДНЫЙ!$A$4:$X$186,13,FALSE),)","v":0},{"$f":"IFERROR(HLOOKUP(P$4,СВОДНЫЙ!$A$4:$X$186,13,FALSE),)","v":0},{"$f":"IFERROR(HLOOKUP(Q$4,СВОДНЫЙ!$A$4:$X$186,13,FALSE),)","v":0},{"$f":"IFERROR(HLOOKUP(R$4,СВОДНЫЙ!$A$4:$X$186,13,FALSE),)","v":0},{"$f":"IFERROR(HLOOKUP(S$4,СВОДНЫЙ!$A$4:$X$186,13,FALSE),)","v":0},{"$f":"IFERROR(HLOOKUP(T$4,СВОДНЫЙ!$A$4:$X$186,13,FALSE),)","v":0},{"$f":"IFERROR(HLOOKUP(U$4,СВОДНЫЙ!$A$4:$X$186,13,FALSE),)","v":0},{"$f":"IFERROR(HLOOKUP(V$4,СВОДНЫЙ!$A$4:$X$186,13,FALSE),)","v":0},{"$f":"IFERROR(HLOOKUP(W$4,СВОДНЫЙ!$A$4:$X$186,13,FALSE),)","v":0},{"$f":"IFERROR(HLOOKUP(X$4,СВОДНЫЙ!$A$4:$X$186,13,FALSE),)","v":0},{"$f":"IFERROR(HLOOKUP(Y$4,СВОДНЫЙ!$A$4:$X$186,13,FALSE),)","v":0},{"$f":"IFERROR(HLOOKUP(Z$4,СВОДНЫЙ!$A$4:$X$186,13,FALSE),)","v":0},{"$f":"IFERROR(HLOOKUP(AA$4,СВОДНЫЙ!$A$4:$X$186,13,FALSE),)","v":0},{"$f":"IFERROR(HLOOKUP(AB$4,СВОДНЫЙ!$A$4:$X$186,13,FALSE),)","v":0},{"$f":"IFERROR(HLOOKUP(AC$4,СВОДНЫЙ!$A$4:$X$186,13,FALSE),)","v":0},{"$f":"IFERROR(HLOOKUP(AD$4,СВОДНЫЙ!$A$4:$X$186,13,FALSE),)","v":0},{"$f":"IFERROR(HLOOKUP(AE$4,СВОДНЫЙ!$A$4:$X$186,13,FALSE),)","v":0}]
["Перекресток","Ванильный сахар,8г. ",8,0,0,0,0,0,{"$f":"IFERROR(HLOOKUP(I$4,СВОДНЫЙ!$A$4:$X$186,23,FALSE),)","v":0},{"$f":"IFERROR(HLOOKUP(J$4,СВОДНЫЙ!$A$4:$X$186,23,FALSE),)","v":0},{"$f":"IFERROR(HLOOKUP(K$4,СВОДНЫЙ!$A$4:$X$186,23,FALSE),)","v":5},{"$f":"IFERROR(HLOOKUP(L$4,СВОДНЫЙ!$A$4:$X$186,23,FALSE),)","v":0},{"$f":"IFERROR(HLOOKUP(M$4,СВОДНЫЙ!$A$4:$X$186,23,FALSE),)","v":3},{"$f":"IFERROR(HLOOKUP(N$4,СВОДНЫЙ!$A$4:$X$186,23,FALSE),)","v":0},{"$f":"IFERROR(HLOOKUP(O$4,СВОДНЫЙ!$A$4:$X$186,23,FALSE),)","v":0},{"$f":"IFERROR(HLOOKUP(P$4,СВОДНЫЙ!$A$4:$X$186,23,FALSE),)","v":0},{"$f":"IFERROR(HLOOKUP(Q$4,СВОДНЫЙ!$A$4:$X$186,23,FALSE),)","v":0},{"$f":"IFERROR(HLOOKUP(R$4,СВОДНЫЙ!$A$4:$X$186,23,FALSE),)","v":0},{"$f":"IFERROR(HLOOKUP(S$4,СВОДНЫЙ!$A$4:$X$186,23,FALSE),)","v":0},{"$f":"IFERROR(HLOOKUP(T$4,СВОДНЫЙ!$A$4:$X$186,23,FALSE),)","v":0},{"$f":"IFERROR(HLOOKUP(U$4,СВОДНЫЙ!$A$4:$X$186,23,FALSE),)","v":0},{"$f":"IFERROR(HLOOKUP(V$4,СВОДНЫЙ!$A$4:$X$186,23,FALSE),)","v":0},{"$f":"IFERROR(HLOOKUP(W$4,СВОДНЫЙ!$A$4:$X$186,23,FALSE),)","v":0},{"$f":"IFERROR(HLOOKUP(X$4,СВОДНЫЙ!$A$4:$X$186,23,FALSE),)","v":0},{"$f":"IFERROR(HLOOKUP(Y$4,СВОДНЫЙ!$A$4:$X$186,23,FALSE),)","v":0},{"$f":"IFERROR(HLOOKUP(Z$4,СВОДНЫЙ!$A$4:$X$186,23,FALSE),)","v":0},{"$f":"IFERROR(HLOOKUP(AA$4,СВОДНЫЙ!$A$4:$X$186,23,FALSE),)","v":0},{"$f":"IFERROR(HLOOKUP(AB$4,СВОДНЫЙ!$A$4:$X$186,23,FALSE),)","v":0},{"$f":"IFERROR(HLOOKUP(AC$4,СВОДНЫЙ!$A$4:$X$186,23,FALSE),)","v":0},{"$f":"IFERROR(HLOOKUP(AD$4,СВОДНЫЙ!$A$4:$X$186,23,FALSE),)","v":0},{"$f":"IFERROR(HLOOKUP(AE$4,СВОДНЫЙ!$A$4:$X$186,23,FALSE),)","v":0}]
["Тандер","Желатин быстрорастворимый,10г ",0,0,0,0,0,0,{"$f":"IFERROR(HLOOKUP(I$4,СВОДНЫЙ!$A$4:$X$186,32,FALSE),)","v":0},{"$f":"IFERROR(HLOOKUP(J$4,СВОДНЫЙ!$A$4:$X$186,32,FALSE),)","v":0},{"$f":"IFERROR(HLOOKUP(K$4,СВОДНЫЙ!$A$4:$X$186,32,FALSE),)","v":0},{"$f":"IFERROR(HLOOKUP(L$4,СВОДНЫЙ!$A$4:$X$186,32,FALSE),)","v":0},{"$f":"IFERROR(HLOOKUP(M$4,СВОДНЫЙ!$A$4:$X$186,32,FALSE),)","v":0},{"$f":"IFERROR(HLOOKUP(N$4,СВОДНЫЙ!$A$4:$X$186,32,FALSE),)","v":0},{"$f":"IFERROR(HLOOKUP(O$4,СВОДНЫЙ!$A$4:$X$186,32,FALSE),)","v":0},{"$f":"IFERROR(HLOOKUP(P$4,СВОДНЫЙ!$A$4:$X$186,32,FALSE),)","v":0},{"$f":"IFERROR(HLOOKUP(Q$4,СВОДНЫЙ!$A$4:$X$186,32,FALSE),)","v":0},{"$f":"IFERROR(HLOOKUP(R$4,СВОДНЫЙ!$A$4:$X$186,32,FALSE),)","v":0},{"$f":"IFERROR(HLOOKUP(S$4,СВОДНЫЙ!$A$4:$X$186,32,FALSE),)","v":0},{"$f":"IFERROR(HLOOKUP(T$4,СВОДНЫЙ!$A$4:$X$186,32,FALSE),)","v":0},{"$f":"IFERROR(HLOOKUP(U$4,СВОДНЫЙ!$A$4:$X$186,32,FALSE),)","v":0},{"$f":"IFERROR(HLOOKUP(V$4,СВОДНЫЙ!$A$4:$X$186,32,FALSE),)","v":0},{"$f":"IFERROR(HLOOKUP(W$4,СВОДНЫЙ!$A$4:$X$186,32,FALSE),)","v":0},{"$f":"IFERROR(HLOOKUP(X$4,СВОДНЫЙ!$A$4:$X$186,32,FALSE),)","v":0},{"$f":"IFERROR(HLOOKUP(Y$4,СВОДНЫЙ!$A$4:$X$186,32,FALSE),)","v":0},{"$f":"IFERROR(HLOOKUP(Z$4,СВОДНЫЙ!$A$4:$X$186,32,FALSE),)","v":0},{"$f":"IFERROR(HLOOKUP(AA$4,СВОДНЫЙ!$A$4:$X$186,32,FALSE),)","v":0},{"$f":"IFERROR(HLOOKUP(AB$4,СВОДНЫЙ!$A$4:$X$186,32,FALSE),)","v":0},{"$f":"IFERROR(HLOOKUP(AC$4,СВОДНЫЙ!$A$4:$X$186,32,FALSE),)","v":0},{"$f":"IFERROR(HLOOKUP(AD$4,СВОДНЫЙ!$A$4:$X$186,32,FALSE),)","v":0},{"$f":"IFERROR(HLOOKUP(AE$4,СВОДНЫЙ!$A$4:$X$186,32,FALSE),)","v":0}]
["Х","Прочие ингредиенты для выпечки",11,0,0,0,0,0,{"$f":"IFERROR(HLOOKUP(I$4,СВОДНЫЙ!$A$4:$X$186,70,FALSE),)","v":0},{"$f":"IFERROR(HLOOKUP(J$4,СВОДНЫЙ!$A$4:$X$186,70,FALSE),)","v":0},{"$f":"IFERROR(HLOOKUP(K$4,СВОДНЫЙ!$A$4:$X$186,70,FALSE),)","v":11},{"$f":"IFERROR(HLOOKUP(L$4,СВОДНЫЙ!$A$4:$X$186,70,FALSE),)","v":0},{"$f":"IFERROR(HLOOKUP(M$4,СВОДНЫЙ!$A$4:$X$186,70,FALSE),)","v":0},{"$f":"IFERROR(HLOOKUP(N$4,СВОДНЫЙ!$A$4:$X$186,70,FALSE),)","v":0},{"$f":"IFERROR(HLOOKUP(O$4,СВОДНЫЙ!$A$4:$X$186,70,FALSE),)","v":0},{"$f":"IFERROR(HLOOKUP(P$4,СВОДНЫЙ!$A$4:$X$186,70,FALSE),)","v":0},{"$f":"IFERROR(HLOOKUP(Q$4,СВОДНЫЙ!$A$4:$X$186,70,FALSE),)","v":0},{"$f":"IFERROR(HLOOKUP(R$4,СВОДНЫЙ!$A$4:$X$186,70,FALSE),)","v":0},{"$f":"IFERROR(HLOOKUP(S$4,СВОДНЫЙ!$A$4:$X$186,70,FALSE),)","v":0},{"$f":"IFERROR(HLOOKUP(T$4,СВОДНЫЙ!$A$4:$X$186,70,FALSE),)","v":0},{"$f":"IFERROR(HLOOKUP(U$4,СВОДНЫЙ!$A$4:$X$186,70,FALSE),)","v":0},{"$f":"IFERROR(HLOOKUP(V$4,СВОДНЫЙ!$A$4:$X$186,70,FALSE),)","v":0},{"$f":"IFERROR(HLOOKUP(W$4,СВОДНЫЙ!$A$4:$X$186,70,FALSE),)","v":0},{"$f":"IFERROR(HLOOKUP(X$4,СВОДНЫЙ!$A$4:$X$186,70,FALSE),)","v":0},{"$f":"IFERROR(HLOOKUP(Y$4,СВОДНЫЙ!$A$4:$X$186,70,FALSE),)","v":0},{"$f":"IFERROR(HLOOKUP(Z$4,СВОДНЫЙ!$A$4:$X$186,70,FALSE),)","v":0},{"$f":"IFERROR(HLOOKUP(AA$4,СВОДНЫЙ!$A$4:$X$186,70,FALSE),)","v":0},{"$f":"IFERROR(HLOOKUP(AB$4,СВОДНЫЙ!$A$4:$X$186,70,FALSE),)","v":0},{"$f":"IFERROR(HLOOKUP(AC$4,СВОДНЫЙ!$A$4:$X$186,70,FALSE),)","v":0},{"$f":"IFERROR(HLOOKUP(AD$4,СВОДНЫЙ!$A$4:$X$186,70,FALSE),)","v":0},{"$f":"IFERROR(HLOOKUP(AE$4,СВОДНЫЙ!$A$4:$X$186,70,FALSE),)","v":0}]
[null,"Всего ингредиенты для выпечки",26,0,0,0,0,0,{"$f":"SUM(I5:I9)","v":0},{"$f":"SUM(J5:J9)","v":6},{"$f":"SUM(K5:K9)","v":16},1,3,0,0,0,0,0,0,0,0,0,0,0,0,0,0,0,0,0,0]
[null,"Всего пудинги",0,0,0,0,0,0,{"$f":"IFERROR(HLOOKUP(I$4,СВОДНЫЙ!$A$4:$X$186,82,FALSE),)","v":0},{"$f":"IFERROR(HLOOKUP(J$4,СВОДНЫЙ!$A$4:$X$186,82,FALSE),)","v":0},{"$f":"IFERROR(HLOOKUP(K$4,СВОДНЫЙ!$A$4:$X$186,82,FALSE),)","v":0},{"$f":"IFERROR(HLOOKUP(L$4,СВОДНЫЙ!$A$4:$X$186,82,FALSE),)","v":0},{"$f":"IFERROR(HLOOKUP(M$4,СВОДНЫЙ!$A$4:$X$186,82,FALSE),)","v":0},{"$f":"IFERROR(HLOOKUP(N$4,СВОДНЫЙ!$A$4:$X$186,82,FALSE),)","v":0},{"$f":"IFERROR(HLOOKUP(O$4,СВОДНЫЙ!$A$4:$X$186,82,FALSE),)","v":0},{"$f":"IFERROR(HLOOKUP(P$4,СВОДНЫЙ!$A$4:$X$186,82,FALSE),)","v":0},{"$f":"IFERROR(HLOOKUP(Q$4,СВОДНЫЙ!$A$4:$X$186,82,FALSE),)","v":0},{"$f":"IFERROR(HLOOKUP(R$4,СВОДНЫЙ!$A$4:$X$186,82,FALSE),)","v":0},{"$f":"IFERROR(HLOOKUP(S$4,СВОДНЫЙ!$A$4:$X$186,82,FALSE),)","v":0},{"$f":"IFERROR(HLOOKUP(T$4,СВОДНЫЙ!$A$4:$X$186,82,FALSE),)","v":0},{"$f":"IFERROR(HLOOKUP(U$4,СВОДНЫЙ!$A$4:$X$186,82,FALSE),)","v":0},{"$f":"IFERROR(HLOOKUP(V$4,СВОДНЫЙ!$A$4:$X$186,82,FALSE),)","v":0},{"$f":"IFERROR(HLOOKUP(W$4,СВОДНЫЙ!$A$4:$X$186,82,FALSE),)","v":0},{"$f":"IFERROR(HLOOKUP(X$4,СВОДНЫЙ!$A$4:$X$186,82,FALSE),)","v":0},{"$f":"IFERROR(HLOOKUP(Y$4,СВОДНЫЙ!$A$4:$X$186,82,FALSE),)","v":0},{"$f":"IFERROR(HLOOKUP(Z$4,СВОДНЫЙ!$A$4:$X$186,82,FALSE),)","v":0},{"$f":"IFERROR(HLOOKUP(AA$4,СВОДНЫЙ!$A$4:$X$186,82,FALSE),)","v":0},{"$f":"IFERROR(HLOOKUP(AB$4,СВОДНЫЙ!$A$4:$X$186,82,FALSE),)","v":0},{"$f":"IFERROR(HLOOKUP(AC$4,СВОДНЫЙ!$A$4:$X$186,82,FALSE),)","v":0},{"$f":"IFERROR(HLOOKUP(AD$4,СВОДНЫЙ!$A$4:$X$186,82,FALSE),)","v":0},{"$f":"IFERROR(HLOOKUP(AE$4,СВОДНЫЙ!$A$4:$X$186,82,FALSE),)","v":0}]
[null,"Всего трад. кисель",0,0,0,0,0,0,{"$f":"IFERROR(HLOOKUP(I$4,СВОДНЫЙ!$A$4:$X$186,92,FALSE),)","v":0},{"$f":"IFERROR(HLOOKUP(J$4,СВОДНЫЙ!$A$4:$X$186,92,FALSE),)","v":0},{"$f":"IFERROR(HLOOKUP(K$4,СВОДНЫЙ!$A$4:$X$186,92,FALSE),)","v":0},{"$f":"IFERROR(HLOOKUP(L$4,СВОДНЫЙ!$A$4:$X$186,92,FALSE),)","v":0},{"$f":"IFERROR(HLOOKUP(M$4,СВОДНЫЙ!$A$4:$X$186,92,FALSE),)","v":0},{"$f":"IFERROR(HLOOKUP(N$4,СВОДНЫЙ!$A$4:$X$186,92,FALSE),)","v":0},{"$f":"IFERROR(HLOOKUP(O$4,СВОДНЫЙ!$A$4:$X$186,92,FALSE),)","v":0},{"$f":"IFERROR(HLOOKUP(P$4,СВОДНЫЙ!$A$4:$X$186,92,FALSE),)","v":0},{"$f":"IFERROR(HLOOKUP(Q$4,СВОДНЫЙ!$A$4:$X$186,92,FALSE),)","v":0},{"$f":"IFERROR(HLOOKUP(R$4,СВОДНЫЙ!$A$4:$X$186,92,FALSE),)","v":0},{"$f":"IFERROR(HLOOKUP(S$4,СВОДНЫЙ!$A$4:$X$186,92,FALSE),)","v":0},{"$f":"IFERROR(HLOOKUP(T$4,СВОДНЫЙ!$A$4:$X$186,92,FALSE),)","v":0},{"$f":"IFERROR(HLOOKUP(U$4,СВОДНЫЙ!$A$4:$X$186,92,FALSE),)","v":0},{"$f":"IFERROR(HLOOKUP(V$4,СВОДНЫЙ!$A$4:$X$186,92,FALSE),)","v":0},{"$f":"IFERROR(HLOOKUP(W$4,СВОДНЫЙ!$A$4:$X$186,92,FALSE),)","v":0},{"$f":"IFERROR(HLOOKUP(X$4,СВОДНЫЙ!$A$4:$X$186,92,FALSE),)","v":0},{"$f":"IFERROR(HLOOKUP(Y$4,СВОДНЫЙ!$A$4:$X$186,92,FALSE),)","v":0},{"$f":"IFERROR(HLOOKUP(Z$4,СВОДНЫЙ!$A$4:$X$186,92,FALSE),)","v":0},{"$f":"IFERROR(HLOOKUP(AA$4,СВОДНЫЙ!$A$4:$X$186,92,FALSE),)","v":0},{"$f":"IFERROR(HLOOKUP(AB$4,СВОДНЫЙ!$A$4:$X$186,92,FALSE),)","v":0},{"$f":"IFERROR(HLOOKUP(AC$4,СВОДНЫЙ!$A$4:$X$186,92,FALSE),)","v":0},{"$f":"IFERROR(HLOOKUP(AD$4,СВОДНЫЙ!$A$4:$X$186,92,FALSE),)","v":0},{"$f":"IFERROR(HLOOKUP(AE$4,СВОДНЫЙ!$A$4:$X$186,92,FALSE),)","v":0}]
[null,"Всего кисель \"Сладкий Момент\"",0,0,0,0,0,0,{"$f":"IFERROR(HLOOKUP(I$4,СВОДНЫЙ!$A$4:$X$186,101,FALSE),)","v":0},{"$f":"IFERROR(HLOOKUP(J$4,СВОДНЫЙ!$A$4:$X$186,101,FALSE),)","v":0},{"$f":"IFERROR(HLOOKUP(K$4,СВОДНЫЙ!$A$4:$X$186,101,FALSE),)","v":0},{"$f":"IFERROR(HLOOKUP(L$4,СВОДНЫЙ!$A$4:$X$186,101,FALSE),)","v":0},{"$f":"IFERROR(HLOOKUP(M$4,СВОДНЫЙ!$A$4:$X$186,101,FALSE),)","v":0},{"$f":"IFERROR(HLOOKUP(N$4,СВОДНЫЙ!$A$4:$X$186,101,FALSE),)","v":0},{"$f":"IFERROR(HLOOKUP(O$4,СВОДНЫЙ!$A$4:$X$186,101,FALSE),)","v":0},{"$f":"IFERROR(HLOOKUP(P$4,СВОДНЫЙ!$A$4:$X$186,101,FALSE),)","v":0},{"$f":"IFERROR(HLOOKUP(Q$4,СВОДНЫЙ!$A$4:$X$186,101,FALSE),)","v":0},{"$f":"IFERROR(HLOOKUP(R$4,СВОДНЫЙ!$A$4:$X$186,101,FALSE),)","v":0},{"$f":"IFERROR(HLOOKUP(S$4,СВОДНЫЙ!$A$4:$X$186,101,FALSE),)","v":0},{"$f":"IFERROR(HLOOKUP(T$4,СВОДНЫЙ!$A$4:$X$186,101,FALSE),)","v":0},{"$f":"IFERROR(HLOOKUP(U$4,СВОДНЫЙ!$A$4:$X$186,101,FALSE),)","v":0},{"$f":"IFERROR(HLOOKUP(V$4,СВОДНЫЙ!$A$4:$X$186,101,FALSE),)","v":0},{"$f":"IFERROR(HLOOKUP(W$4,СВОДНЫЙ!$A$4:$X$186,101,FALSE),)","v":0},{"$f":"IFERROR(HLOOKUP(X$4,СВОДНЫЙ!$A$4:$X$186,101,FALSE),)","v":0},{"$f":"IFERROR(HLOOKUP(Y$4,СВОДНЫЙ!$A$4:$X$186,101,FALSE),)","v":0},{"$f":"IFERROR(HLOOKUP(Z$4,СВОДНЫЙ!$A$4:$X$186,101,FALSE),)","v":0},{"$f":"IFERROR(HLOOKUP(AA$4,СВОДНЫЙ!$A$4:$X$186,101,FALSE),)","v":0},{"$f":"IFERROR(HLOOKUP(AB$4,СВОДНЫЙ!$A$4:$X$186,101,FALSE),)","v":0},{"$f":"IFERROR(HLOOKUP(AC$4,СВОДНЫЙ!$A$4:$X$186,101,FALSE),)","v":0},{"$f":"IFERROR(HLOOKUP(AD$4,СВОДНЫЙ!$A$4:$X$186,101,FALSE),)","v":0},{"$f":"IFERROR(HLOOKUP(AE$4,СВОДНЫЙ!$A$4:$X$186,101,FALSE),)","v":0}]
[null,"Всего желе",0,0,0,0,0,0,{"$f":"IFERROR(HLOOKUP(I$4,СВОДНЫЙ!$A$4:$X$186,118,FALSE),)","v":0},{"$f":"IFERROR(HLOOKUP(J$4,СВОДНЫЙ!$A$4:$X$186,118,FALSE),)","v":0},{"$f":"IFERROR(HLOOKUP(K$4,СВОДНЫЙ!$A$4:$X$186,118,FALSE),)","v":0},{"$f":"IFERROR(HLOOKUP(L$4,СВОДНЫЙ!$A$4:$X$186,118,FALSE),)","v":0},{"$f":"IFERROR(HLOOKUP(M$4,СВОДНЫЙ!$A$4:$X$186,118,FALSE),)","v":0},{"$f":"IFERROR(HLOOKUP(N$4,СВОДНЫЙ!$A$4:$X$186,118,FALSE),)","v":0},{"$f":"IFERROR(HLOOKUP(O$4,СВОДНЫЙ!$A$4:$X$186,118,FALSE),)","v":0},{"$f":"IFERROR(HLOOKUP(P$4,СВОДНЫЙ!$A$4:$X$186,118,FALSE),)","v":0},{"$f":"IFERROR(HLOOKUP(Q$4,СВОДНЫЙ!$A$4:$X$186,118,FALSE),)","v":0},{"$f":"IFERROR(HLOOKUP(R$4,СВОДНЫЙ!$A$4:$X$186,118,FALSE),)","v":0},{"$f":"IFERROR(HLOOKUP(S$4,СВОДНЫЙ!$A$4:$X$186,118,FALSE),)","v":0},{"$f":"IFERROR(HLOOKUP(T$4,СВОДНЫЙ!$A$4:$X$186,118,FALSE),)","v":0},{"$f":"IFERROR(HLOOKUP(U$4,СВОДНЫЙ!$A$4:$X$186,118,FALSE),)","v":0},{"$f":"IFERROR(HLOOKUP(V$4,СВОДНЫЙ!$A$4:$X$186,118,FALSE),)","v":0},{"$f":"IFERROR(HLOOKUP(W$4,СВОДНЫЙ!$A$4:$X$186,118,FALSE),)","v":0},{"$f":"IFERROR(HLOOKUP(X$4,СВОДНЫЙ!$A$4:$X$186,118,FALSE),)","v":0},{"$f":"IFERROR(HLOOKUP(Y$4,СВОДНЫЙ!$A$4:$X$186,118,FALSE),)","v":0},{"$f":"IFERROR(HLOOKUP(Z$4,СВОДНЫЙ!$A$4:$X$186,118,FALSE),)","v":0},{"$f":"IFERROR(HLOOKUP(AA$4,СВОДНЫЙ!$A$4:$X$186,118,FALSE),)","v":0},{"$f":"IFERROR(HLOOKUP(AB$4,СВОДНЫЙ!$A$4:$X$186,118,FALSE),)","v":0},{"$f":"IFERROR(HLOOKUP(AC$4,СВОДНЫЙ!$A$4:$X$186,118,FALSE),)","v":0},{"$f":"IFERROR(HLOOKUP(AD$4,СВОДНЫЙ!$A$4:$X$186,118,FALSE),)","v":0},{"$f":"IFERROR(HLOOKUP(AE$4,СВОДНЫЙ!$A$4:$X$186,118,FALSE),)","v":0}]
[null,"Другие десерты",0,0,0,0,0,0,{"$f":"IFERROR(HLOOKUP(I$4,СВОДНЫЙ!$A$4:$X$186,121,FALSE),)","v":0},{"$f":"IFERROR(HLOOKUP(J$4,СВОДНЫЙ!$A$4:$X$186,121,FALSE),)","v":0},{"$f":"IFERROR(HLOOKUP(K$4,СВОДНЫЙ!$A$4:$X$186,121,FALSE),)","v":0},{"$f":"IFERROR(HLOOKUP(L$4,СВОДНЫЙ!$A$4:$X$186,121,FALSE),)","v":0},{"$f":"IFERROR(HLOOKUP(M$4,СВОДНЫЙ!$A$4:$X$186,121,FALSE),)","v":0},{"$f":"IFERROR(HLOOKUP(N$4,СВОДНЫЙ!$A$4:$X$186,121,FALSE),)","v":0},{"$f":"IFERROR(HLOOKUP(O$4,СВОДНЫЙ!$A$4:$X$186,121,FALSE),)","v":0},{"$f":"IFERROR(HLOOKUP(P$4,СВОДНЫЙ!$A$4:$X$186,121,FALSE),)","v":0},{"$f":"IFERROR(HLOOKUP(Q$4,СВОДНЫЙ!$A$4:$X$186,121,FALSE),)","v":0},{"$f":"IFERROR(HLOOKUP(R$4,СВОДНЫЙ!$A$4:$X$186,121,FALSE),)","v":0},{"$f":"IFERROR(HLOOKUP(S$4,СВОДНЫЙ!$A$4:$X$186,121,FALSE),)","v":0},{"$f":"IFERROR(HLOOKUP(T$4,СВОДНЫЙ!$A$4:$X$186,121,FALSE),)","v":0},{"$f":"IFERROR(HLOOKUP(U$4,СВОДНЫЙ!$A$4:$X$186,121,FALSE),)","v":0},{"$f":"IFERROR(HLOOKUP(V$4,СВОДНЫЙ!$A$4:$X$186,121,FALSE),)","v":0},{"$f":"IFERROR(HLOOKUP(W$4,СВОДНЫЙ!$A$4:$X$186,121,FALSE),)","v":0},{"$f":"IFERROR(HLOOKUP(X$4,СВОДНЫЙ!$A$4:$X$186,121,FALSE),)","v":0},{"$f":"IFERROR(HLOOKUP(Y$4,СВОДНЫЙ!$A$4:$X$186,121,FALSE),)","v":0},{"$f":"IFERROR(HLOOKUP(Z$4,СВОДНЫЙ!$A$4:$X$186,121,FALSE),)","v":0},{"$f":"IFERROR(HLOOKUP(AA$4,СВОДНЫЙ!$A$4:$X$186,121,FALSE),)","v":0},{"$f":"IFERROR(HLOOKUP(AB$4,СВОДНЫЙ!$A$4:$X$186,121,FALSE),)","v":0},{"$f":"IFERROR(HLOOKUP(AC$4,СВОДНЫЙ!$A$4:$X$186,121,FALSE),)","v":0},{"$f":"IFERROR(HLOOKUP(AD$4,СВОДНЫЙ!$A$4:$X$186,121,FALSE),)","v":0},{"$f":"IFERROR(HLOOKUP(AE$4,СВОДНЫЙ!$A$4:$X$186,121,FALSE),)","v":0}]
[null,"Сумма Десертов всего",0,0,0,0,0,0,{"$f":"SUM(I11:I15)","v":0},{"$f":"SUM(J11:J15)","v":0},{"$f":"SUM(K11:K15)","v":0},0,0,0,0,0,0,0,0,0,0,0,0,0,0,0,0,0,0,0,0]
[null,"Всего средства для консервир-я",0,0,0,0,0,0,{"$f":"IFERROR(HLOOKUP(I$4,СВОДНЫЙ!$A$4:$X$186,138,FALSE),)","v":0},{"$f":"IFERROR(HLOOKUP(J$4,СВОДНЫЙ!$A$4:$X$186,138,FALSE),)","v":0},{"$f":"IFERROR(HLOOKUP(K$4,СВОДНЫЙ!$A$4:$X$186,138,FALSE),)","v":0},{"$f":"IFERROR(HLOOKUP(L$4,СВОДНЫЙ!$A$4:$X$186,138,FALSE),)","v":0},{"$f":"IFERROR(HLOOKUP(M$4,СВОДНЫЙ!$A$4:$X$186,138,FALSE),)","v":0},{"$f":"IFERROR(HLOOKUP(N$4,СВОДНЫЙ!$A$4:$X$186,138,FALSE),)","v":0},{"$f":"IFERROR(HLOOKUP(O$4,СВОДНЫЙ!$A$4:$X$186,138,FALSE),)","v":0},{"$f":"IFERROR(HLOOKUP(P$4,СВОДНЫЙ!$A$4:$X$186,138,FALSE),)","v":0},{"$f":"IFERROR(HLOOKUP(Q$4,СВОДНЫЙ!$A$4:$X$186,138,FALSE),)","v":0},{"$f":"IFERROR(HLOOKUP(R$4,СВОДНЫЙ!$A$4:$X$186,138,FALSE),)","v":0},{"$f":"IFERROR(HLOOKUP(S$4,СВОДНЫЙ!$A$4:$X$186,138,FALSE),)","v":0},{"$f":"IFERROR(HLOOKUP(T$4,СВОДНЫЙ!$A$4:$X$186,138,FALSE),)","v":0},{"$f":"IFERROR(HLOOKUP(U$4,СВОДНЫЙ!$A$4:$X$186,138,FALSE),)","v":0},{"$f":"IFERROR(HLOOKUP(V$4,СВОДНЫЙ!$A$4:$X$186,138,FALSE),)","v":0},{"$f":"IFERROR(HLOOKUP(W$4,СВОДНЫЙ!$A$4:$X$186,138,FALSE),)","v":0},{"$f":"IFERROR(HLOOKUP(X$4,СВОДНЫЙ!$A$4:$X$186,138,FALSE),)","v":0},{"$f":"IFERROR(HLOOKUP(Y$4,СВОДНЫЙ!$A$4:$X$186,138,FALSE),)","v":0},{"$f":"IFERROR(HLOOKUP(Z$4,СВОДНЫЙ!$A$4:$X$186,138,FALSE),)","v":0},{"$f":"IFERROR(HLOOKUP(AA$4,СВОДНЫЙ!$A$4:$X$186,138,FALSE),)","v":0},{"$f":"IFERROR(HLOOKUP(AB$4,СВОДНЫЙ!$A$4:$X$186,138,FALSE),)","v":0},{"$f":"IFERROR(HLOOKUP(AC$4,СВОДНЫЙ!$A$4:$X$186,138,FALSE),)","v":0},{"$f":"IFERROR(HLOOKUP(AD$4,СВОДНЫЙ!$A$4:$X$186,138,FALSE),)","v":0},{"$f":"IFERROR(HLOOKUP(AE$4,СВОДНЫЙ!$A$4:$X$186,138,FALSE),)","v":0}]
[null,"Всего Виталис",0,0,0,0,0,0,{"$f":"IFERROR(HLOOKUP(I$4,СВОДНЫЙ!$A$4:$X$186,155,FALSE),)","v":0},{"$f":"IFERROR(HLOOKUP(J$4,СВОДНЫЙ!$A$4:$X$186,155,FALSE),)","v":0},{"$f":"IFERROR(HLOOKUP(K$4,СВОДНЫЙ!$A$4:$X$186,155,FALSE),)","v":0},{"$f":"IFERROR(HLOOKUP(L$4,СВОДНЫЙ!$A$4:$X$186,155,FALSE),)","v":0},{"$f":"IFERROR(HLOOKUP(M$4,СВОДНЫЙ!$A$4:$X$186,155,FALSE),)","v":0},{"$f":"IFERROR(HLOOKUP(N$4,СВОДНЫЙ!$A$4:$X$186,155,FALSE),)","v":0},{"$f":"IFERROR(HLOOKUP(O$4,СВОДНЫЙ!$A$4:$X$186,155,FALSE),)","v":0},{"$f":"IFERROR(HLOOKUP(P$4,СВОДНЫЙ!$A$4:$X$186,155,FALSE),)","v":0},{"$f":"IFERROR(HLOOKUP(Q$4,СВОДНЫЙ!$A$4:$X$186,155,FALSE),)","v":0},{"$f":"IFERROR(HLOOKUP(R$4,СВОДНЫЙ!$A$4:$X$186,155,FALSE),)","v":0},{"$f":"IFERROR(HLOOKUP(S$4,СВОДНЫЙ!$A$4:$X$186,155,FALSE),)","v":0},{"$f":"IFERROR(HLOOKUP(T$4,СВОДНЫЙ!$A$4:$X$186,155,FALSE),)","v":0},{"$f":"IFERROR(HLOOKUP(U$4,СВОДНЫЙ!$A$4:$X$186,155,FALSE),)","v":0},{"$f":"IFERROR(HLOOKUP(V$4,СВОДНЫЙ!$A$4:$X$186,155,FALSE),)","v":0},{"$f":"IFERROR(HLOOKUP(W$4,СВОДНЫЙ!$A$4:$X$186,155,FALSE),)","v":0},{"$f":"IFERROR(HLOOKUP(X$4,СВОДНЫЙ!$A$4:$X$186,155,FALSE),)","v":0},{"$f":"IFERROR(HLOOKUP(Y$4,СВОДНЫЙ!$A$4:$X$186,155,FALSE),)","v":0},{"$f":"IFERROR(HLOOKUP(Z$4,СВОДНЫЙ!$A$4:$X$186,155,FALSE),)","v":0},{"$f":"IFERROR(HLOOKUP(AA$4,СВОДНЫЙ!$A$4:$X$186,155,FALSE),)","v":0},{"$f":"IFERROR(HLOOKUP(AB$4,СВОДНЫЙ!$A$4:$X$186,155,FALSE),)","v":0},{"$f":"IFERROR(HLOOKUP(AC$4,СВОДНЫЙ!$A$4:$X$186,155,FALSE),)","v":0},{"$f":"IFERROR(HLOOKUP(AD$4,СВОДНЫЙ!$A$4:$X$186,155,FALSE),)","v":0},{"$f":"IFERROR(HLOOKUP(AE$4,СВОДНЫЙ!$A$4:$X$186,155,FALSE),)","v":0}]
[null,"Всего сухие продукты",26,0,0,0,0,0,{"$f":"I18+I17+I16+I10","v":0},{"$f":"J18+J17+J16+J10","v":6},{"$f":"K18+K17+K16+K10","v":16},1,3,0,0,0,0,0,0,0,0,0,0,0,0,0,0,0,0,0,0]
[null,"Всего пицца \"Ристоранте\"",0,0,0,0,0,0,{"$f":"IFERROR(HLOOKUP(I$4,СВОДНЫЙ!$A$4:$X$186,178,FALSE),)","v":0},{"$f":"IFERROR(HLOOKUP(J$4,СВОДНЫЙ!$A$4:$X$186,178,FALSE),)","v":0},{"$f":"IFERROR(HLOOKUP(K$4,СВОДНЫЙ!$A$4:$X$186,178,FALSE),)","v":0},{"$f":"IFERROR(HLOOKUP(L$4,СВОДНЫЙ!$A$4:$X$186,178,FALSE),)","v":0},{"$f":"IFERROR(HLOOKUP(M$4,СВОДНЫЙ!$A$4:$X$186,178,FALSE),)","v":0},{"$f":"IFERROR(HLOOKUP(N$4,СВОДНЫЙ!$A$4:$X$186,178,FALSE),)","v":0},{"$f":"IFERROR(HLOOKUP(O$4,СВОДНЫЙ!$A$4:$X$186,178,FALSE),)","v":0},{"$f":"IFERROR(HLOOKUP(P$4,СВОДНЫЙ!$A$4:$X$186,178,FALSE),)","v":0},{"$f":"IFERROR(HLOOKUP(Q$4,СВОДНЫЙ!$A$4:$X$186,178,FALSE),)","v":0},{"$f":"IFERROR(HLOOKUP(R$4,СВОДНЫЙ!$A$4:$X$186,178,FALSE),)","v":0},{"$f":"IFERROR(HLOOKUP(S$4,СВОДНЫЙ!$A$4:$X$186,178,FALSE),)","v":0},{"$f":"IFERROR(HLOOKUP(T$4,СВОДНЫЙ!$A$4:$X$186,178,FALSE),)","v":0},{"$f":"IFERROR(HLOOKUP(U$4,СВОДНЫЙ!$A$4:$X$186,178,FALSE),)","v":0},{"$f":"IFERROR(HLOOKUP(V$4,СВОДНЫЙ!$A$4:$X$186,178,FALSE),)","v":0},{"$f":"IFERROR(HLOOKUP(W$4,СВОДНЫЙ!$A$4:$X$186,178,FALSE),)","v":0},{"$f":"IFERROR(HLOOKUP(X$4,СВОДНЫЙ!$A$4:$X$186,178,FALSE),)","v":0},{"$f":"IFERROR(HLOOKUP(Y$4,СВОДНЫЙ!$A$4:$X$186,178,FALSE),)","v":0},{"$f":"IFERROR(HLOOKUP(Z$4,СВОДНЫЙ!$A$4:$X$186,178,FALSE),)","v":0},{"$f":"IFERROR(HLOOKUP(AA$4,СВОДНЫЙ!$A$4:$X$186,178,FALSE),)","v":0},{"$f":"IFERROR(HLOOKUP(AB$4,СВОДНЫЙ!$A$4:$X$186,178,FALSE),)","v":0},{"$f":"IFERROR(HLOOKUP(AC$4,СВОДНЫЙ!$A$4:$X$186,178,FALSE),)","v":0},{"$f":"IFERROR(HLOOKUP(AD$4,СВОДНЫЙ!$A$4:$X$186,178,FALSE),)","v":0},{"$f":"IFERROR(HLOOKUP(AE$4,СВОДНЫЙ!$A$4:$X$186,178,FALSE),)","v":0}]
[null,"Всего Каса ди Мама",0,0,0,0,0,0,{"$f":"IFERROR(HLOOKUP(I$4,СВОДНЫЙ!4:190,185,FALSE),)","v":0},{"$f":"IFERROR(HLOOKUP(J$4,СВОДНЫЙ!4:190,185,FALSE),)","v":0},{"$f":"IFERROR(HLOOKUP(K$4,СВОДНЫЙ!4:190,185,FALSE),)","v":0},{"$f":"IFERROR(HLOOKUP(L$4,СВОДНЫЙ!4:190,185,FALSE),)","v":0},{"$f":"IFERROR(HLOOKUP(M$4,СВОДНЫЙ!4:190,185,FALSE),)","v":0},{"$f":"IFERROR(HLOOKUP(N$4,СВОДНЫЙ!4:190,185,FALSE),)","v":0},{"$f":"IFERROR(HLOOKUP(O$4,СВОДНЫЙ!4:190,185,FALSE),)","v":0},{"$f":"IFERROR(HLOOKUP(P$4,СВОДНЫЙ!4:190,185,FALSE),)","v":0},{"$f":"IFERROR(HLOOKUP(Q$4,СВОДНЫЙ!4:190,185,FALSE),)","v":0},{"$f":"IFERROR(HLOOKUP(R$4,СВОДНЫЙ!4:190,185,FALSE),)","v":0},{"$f":"IFERROR(HLOOKUP(S$4,СВОДНЫЙ!4:190,185,FALSE),)","v":0},{"$f":"IFERROR(HLOOKUP(T$4,СВОДНЫЙ!4:190,185,FALSE),)","v":0},{"$f":"IFERROR(HLOOKUP(U$4,СВОДНЫЙ!4:190,185,FALSE),)","v":0},{"$f":"IFERROR(HLOOKUP(V$4,СВОДНЫЙ!4:190,185,FALSE),)","v":0},{"$f":"IFERROR(HLOOKUP(W$4,СВОДНЫЙ!4:190,185,FALSE),)","v":0},{"$f":"IFERROR(HLOOKUP(X$4,СВОДНЫЙ!4:190,185,FALSE),)","v":0},{"$f":"IFERROR(HLOOKUP(Y$4,СВОДНЫЙ!4:190,185,FALSE),)","v":0},{"$f":"IFERROR(HLOOKUP(Z$4,СВОДНЫЙ!4:190,185,FALSE),)","v":0},{"$f":"IFERROR(HLOOKUP(AA$4,СВОДНЫЙ!4:190,185,FALSE),)","v":0},{"$f":"IFERROR(HLOOKUP(AB$4,СВОДНЫЙ!4:190,185,FALSE),)","v":0},{"$f":"IFERROR(HLOOKUP(AC$4,СВОДНЫЙ!4:190,185,FALSE),)","v":0},{"$f":"IFERROR(HLOOKUP(AD$4,СВОДНЫЙ!4:190,185,FALSE),)","v":0},{"$f":"IFERROR(HLOOKUP(AE$4,СВОДНЫЙ!4:190,185,FALSE),)","v":0}]
[null,"Всего заморож. продукты",26,0,0,0,0,0,{"$f":"SUM(I19:I21)","v":0},6,{"$f":"SUM(K19:K21)","v":16},{"$f":"SUM(L19:L21)","v":1},{"$f":"SUM(M19:M21)","v":3},{"$f":"SUM(N19:N21)","v":0},{"$f":"SUM(O19:O21)","v":0},{"$f":"SUM(P19:P21)","v":0},{"$f":"SUM(Q19:Q21)","v":0},{"$f":"SUM(R19:R21)","v":0},{"$f":"SUM(S19:S21)","v":0},{"$f":"SUM(T19:T21)","v":0},{"$f":"SUM(U19:U21)","v":0},{"$f":"SUM(V19:V21)","v":0},{"$f":"SUM(W19:W21)","v":0},{"$f":"SUM(X19:X21)","v":0},{"$f":"SUM(Y19:Y21)","v":0},{"$f":"SUM(Z19:Z21)","v":0},{"$f":"SUM(AA19:AA21)","v":0},{"$f":"SUM(AB19:AB21)","v":0},{"$f":"SUM(AC19:AC21)","v":0},{"$f":"SUM(AD19:AD21)","v":0},{"$f":"SUM(AE19:AE21)","v":0}]
[null,"Итог по всему ассортименту",52,0,0,0,0,0,{"$f":"I22+I19","v":0},{"$f":"J22+J19","v":12},{"$f":"K22+K19","v":32},2,6,0,0,0,0,0,0,0,0,0,0,0,0,0,0,0,0,0,0]
[]
[null,"Данный диапазон на всех листах с городами одинаковый без изменений",null,null,null,null,null,null,"Данный диапазон содержит формулы для копирования в таблицу справа"]